Workbook

Sheet Оглавление
B2: ПРАЙС | H2: от | I2: 2019-11-26
A4: 1 | B4: РАБОЧАЯ ОДЕЖДА
B5: 1.1 | C5: Рабочая одежда летняя
C6: 1.1.1 | D6: Костюмы
C7: 1.1.2 | D7: Комбинезоны и полукомбинезоны
C8: 1.1.3 | D8: Халаты
B9: 1.2 | C9: Рабочая одежда утепленная
C10: 1.2.1 | D10: Куртки и костюмы утепленные
C11: 1.2.2 | D11: Брюки, полукомбинезоны, жилеты утепленные
B12: 1.3 | C12: Трикотаж
B13: 1.4 | C13: Головные уборы
A14: 2 | B14: ОДЕЖДА СО СПЕЦИАЛЬНЫМИ ЗАЩИТНЫМИ СВОЙСТВАМИ
B15: 2.1 | C15: Сигнальная одежда
B16: 2.2 | C16: Влагозащитная одежда
B17: 2.3 | C17: Одежда для защиты от повышенных температур
B18: 2.4 | C18: Противоэнцефалитная одежда
B19: 2.5 | C19: Защита от кислот, нефти и других агрессивных сред
B20: 2.6 | C20: Одноразовая одежда
A21: 3 | B21: ОДЕЖДА ДЛЯ МЕДИЦИНЫ И СФЕРЫ УСЛУГ, ОХРАНЫ, ТУРИЗМА
B22: 3.1 | C22: Униформа для медицины и сферы услуг
C23: 3.1.1 | D23: Халаты
C24: 3.1.2 | D24: Костюмы
B25: 3.2 | C25: Экипировка для охранных структур
C26: 3.2.1. | D26: Летняя одежда для охраны
C27: 3.2.1. | D27: Зимняя одежда для охраны
C28: 3.2.1. | D28: Аксессуары для охранных структур
B29: 3.3 | C29: Охота, рыбалка, туризм
A30: 4 | B30: РАБОЧАЯ ОБУВЬ
B31: 4.1 | C31: Обувь «PAREDES»
B32: 4.2 | C32: Кожаная защитная обувь
C33: 4.2.1 | D33: Сандали, сабо, полуботинки
C34: 4.2.2 | D34: Ботинки рабочие
C35: 4.2.3 | D35: Сапоги рабочие
B36: 4.3 | C36: Обувь резиновая и ПВХ
B37: 4.4 | C37: Утепленная рабочая обувь
B38: 4.5 | C38: Повседневная и прочая обувь
A39: 5 | B39: СРЕДСТВА ЗАЩИТЫ
B40: 5.1 | C40: Защита рук
C41: 5.1.1 | D41: Рукавицы
C42: 5.1.2 | D42: Перчатки
C43: 5.1.3 | D43: Краги
C44: 5.1.4 | D44: Перчатки «Manipula»
D45: 5.1.4.1 | E45: Защита от механических воздействий
D46: 5.1.4.2 | E46: Защита от порезов
D47: 5.1.4.3 | E47: Защита от химических воздействий и микроорганизмов
D48: 5.1.4.4 | E48: Защита от пониженных температур
D49: 5.1.4.5 | E49: Защита от повышенных температур, искр и брызг металла
C50: 5.1.5 | D50: Перчатки "ELEMENTA" (Швеция)
D51: 5.1.5.1 | E51: Краги
D52: 5.1.5.2 | E52: Перчатки кожаные спилковые комбинированные
D53: 5.1.5.3 | E53: Перчатки с покрытиями Полиуритан
D54: 5.1.5.4 | E54: Перчатки с покрытиями Нитрил
D55: 5.1.5.5 | E55: Перчатки с покрытиями Латекс
D56: 5.1.5.6 | E56: Перчатки защита от нефти и масел
D57: 5.1.5.7 | E57: Перчатки от пониженных температур
D58: 5.1.5.8 | E58: Перчатки универсальные Премиум
C59: 5.1.6 | D59: Перчатки "МАРА" (Франция)
D60: 5.1.6.1 | E60: Защита от жидких сред
D61: 5.1.6.2 | E61: Защита химических повреждений
D62: 5.1.6.3 | E62: Защита от механических повреждений
D63: 5.1.6.4 | E63: Защита от порезов и проколов
D64: 5.1.6.5 | E64: Термическая защита
D65: 5.1.6.6 | E65: Одноразовые перчатки
B66: 5.2 | C66: Защита головы и лица
C67: 5.2.1 | D67: Каски защитные
C68: 5.2.2 | D68: Маски сварщика
C69: 5.2.3 | D69: Щитки защитные
B70: 5.3 | C70: Защита глаз
C71: 5.3.1 | D71: Очки защитные OZON
C72: 5.3.2 | D72: Очки защитные
D73: 5.3.2.1 | E73: Очки защитные открытые
D74: 5.3.2.2 | E74: Очки защитные закрытые
B75: 5.4 | C75: Защита слуха
B76: 5.5 | C76: Защита дыхания
C77: 5.5.1 | D77: Защита дыхания 3М
C78: 5.5.2 | D78: Защита дыхания MSA
C79: 5.5.3 | D79: Респираторика
C80: 5.5.4 | D80: Противогазы и фильтры
B81: 5.6 | C81: Защита от падения с высоты
B82: 5.7 | C82: Диэлектрика
B83: 5.8 | C83: Аптечки
B84: 5.9 | C84: Защитная химия
A85: 6 | B85: СОПУТСТВУЮЩИЕ ТОВАРЫ
B86: 6.1 | C86: Безопасность рабочего места
B87: 6.2 | C87: Противопожарное оборудование
B88: 6.3 | C88: Вспомогательный и хозяйственный инвентарь
B89: 6.4 | C89: Постельные принадлежности
B90: 6.5 | C90: Текстильные материалы
A91: 7 | B91: СИСТЕМА СКИДОК
B92: Условные обозначения
C94: Новинка | G94: Спецпредложение | J94: Распродажа

Sheet Рабочая одежда
B2: ПРАЙС | D2: от | E2: =Оглавление!I2 -> 2019-11-26
H3: 115% | I3: 10% | J3: 15% | N3: 115%
A4: Сегмент | B4: Статус | C4: Код | D4: Наименование | E4: Описание | F4: Цена | G4: Цена | H4: Розничная цена (менее 20 т.р) | I4: Цена оптовика | J4: Мин. Цена оптовика | L4: Цена | M4: Цена | N4: Розничная цена (менее 20 т.р)
B5: 1 | C5: РАБОЧАЯ ОДЕЖДА
B6: 1.1 | C6: Рабочая одежда летняя | E6: вернуться в Оглавление | G6: =SUBTOTAL(9,G7:G58) -> 1906-04-28 | M6: =SUBTOTAL(9,M7:M58) -> 1908-01-23T19:12:00
C7: 1.1.1 | D7: Костюмы | E7: вернуться в Оглавление | G7: =SUBTOTAL(9,G8:G42) -> 1904-10-25 | M7: =SUBTOTAL(9,M8:M42) -> 1904-12-16T19:12:00
B8: SALE | C8: Кос126 | D8: Костюм мужской "Стандарт 1" | E8: Куртка\брюки. Ткань: смесовая (80% ПЭ, 20% ХЛ) 220 г/м2, МВО | F8: 395.00р. | H8: =F8*1.35 -> 533.25р. | I8: 395.00р. | J8: 395.00р. | L8: =F8*1.03 -> 406.85р. | M8: =G8*1.03 -> 0.00р. | N8: 549.25р.
C9: Кос125c | D9: Костюм мужской "Стандарт плюс" | E9: Куртка\брюки. Ткань: смесовая (80% ПЭ, 20% ХЛ) 220 г/м2, МВО. Цвет: синий | F9: 610.00р. | H9: =F9*1.35 -> 823.50р. | I9: =F9*0.95 -> 579.50р. | J9: =F9*0.8 -> 488.00р. | L9: =F9*1.03 -> 628.30р. | M9: =G9*1.03 -> 0.00р. | N9: =H9*1.03 -> 848.21р.
C10: Кос125з | D10: Костюм мужской "Стандарт плюс" | E10: Куртка\брюки. Ткань: смесовая (80% ПЭ, 20% ХЛ) 220 г/м2, МВО. Цвет: зеленый | F10: 610.00р. | H10: =F10*1.35 -> 823.50р. | I10: =F10*0.95 -> 579.50р. | J10: =F10*0.8 -> 488.00р. | L10: 628.30р. | M10: 0.00р. | N10: 848.21р.
C11: Кос135сс | D11: Костюм мужской "Стандарт плюс СОП" | E11: Куртка\брюки. Ткань: смесовая (80% ПЭ, 20% ХЛ) 220 г/м2, МВО. Цвет: синий | F11: 625.00р. | H11: =F11*1.35 -> 843.75р. | I11: =F11*0.95 -> 593.75р. | J11: =F11*0.8 -> 500.00р. | L11: 643.75р. | M11: 0.00р. | N11: 869.06р.
C12: Кос135зс | D12: Костюм мужской "Стандарт плюс СОП" | E12: Куртка\брюки. Ткань: смесовая (80% ПЭ, 20% ХЛ) 220 г/м2, МВО. Цвет: зеленый | F12: 625.00р. | H12: 843.75р. | I12: =F12*0.95 -> 593.75р. | J12: =F12*0.8 -> 500.00р. | L12: 643.75р. | M12: 0.00р. | N12: 869.06р.
C13: Кос124 | D13: Костюм мужской "Стандарт 2" | E13: Куртка\полукомбинезон. Ткань: смесовая (80% ПЭ, 20% ХЛ) 220 г/м2, МВО | F13: 655.00р. | H13: 884.25р. | I13: 622.25р. | J13: 524.00р. | L13: 674.65р. | M13: 0.00р. | N13: 910.78р.
C14: Кос123 | D14: Костюм мужской "Коммунальщик" | E14: Куртка\полукомбинезон. Ткань: смесовая (80% ПЭ, 20% ХЛ) 220 г/м2, МВО | F14: 790.00р. | H14: 1,066.50р. | I14: 750.50р. | J14: 632.00р. | L14: 813.70р. | M14: 0.00р. | N14: 1,098.50р.
B15: SALE | C15: Кос122 | D15: Костюм женский "Ударница Премиум" | E15: Куртка\брюки. Ткань: смесовая (80% ПЭ, 20% ХЛ) 220 г/м2, МВО | F15: 415.00р. | G15: 415.00р. | H15: 560.25р. | I15: 415.00р. | J15: 415.00р. | L15: 427.45р. | M15: 427.45р. | N15: 577.06р.
B16: SALE | C16: Кос121 | D16: Костюм мужской "Ударник" | E16: Куртка\брюки. Ткань: смесовая (80% ПЭ, 20% ХЛ) 220 г/м2, МВО | F16: 415.00р. | G16: 415.00р. | H16: 560.25р. | I16: 415.00р. | J16: 415.00р. | L16: 427.45р. | M16: 427.45р. | N16: 577.06р.
C17: Кос118 | D17: Костюм мужской "Пантеон" | E17: Куртка\брюки. Ткань: смесовая(80% ПЭ, 20% ХЛ) 210 г/м2, МВО | F17: 750.00р. | H17: 1,012.50р. | I17: =F17*0.95 -> 712.50р. | J17: =F17*0.8 -> 600.00р. | L17: 772.50р. | M17: 0.00р. | N17: 1,042.88р.
C18: Кос119 | D18: Костюм мужской "Пантеон 2" | E18: Куртка\полукомбинезон. Ткань: смесовая(80% ПЭ, 20% ХЛ) 210 г/м2, МВО | F18: 810.00р. | H18: =F18*1.35 -> 1,093.50р. | I18: =F18*0.95 -> 769.50р. | J18: =F18*0.8 -> 648.00р. | L18: 834.30р. | M18: 0.00р. | N18: 1,126.31р.
C19: Кос119з | D19: Костюм мужской "Пантеон 2" зеленый/желтый | E19: Куртка\полукомбинезон. Ткань: смесовая(80% ПЭ, 20% ХЛ) 210 г/м2, МВО | F19: 810.00р. | H19: 1,093.50р. | I19: =F19*0.95 -> 769.50р. | J19: =F19*0.8 -> 648.00р. | L19: 834.30р. | M19: 0.00р. | N19: 1,126.31р.
C20: Кос120 | D20: Костюм женский "Пантеон 2" | E20: Куртка\полукомбинезон. Ткань: смесовая (80% ПЭ, 20% ХЛ) пл. 220 г/м2, МВО | F20: 845.00р. | H20: 1,140.75р. | I20: 802.75р. | J20: 676.00р. | L20: 870.35р. | M20: 0.00р. | N20: 1,174.97р.
B21: SALE | C21: Кос117 | D21: Костюм мужской "Бригадир" | E21: Куртка\брюки. Ткань: смесовая (80% ПЭ, 20% ХЛ) 220 г/м2, МВО | F21: 650.00р. | H21: 877.50р. | I21: 650.00р. | J21: 650.00р. | L21: 669.50р. | M21: 0.00р. | N21: 903.83р.
C22: Кос132 | D22: Костюм мужской "Бригадир 2" | E22: Куртка\полукомбинезон. Ткань: смесовая (80% ПЭ, 20% ХЛ) 220 г/м2, МВО | F22: 925.00р. | H22: 1,248.75р. | I22: 878.75р. | J22: 740.00р. | L22: 952.75р. | M22: 0.00р. | N22: 1,286.21р.
B23: NEW | C23: Кос133 | D23: Костюм мужской "Профессионал 1" | E23: Куртка\брюки Ткань: смесовая Темп 210 (65% ПЭ, 35% ХЛ) 210 г/м2, ВО | F23: 1,420.00р. | H23: =F23*1.35 -> 1,917.00р. | I23: =F23*0.95 -> 1,349.00р. | J23: =F23*0.8 -> 1,136.00р. | L23: 1,462.60р. | M23: 0.00р. | N23: 1,974.51р.
C24: Кос114 | D24: Костюм мужской "Контакт" | E24: Куртка\брюки. Ткань: Твилл (100%ХЛ,) 250 г/м2 | F24: 1,150.00р. | H24: 1,552.50р. | I24: 1,092.50р. | J24: 920.00р. | L24: 1,184.50р. | M24: 0.00р. | N24: 1,599.08р.
B25: SPEC | C25: Кос129с | D25: Костюм мужской "Фаворит" | E25: Куртка/полукомбинезон. Ткань: смесовая (80% ПЭ, 20% ХЛ), 210 г/м2, МВО пропитка. Цвет: серый/светло-серый | F25: 950.00р. | H25: =F25*1.35 -> 1,282.50р. | I25: =F25*0.95 -> 902.50р. | J25: =F25*0.8 -> 760.00р. | L25: 978.50р. | M25: 0.00р. | N25: 1,320.98р.
C26: Кос131с | D26: Костюм мужской "Визит" | E26: Куртка/полукомбинезон. Ткань: смесовая (80% ПЭ, 20% ХЛ), 210 г/м2, МВО пропитка. Цвет: серый/черный/красный | F26: 1,120.00р. | H26: 1,512.00р. | I26: 1,064.00р. | J26: 896.00р. | L26: 1,153.60р. | M26: 0.00р. | N26: 1,557.36р.
C27: Кос130с | D27: Костюм мужской "Базис" | E27: Куртка/полукомбинезон. Ткань: смесовая (80% ПЭ, 20% ХЛ), 210 г/м2, МВО пропитка. Цвет: темно-синий/василек | F27: 1,100.00р. | H27: 1,485.00р. | I27: 1,045.00р. | J27: 880.00р. | L27: 1,133.00р. | M27: 0.00р. | N27: 1,529.55р.
C28: Кос1081 | D28: Костюм мужской "Вираж" | E28: Куртка\брюки. Ткань: Саржа (100%ХЛ,), 250 г/м2 Отделка ВО. | F28: 1,650.00р. | H28: 2,227.50р. | I28: 1,567.50р. | J28: 1,320.00р. | L28: 1,699.50р. | M28: 0.00р. | N28: 2,294.33р.
C29: Кос1082 | D29: Костюм мужской "Вираж 2" | E29: Куртка\полукомбинезон. Ткань: Саржа (100%ХЛ,), 250 г/м2 Отделка ВО. | F29: 1,750.00р. | H29: =F29*1.35 -> 2,362.50р. | I29: 1,662.50р. | J29: 1,400.00р. | L29: 1,802.50р. | M29: 0.00р. | N29: 2,433.38р.
C30: Кос105 | D30: Костюм мужской "Бренд 1" | E30: Куртка\брюки. Ткань: смесовая (65% ПЭ, 35% ХЛ)240 г/м2, ВО | F30: 1,740.00р. | H30: 2,349.00р. | I30: 1,653.00р. | J30: 1,392.00р. | L30: 1,792.20р. | M30: 0.00р. | N30: 2,419.47р.
C31: Кос106 | D31: Костюм женский "Бренд 1" | E31: Куртка\брюки. Ткань: смесовая (65% ПЭ, 35% ХЛ) 240 г/м2, ВО | F31: 1,740.00р. | H31: 2,349.00р. | I31: 1,653.00р. | J31: 1,392.00р. | L31: 1,792.20р. | M31: 0.00р. | N31: 2,419.47р.
C32: Кос104 | D32: Костюм мужской "Бренд 2" | E32: Куртка\полукомбинезон. Ткань: смесовая (65% ПЭ, 35% ХЛ) 240 г/м2, ВО | F32: 1,990.00р. | H32: 2,686.50р. | I32: 1,890.50р. | J32: 1,592.00р. | L32: 2,049.70р. | M32: 0.00р. | N32: 2,767.10р.
C33: Кос103 | D33: Костюм мужской "Бренд Корпоратив" | E33: Куртка\полукомбинезон. Ткань: смесовая (65% ПЭ, 35% ХЛ) 240 г/м2, ВО | F33: 2,350.00р. | H33: 3,172.50р. | I33: 2,232.50р. | J33: 1,880.00р. | L33: 2,420.50р. | M33: 0.00р. | N33: 3,267.68р.
C34: Кос1071 | D34: Костюм мужской "Вираж-Антистат" | E34: Куртка\брюки. Ткань: Гидра (79% ХЛ, 20% ПЭ, 1% АС нить), 255 г/м2 МВО, АС нить. | F34: 2,360.00р. | H34: 3,186.00р. | I34: 2,242.00р. | J34: 1,888.00р. | L34: 2,430.80р. | M34: 0.00р. | N34: 3,281.58р.
C35: Кос102 | D35: Костюм мужской "Suomi" | E35: Куртка\брюки. Ткань смесовая (40% ПЭ, 60% ХЛ) 290 г/м2, ВО | F35: 4,800.00р. | H35: 6,480.00р. | I35: 4,560.00р. | J35: 3,840.00р. | L35: 4,944.00р. | M35: 0.00р. | N35: 6,674.40р.
C36: Кос101 | D36: Костюм рабочий "Викинг" | E36: Куртка/брюки. Ткань смесовая ткань «Канвас» (60% хлопок, 40% полиэстер), 290 г/м2, ВО, «Мадейра» (100% хлопок), 320 г/м2 | F36: 4,950.00р. | H36: 6,682.50р. | I36: 4,702.50р. | J36: 3,960.00р. | L36: 5,098.50р. | M36: 0.00р. | N36: 6,882.98р.
C37: Кос116 | D37: Костюм мужской "Докер" | E37: Куртка\полукомбинезон. Ткань: смесовая (80% ПЭ, 20% ХЛ) 210 г/м2, ВО | F37: 825.00р. | H37: 1,113.75р. | I37: 783.75р. | J37: 660.00р. | L37: 849.75р. | M37: 0.00р. | N37: 1,147.16р.
C38: Кос113 | D38: Костюм мужской "Гудзон" | E38: Куртка\полукомбинезон. Ткань: смесовая (65% ПЭ, 35% ХЛ) 210 г/м2, ВО | F38: 1,130.00р. | H38: 1,525.50р. | I38: 1,073.50р. | J38: 904.00р. | L38: 1,163.90р. | M38: 0.00р. | N38: 1,571.27р.
B39: SALE | C39: Кос109 | D39: Костюм мужской "Лига" | E39: Куртка\полукомбинезон. Ткань: смесовая (51% ПЭ, 49% ХЛ) 215 г/м2, ВО | F39: 930.00р. | G39: 930.00р. | H39: 1,255.50р. | I39: 930.00р. | J39: 930.00р. | L39: 957.90р. | M39: 957.90р. | N39: 1,293.17р.
B40: SALE | C40: Кос127 | D40: Костюм мужской "Вахтовик" | E40: Куртка\брюки. Ткань: Твилл (100%ХЛ,) Поверхностная : 250 г/м2 Отделка ВО. | F40: 1,180.00р. | H40: 1,593.00р. | I40: 1,180.00р. | J40: 1,180.00р. | L40: 1,215.40р. | M40: 0.00р. | N40: 1,640.79р.
C41: Кос128 | D41: Костюм мужской "Профессионал 2" | E41: Куртка\полукомбинезон. Ткань: смесовая Темп 210 (65% ПЭ, 35% ХЛ) 210 г/м2, ВО | F41: 1,460.00р. | H41: =F41*1.35 -> 1,971.00р. | I41: =F41*0.95 -> 1,387.00р. | J41: =F41*0.8 -> 1,168.00р. | L41: 1,503.80р. | M41: 0.00р. | N41: 2,030.13р.
C42: Кос112 | D42: Костюм мужской "Автотехник" | E42: Куртка\полукомбинезон. Ткань: смесовая (65% ПЭ, 35% ХЛ) 210 г/м2, ВО, накладкиОксфорд | F42: 1,320.00р. | H42: 1,782.00р. | I42: 1,254.00р. | J42: 1,056.00р. | L42: 1,359.60р. | M42: 0.00р. | N42: 1,835.46р.
C43: Кур101 | D43: Куртка мужская "Бренд" | E43: Куртка\брюки. Ткань: смесовая (65% ПЭ, 35% ХЛ)240 г/м2, ВО, цвет: бежевый\черный, черный\бежевый | F43: 1,300.00р. | H43: =F43*1.35 -> 1,755.00р. | I43: =F43*0.95 -> 1,235.00р. | J43: =F43*0.8 -> 1,040.00р. | L43: 1,339.00р. | M43: 0.00р. | N43: 1,807.65р.
C44: Кур107 | D44: Куртка мужская "Люкс" | E44: Куртка\брюки. Ткань: смесовая (65% ПЭ, 35% ХЛ)240 г/м2, ВО. Цвет: черный\серый, серый\черный, бежевый\серый | F44: 1,300.00р. | H44: 1,755.00р. | I44: 1,235.00р. | J44: 1,040.00р. | L44: 1,339.00р. | M44: 0.00р. | N44: 1,807.65р.
C45: Бр018 | D45: Брюки мужские "Люкс" | E45: Куртка\брюки. Ткань: смесовая (65% ПЭ, 35% ХЛ)240 г/м2, ВО, цвет: черный, серый | F45: 800.00р. | H45: 1,080.00р. | I45: 760.00р. | J45: 640.00р. | L45: 824.00р. | M45: 0.00р. | N45: 1,112.40р.
C46: 1.1.2 | D46: Комбинезоны и полукомбинезоны | E46: вернуться в Оглавление | G46: =SUBTOTAL(9,G47:G48) -> 0.00р. | L46: 0.00р. | M46: 0.00р. | N46: 0.00р.
C47: Пол102 | D47: Полукомбинезон мужской "Стандарт 2" | E47: Ткань: смесовая (80% ПЭ, 20% ХЛ) 220 г/м2, МВО | F47: 470.00р. | H47: 634.50р. | I47: 446.50р. | J47: 376.00р. | L47: 484.10р. | M47: 0.00р. | N47: 653.54р.
C48: Пол101 | D48: Полукомбинезон мужской "Бренд" | E48: Ткань: смесовая (65% ПЭ, 35% ХЛ) 240 г/м2, ВО | F48: 1,300.00р. | H48: 1,755.00р. | I48: 1,235.00р. | J48: 1,040.00р. | L48: 1,339.00р. | M48: 0.00р. | N48: 1,807.65р.
C49: Пол101ч | D49: Полукомбинезон мужской "Бренд" | E49: Ткань: смесовая (65% ПЭ, 35% ХЛ) 240 г/м2, ВО цвет черный | F49: 1,200.00р. | H49: =F49*1.35 -> 1,620.00р. | I49: =F49*0.95 -> 1,140.00р. | J49: =F49*0.8 -> 960.00р. | L49: 1,236.00р. | M49: 0.00р. | N49: 1,668.60р.
C50: 1.1.3 | D50: Халаты | E50: вернуться в Оглавление | G50: =SUBTOTAL(9,G51:G58) -> 550.00р. | L50: 0.00р. | M50: 566.50р. | N50: 0.00р.
C51: Хал106 | D51: Халат рабочий мужской "Эконом" черный | E51: Ткань: 100%ХЛ, бязь ГОСТ 142гр | F51: 420.00р. | H51: 567.00р. | I51: 399.00р. | J51: 336.00р. | L51: 432.60р. | M51: 0.00р. | N51: 584.01р.
C52: Хал107 | D52: Халат рабочий женский "Эконом" черный | E52: Ткань: 100%ХЛ, бязь ГОСТ 142гр | F52: 420.00р. | H52: 567.00р. | I52: 399.00р. | J52: 336.00р. | L52: 432.60р. | M52: 0.00р. | N52: 584.01р.
C53: Хал103 | D53: Халат рабочий мужской "Технолог" | E53: Ткань: смесовая (80% ПЭ, 20% ХЛ) 220 г/м2, МВО | F53: 500.00р. | H53: 675.00р. | I53: 475.00р. | J53: 400.00р. | L53: 515.00р. | M53: 0.00р. | N53: 695.25р.
C54: Хал104в | D54: Халат рабочий женский "Технолог" | E54: Цвет: василек/синий. Ткань: смесовая (80% ПЭ, 20% ХЛ) 220 г/м2, МВО | F54: 490.00р. | H54: 661.50р. | I54: 465.50р. | J54: 392.00р. | L54: 504.70р. | M54: 0.00р. | N54: 681.35р.
C55: Хал104с | D55: Халат рабочий женский "Технолог" | E55: Цвет: синий/василек. Ткань: смесовая (80% ПЭ, 20% ХЛ) 220 г/м2, МВО | F55: 490.00р. | H55: 661.50р. | I55: 465.50р. | J55: 392.00р. | L55: 504.70р. | M55: 0.00р. | N55: 681.35р.
C56: Хал101 | D56: Халат ИТР "Бренд" | E56: Ткань: смесовая (65% ПЭ, 35% ХЛ) 210 г/м2, ВО | F56: 1,050.00р. | H56: 1,417.50р. | I56: 997.50р. | J56: 840.00р. | L56: 1,081.50р. | M56: 0.00р. | N56: 1,460.03р.
B57: SALE | C57: Хал102ч | D57: Халат ИТР женский "Бренд" | E57: Цвет: серый/черный. Ткань: смесовая (65% ПЭ, 35% ХЛ) 210 г/м2, ВО | F57: 550.00р. | G57: 550.00р. | H57: 742.50р. | I57: 550.00р. | J57: 550.00р. | L57: 566.50р. | M57: 566.50р. | N57: 764.78р.
C58: Хал102с | D58: Халат ИТР женский "Бренд" | E58: Ткань: смесовая (65% ПЭ, 35% ХЛ) 210 г/м2, ВО | F58: 1,050.00р. | H58: 1,417.50р. | I58: 997.50р. | J58: 840.00р. | L58: 1,081.50р. | M58: 0.00р. | N58: 1,460.03р.
B59: 1.2 | C59: Рабочая одежда утепленная | E59: вернуться в Оглавление | G59: =SUBTOTAL(9,G60:G99) -> 3,070.00р. | L59: 0.00р. | M59: 3,162.10р. | N59: 0.00р.
C60: 1.2.1 | D60: Куртки и костюмы утепленные | E60: вернуться в Оглавление | G60: =SUBTOTAL(9,G61:G92) -> 3,070.00р. | L60: 0.00р. | M60: 3,162.10р. | N60: 0.00р.
C61: Кур208 | D61: Куртка утепленная "Зима" | E61: Ткань: смесовая (65% полиэстер, 35% хлопок), 210 г/м2. Подкладка: 100% полиэстер, флис. Утеплитель: синтепон, 360 г/м2. | F61: 2,220.00р. | H61: 2,997.00р. | I61: =F61*0.95 -> 2,109.00р. | J61: =F61*0.8 -> 1,776.00р. | L61: 2,286.60р. | M61: 0.00р. | N61: 3,086.91р.
B62: SALE | C62: Кур207 | D62: Куртка утепленная "Уралец" | E62: Верх: смесовая (80% ПЭ, 20% ХЛ) 220 г/м2 Утеплитель: Синтепон 360 г/м2 Подкладка: 100% ПЭ | F62: 900.00р. | G62: 590.00р. | H62: 1,215.00р. | I62: 900.00р. | J62: 900.00р. | L62: 927.00р. | M62: 607.70р. | N62: 1,251.45р.
C63: Кур206 | D63: Куртка утепленная "Бригадир" СОП | E63: Ткань: смесовая Метеор 190 г/м2, 32% ХЛ, 68% ПЭ, ВО, Утеплитель: синтепон 360 г/м2, Подкладка: 100% ПЭ | F63: 1,095.00р. | H63: =F63*1.35 -> 1,478.25р. | I63: =F63*0.95 -> 1,040.25р. | J63: =F63*0.8 -> 876.00р. | L63: 1,127.85р. | M63: 0.00р. | N63: 1,522.60р.
C64: Кур204с | D64: Куртка утепленная "Эльбрус" | E64: Цвет: темно-синий/серый. Верх:Оксфорд (100% ПЭ, 150 г/м2) 150 г/м2, Утеплитель: Синтепон 360 г/м2, Подкладка:100% ПЭ | F64: 1,230.00р. | H64: 1,660.50р. | I64: 1,168.50р. | J64: 984.00р. | L64: 1,266.90р. | M64: 0.00р. | N64: 1,710.32р.
C65: Кур204в | D65: Куртка утепленная "Эльбрус" | E65: Цвет: василек/оранж. Верх:Оксфорд (100% ПЭ, 150 г/м2) 150 г/м2, Утеплитель: Синтепон 360 г/м2, Подкладка:100% ПЭ | F65: 1,230.00р. | H65: 1,660.50р. | I65: =F65*0.95 -> 1,168.50р. | J65: =F65*0.8 -> 984.00р. | L65: 1,266.90р. | M65: 0.00р. | N65: 1,710.32р.
C66: Кур205 | D66: Куртка утепленная женская "Эльбрус" | E66: Верх:Оксфорд (100% ПЭ, 150 г/м2) 150 г/м2, Утеплитель:Синтепон 360 г/м2, Подкладка:100% ПЭ | F66: 1,230.00р. | H66: 1,660.50р. | I66: 1,168.50р. | J66: 984.00р. | L66: 1,266.90р. | M66: 0.00р. | N66: 1,710.32р.
C67: Кур213 | D67: Куртка женская утепленная "Онега" | E67: Цвет: васильковый/серый. Верх: Dewspo (100% полиэстер) подкладка: 100% полиэстер утеплитель: синтепон пл.360 г/м² | F67: 1,660.00р. | H67: =F67*1.35 -> 2,241.00р. | I67: =F67*0.95 -> 1,577.00р. | J67: =F67*0.8 -> 1,328.00р. | L67: 1,709.80р. | M67: 0.00р. | N67: 2,308.23р.
C68: Кур210 | D68: Куртка утепленная "Аляска" | E68: Цвет: темно-синий/оранжевый. Верх: Dewspo (100% полиэстер) подкладка: 100% полиэстер утеплитель: синтепон пл.360 г/м² | F68: 2,860.00р. | H68: 3,861.00р. | I68: 2,717.00р. | J68: 2,288.00р. | L68: 2,945.80р. | M68: 0.00р. | N68: 3,976.83р.
B69: NEW | C69: Кос128 | D69: Костюм утепленный "Профессионал 2" | E69: Куртка\полукомбинезон. Ткань: Смесовая (35% ХЛ 65 % ПЭ). Утеплитель Синтепон: куртка 360 г/м2. Полукомбинезон: 240 г/м2 | F69: 3,110.00р. | H69: 4,198.50р. | I69: 2,954.50р. | J69: 2,488.00р. | L69: 3,203.30р. | M69: 0.00р. | N69: 4,324.46р.
C70: Кос219 | D70: Костюм утепленный "Мастер-В" | E70: Куртка\брюки. Верх: Оксфорд 100% ПЭ, ВО, Утеплитель: синтепон 4 слоя по 100 г/м2 в куртке, 3 слоя по 100 г/м2 в брюках, Подкладка: 100% ПЭ. | F70: 1,600.00р. | H70: =F70*1.35 -> 2,160.00р. | I70: =F70*0.95 -> 1,520.00р. | J70: =F70*0.8 -> 1,280.00р. | L70: 1,648.00р. | M70: 0.00р. | N70: 2,224.80р.
C71: Кос215 | D71: Костюм мужской утепленный "Стандарт" СОП | E71: Куртка\брюки. Верх: смесовая (80% ПЭ, 20% ХЛ), 220 г/м2, МВО, Подкладка: 100% ПЭ, Утеплитель: синтепон 360 г/м2 куртка, 240 г/м2 брюки | F71: 1,850.00р. | H71: 2,497.50р. | I71: 1,757.50р. | J71: 1,480.00р. | L71: 1,905.50р. | M71: 0.00р. | N71: 2,572.43р.
C72: Кос215ж | D72: Костюм женский утепленный "Стандарт" СОП | E72: Куртка\брюки. Верх: смесовая (80% ПЭ, 20% ХЛ), 220 г/м2, МВО, Подкладка: 100% ПЭ, Утеплитель: синтепон 360 г/м2 куртка, 240 г/м2 брюки | F72: 1,880.00р. | H72: 2,538.00р. | I72: 1,786.00р. | J72: 1,504.00р. | L72: 1,936.40р. | M72: 0.00р. | N72: 2,614.14р.
C73: Кос213с | D73: Костюм утепленный "Мастер" темно-синий | E73: Куртка\брюки. Верх: Оксфорд, ПЭ 100%, Утеплитель: Синтепон в куртку 360 г/м2, в брюках 240 г/м2, Подкладка: ПЭ 100% | F73: 1,800.00р. | H73: 2,538.00р. | I73: 1,710.00р. | J73: 1,440.00р. | L73: =F73*1.03 -> 1,854.00р. | M73: =G73*1.03 -> 0.00р. | N73: =H73*1.03 -> 2,614.14р.
C74: Кос213з | D74: Костюм утепленный "Мастер" темно-зеленый | E74: Куртка\брюки. Верх: Оксфорд, ПЭ 100%, Утеплитель: Синтепон в куртку 360 г/м2, в брюках 240 г/м2, Подкладка: ПЭ 100% | F74: 1,800.00р. | H74: 2,538.00р. | I74: 1,710.00р. | J74: 1,440.00р. | L74: 1,854.00р. | M74: 0.00р. | N74: 2,614.14р.
C75: Кос221 | D75: Костюм утепленный "Мастер 2" темно-синий | E75: Куртка\полукомбинезон. Верх: Оксфорд, ПЭ 100%, Утеплитель: Синтепон в куртку 360 г/м2, в полукомбинезоне 240 г/м2, Подкладка: ПЭ 100% | F75: 1,850.00р. | H75: 2,538.00р. | I75: 1,757.50р. | J75: 1,480.00р. | L75: 1,905.50р. | M75: 0.00р. | N75: 2,614.14р.
C76: Кос214 | D76: Костюм утепленный "Коммунальщик" | E76: Куртка\полукомбинезон. Верх: смесовая, (80% ПЭ, 20% ХЛ), Подкладка: 100% ПЭ, Утеплитель: синтепон 120 г/м2 спинка и полочка 3 слоя, рукава и брюки 2 слоя, капюшон 1 слой | F76: 1,900.00р. | H76: 2,565.00р. | I76: 1,805.00р. | J76: 1,520.00р. | L76: 1,957.00р. | M76: 0.00р. | N76: 2,641.95р.
C77: Кос211 | D77: Костюм утепленный "Мастерок" | E77: Куртка\полукомбинезон. Верх: смесовая ткань, (80% ПЭ, 20% ХЛ), 210 г/м2, МВО, Подкладка: 100% ПЭ. Утеплитель: синтепон, в куртке 360 г/м2, рукава и брюки 240 г/м2 | F77: 1,880.00р. | G77: 1,090.00р. | H77: 2,538.00р. | I77: 1,786.00р. | J77: 1,504.00р. | L77: 1,936.40р. | M77: 1,122.70р. | N77: 2,614.14р.
C78: Кос209 | D78: Костюм утепленный "Буря" СОП | E78: Куртка\полукомбинезон. Верх: смесовая (80% ПЭ, 20% ХЛ) 210 г/м2, ВО, Утеплитель: Синтепон в куртке 360 г/м2, в полукомбинезоне 240 г/м2, Подкладка: 100% ПЭ | F78: 1,950.00р. | H78: 2,632.50р. | I78: 1,852.50р. | J78: 1,560.00р. | L78: 2,008.50р. | M78: 0.00р. | N78: 2,711.48р.
C79: Кос210 | D79: Костюм утепленный "Мастерок 2" | E79: Цвет серый\красный. Куртка\полукомбинезон. Верх: смесовая ткань, (80% ПЭ, 20% ХЛ), 210 г/м2, МВО, Подкладка: 100% ПЭ. Утеплитель: синтепон, в куртке 360 г/м2, рукава и брюки 240 г/м2 | F79: 2,000.00р. | H79: =F79*1.35 -> 2,700.00р. | I79: =F79*0.95 -> 1,900.00р. | J79: =F79*0.8 -> 1,600.00р. | L79: 2,060.00р. | M79: 0.00р. | N79: 2,781.00р.
C80: Кос474 | D80: Костюм утепленный "Мастерок 2 Ультра" | E80: Куртка\полукомбинезон. Верх: смесовая ткань, (80% ПЭ, 20% ХЛ), 210 г/м2, МВО, Подкладка: 100% ПЭ. Утеплитель: синтепон, в куртке 480 г/м2, рукава и полукомбинезон 360 г/м2 | F80: 2,640.00р. | H80: =F80*1.35 -> 3,564.00р. | I80: 2,508.00р. | J80: 2,112.00р. | L80: 2,719.20р. | M80: 0.00р. | N80: 3,670.92р.
C81: Кос208 | D81: Костюм утепленный "Стимул" | E81: Куртка\полукомбинезон. Верх: ПЭ 100%, Утеплитель: Синтепон в куртку 360 г/м2, в полукомбинезоне 240 г/м2, Подкладка ПЭ 100% | F81: 2,190.00р. | H81: 2,956.50р. | I81: 2,080.50р. | J81: 1,752.00р. | L81: 2,255.70р. | M81: 0.00р. | N81: 3,045.20р.
C82: Кос207 | D82: Костюм утепленный "Стайл" | E82: Куртка\полукомбинезон. Ткань Оксфорд (100% ПЭ), Смесовая ((80% ПЭ, 20% ХЛ), 210 г/м2), Утеплитель: синтепон, в куртке 360 г/м2, в полукомбинезоне 240 г/м2, Подкладка: 100% ПЭ | F82: 2,430.00р. | H82: =F82*1.35 -> 3,280.50р. | I82: 2,308.50р. | J82: 1,944.00р. | L82: 2,502.90р. | M82: 0.00р. | N82: 3,378.92р.
C83: Кос479 | D83: Костюм утепленный "Фаворит" | E83: Куртка\полукомбинезон. Верх: смесовая ткань, (80% ПЭ, 20% ХЛ), 210 г/м2, МВО, Подкладка: 100% ПЭ. Утеплитель: синтепон, в куртке 360 г/м2, рукава и брюки 240 г/м2 | F83: 2,350.00р. | H83: =F83*1.35 -> 3,172.50р. | I83: 2,232.50р. | J83: 1,880.00р. | L83: 2,420.50р. | M83: 0.00р. | N83: 3,267.68р.
B84: SPEC | C84: Кос205 | D84: Костюм утепленный "Зима" | E84: Куртка\брюки. Верх: смесовая ткань, 65% ПЭ 35% ХЛ, 210 г/м2, Подкладка: 100% ПЭ, флис, Утеплитель: синтепон в куртке 360 г/м2, в брюках 240 г/м2, СВО: 25 и 50 мм | F84: 2,400.00р. | H84: 3,240.00р. | I84: 2,400.00р. | J84: 2,400.00р. | L84: 2,472.00р. | M84: 0.00р. | N84: 3,337.20р.
B85: SPEC | C85: Кос206 | D85: Костюм утепленный женский "Зима" | E85: Куртка\полукомбинезон. Верх: смесовая ткань, 65% ПЭ 35% ХЛ, 210 г/м2, Подкладка: 100% ПЭ, флис, Утеплитель: синтепон в куртке 360 г/м2, в брюках 240 г/м2, СВО 25 и 50 мм | F85: 2,400.00р. | G85: 1,390.00р. | H85: 3,240.00р. | I85: 2,400.00р. | J85: 2,400.00р. | L85: 2,472.00р. | M85: 1,431.70р. | N85: 3,337.20р.
C86: Кос212 | D86: Костюм утепленный "Универсал" | E86: Куртка\полукомбинезон. Верх: Твил, 100% ПЭ, Утеплитель: "Файбертек", 200 г/м2, съемный Утеплитель:из "Файбертека" 150 г/м2 | F86: 3,500.00р. | H86: 4,725.00р. | I86: =F86*0.95 -> 3,325.00р. | J86: =F86*0.8 -> 2,800.00р. | L86: 3,605.00р. | M86: 0.00р. | N86: 4,866.75р.
C87: Кос203 | D87: Костюм утепленный "Бренд" | E87: Куртка\полукомбинезон. Ткань: Смесовая (35% ХЛ 65 % ПЭ). Утеплитель Шелтер: куртка лайт 150 г/м2 и Софт 100 г/м2. Стеганая Подкладка 190 г/м2. Полукомбинезон: 250 г/м2 | F87: 4,750.00р. | H87: 6,412.50р. | I87: 4,512.50р. | J87: 3,800.00р. | L87: 4,892.50р. | M87: 0.00р. | N87: 6,604.88р.
B88: SPEC | C88: Кос202 | D88: Костюм утепленный "Эверест" | E88: Куртка\полукомбинезон. Ткань: Дюспа, 100% ПЭ, Утеплитель:"Холофайбер" 300 г/м2, ветрозащитная ткань, Подкладка: Тафета | F88: 4,600.00р. | H88: 6,210.00р. | I88: 4,500.00р. | J88: 4,400.00р. | L88: 4,738.00р. | M88: 0.00р. | N88: 6,396.30р.
B89: SPEC | C89: Кос222 | D89: Костюм утепленный "Эверест плюс" | E89: Куртка\полукомбинезон. Ткань: Оксфорд Н (100% нейлон), cats eye (100% ПЭ). Утеплитель:"Холофайбер" 300 г/м2, ветрозащитная ткань, Подкладка: Тафета | F89: 5,500.00р. | H89: 7,425.00р. | I89: 5,300.00р. | J89: 5,200.00р. | L89: 5,665.00р. | M89: 0.00р. | N89: 7,647.75р.
B90: NEW | C90: Кос201 | D90: Костюм утепленный "Викинг" | E90: Куртка\брюки. Верх: Ткань Блейзер, 100% ПЭ с мембранной (отделки WR, Antifrost). Утеплитель Холлофайбер плотность 380 гр. Подкладка: 100% ПЭ термостежка. | F90: 3,500.00р. | H90: =F90*1.35 -> 4,725.00р. | I90: =F90*0.95 -> 3,325.00р. | J90: 3,200.00р. | L90: 3,605.00р. | M90: 0.00р. | N90: 4,866.75р.
C91: Кос204 | D91: Костюм утепленный "Азимут" | E91: Куртка\полукомбинезон. Верх: смесовая ткань, 65% ПЭ 35% ХЛ, 210 г/м2, Утеплитель: синтепон 240 г/м2, подстежка ватин: куртка 120 г/м2, брюки 210 г/м2. Подкладка: 100% ПЭ. Лента СВО 20 мм | F91: 4,800.00р. | H91: 6,480.00р. | I91: 4,560.00р. | J91: 3,840.00р. | L91: 4,944.00р. | M91: 0.00р. | N91: 6,674.40р.
C92: Кос220 | D92: Костюм утепленный "Антистат" | E92: Куртка\брюки. Верх: АС ткань Гидра, 79% ХЛ, 20% ПЭ, 1% АС нить, 255 г/м2, МВО. Подкладка: 100% ПЭ, флис, Утеплитель: синтепон в куртке 360 г/м2, в брюках 240 г/м2, Лента СВО 25 мм, 50 мм | F92: 5,750.00р. | H92: 7,762.50р. | I92: 5,462.50р. | J92: 4,600.00р. | L92: 5,922.50р. | M92: 0.00р. | N92: 7,995.38р.
C93: 1.2.2 | D93: Брюки, полукомбинезоны, жилеты утепленные | E93: вернуться в Оглавление | G93: =SUBTOTAL(9,G94:G99) -> 0.00р. | L93: 0.00р. | M93: 0.00р. | N93: 0.00р.
C94: Пол202 | D94: Брюки утепленные "Стандарт" | E94: Ткань смесовая, (80% ПЭ, 20% ХЛ), 240 г/м2, МВО | F94: 850.00р. | H94: 1,147.50р. | I94: =F94*0.95 -> 807.50р. | J94: =F94*0.8 -> 680.00р. | L94: 875.50р. | M94: 0.00р. | N94: 1,181.93р.
C95: Пол201 | D95: Полукомбинезон утепленный "Стандарт" | E95: Ткань смесовая, (80% ПЭ, 20% ХЛ), 220 г/м2, МВО | F95: 920.00р. | H95: 1,242.00р. | I95: 874.00р. | J95: 736.00р. | L95: 947.60р. | M95: 0.00р. | N95: 1,279.26р.
C96: Жил202 | D96: Жилет утепленный "Профессионал" | E96: Ткань: смесовая (65% ПЭ, 35% ХЛ) 160 г/м2, Утеплитель: синтепон 180 г/м2 | F96: 510.00р. | H96: 688.50р. | I96: 484.50р. | J96: 408.00р. | L96: 525.30р. | M96: 0.00р. | N96: 709.16р.
C97: Жил206 | D97: Жилет утепленный мужской "Амур" | E97: ткань курточная Амур с мембранным покрытием 100% полиэфир, утеплитель синтепон, подкладка флис | F97: 1,080.00р. | H97: =F97*1.35 -> 1,458.00р. | I97: =F97*0.95 -> 1,026.00р. | J97: =F97*0.8 -> 864.00р. | L97: 1,112.40р. | M97: 0.00р. | N97: 1,501.74р.
C98: Жил205 | D98: Жилет утепленный женский "Амур" | E98: ткань курточная Амур с мембранным покрытием 100% полиэфир, утеплитель синтепон, подкладка флис | F98: 1,080.00р. | H98: 1,458.00р. | I98: 1,026.00р. | J98: 864.00р. | L98: 1,112.40р. | M98: 0.00р. | N98: 1,501.74р.
C99: Жил201 | D99: Жилет утепленный "Бренд" | E99: Ткань: смесовая (65% ПЭ, 35% ХЛ) 210 г/м2, Утеплитель: синтепон 200 г/м2 | F99: 1,000.00р. | H99: 1,350.00р. | I99: =F99*0.95 -> 950.00р. | J99: 800.00р. | L99: 1,030.00р. | M99: 0.00р. | N99: 1,390.50р.
B100: 1.3 | C100: Трикотаж | E100: вернуться в Оглавление | G100: =SUBTOTAL(9,G101:G108) -> 0.00р. | L100: 0.00р. | M100: 0.00р. | N100: 0.00р.
C101: Трик105 | D101: Футболка трикотажная | E101: Ткань: полотно трикотажное 100%ХЛ,, 160 г/м2 | F101: 220.00р. | H101: 297.00р. | I101: =F101*0.95 -> 209.00р. | J101: 176.00р. | L101: 226.60р. | M101: 0.00р. | N101: 305.91р.
C102: Трик106 | D102: Футболка трикотажная камуфлированная | E102: Ткань: полотно трикотажное 100%ХЛ, 160 г/м2 | F102: 285.00р. | H102: 384.75р. | I102: 270.75р. | J102: 228.00р. | L102: 293.55р. | M102: 0.00р. | N102: 396.29р.
C103: Трик103 | D103: Рубашка "Поло" короткий рукав | E103: Ткань: полотно трикотажное 100%ХЛ, 190 г/м2 | F103: 520.00р. | H103: 702.00р. | I103: 494.00р. | J103: 416.00р. | L103: 535.60р. | M103: 0.00р. | N103: 723.06р.
C104: Трик104 | D104: Рубашка "Поло" длинный рукав | E104: Ткань: полотно трикотажное 100%ХЛ, 190 г/м2 | F104: 580.00р. | H104: 783.00р. | I104: 551.00р. | J104: 464.00р. | L104: 597.40р. | M104: 0.00р. | N104: 806.49р.
C105: Трик110 | D105: Джемпер форменный без рукавов | E105: Ткань: шерсть 30%, акрил 70% | F105: 770.00р. | H105: 1,039.50р. | I105: 731.50р. | J105: 616.00р. | L105: 793.10р. | M105: 0.00р. | N105: 1,070.69р.
C106: Трик101 | D106: Джемпер форменный | E106: Ткань: шерсть 30%, акрил 70% | F106: 1,065.00р. | H106: 1,437.75р. | I106: 1,011.75р. | J106: 852.00р. | L106: 1,096.95р. | M106: 0.00р. | N106: 1,480.88р.
C107: Трик204 | D107: Белье трикотажное | E107: Ткань: полотно трикотажное 100%ХЛ, 180 г/м2 | F107: 475.00р. | H107: 641.25р. | I107: 451.25р. | J107: 380.00р. | L107: 489.25р. | M107: 0.00р. | N107: 660.49р.
C108: Трик203 | D108: Белье трикотажное утепленное | E108: Ткань: полотно трикотажное с начесом 100%ХЛ, 250 г/м2 | F108: 649.00р. | H108: 876.15р. | I108: 616.55р. | J108: 519.20р. | L108: 668.47р. | M108: 0.00р. | N108: 902.43р.
B109: 1.6 | C109: Головные уборы | E109: вернуться в Оглавление | G109: 0.00р. | L109: 0.00р. | M109: 0.00р. | N109: 0.00р.
C110: Гол101 | D110: Бейсболка | E110: Ткань: саржа (100%ХЛ,) 250 г/м2 | F110: 140.00р. | H110: 189.00р. | I110: =F110*0.95 -> 133.00р. | J110: 112.00р. | L110: 144.20р. | M110: 0.00р. | N110: 194.67р.
C111: Охр301 | D111: Кепка охранника "Нато" | E111: Ткань: смесовая | F111: 156.00р. | H111: 210.60р. | I111: 148.20р. | J111: 124.80р. | L111: 160.68р. | M111: 0.00р. | N111: 216.92р.
C112: Охр302 | D112: Кепка охранника | E112: Ткань: смесовая | F112: 115.00р. | H112: 155.25р. | I112: 109.25р. | J112: 92.00р. | L112: 118.45р. | M112: 0.00р. | N112: 159.91р.
B113: NEW | C113: Ох101ц | D113: Панама Раптор цифра 301-01 | E113: Ткань: смесовая | F113: 300.00р. | H113: 405.00р. | I113: 285.00р. | J113: 240.00р. | L113: 309.00р. | M113: 0.00р. | N113: 417.15р.
C114: Гол202 | D114: Шапка зимняя трикотажная | E114: Ткань: полушерстяная (30% шерсть, 70 % акрил) | F114: 110.00р. | H114: 148.50р. | I114: 104.50р. | J114: 88.00р. | L114: 113.30р. | M114: 0.00р. | N114: 152.96р.
C115: Гол203 | D115: Шапка зимняя трикотажная Тинсулейт | E115: Ткань: трикотажное полотно (100% акрил), утеплитель Тинсулейт, подкладка флис (100% полиэстер) | F115: 253.00р. | H115: 341.55р. | I115: 240.35р. | J115: 202.40р. | L115: 260.59р. | M115: 0.00р. | N115: 351.80р.
C116: Гол206 | D116: Шапка-ушанка "Стужа" (Енот) | E116: Ткань: Таслан (внешний), флис (внутренний), искусственный мех "Енот" | F116: 595.00р. | H116: 803.25р. | I116: 565.25р. | J116: 476.00р. | L116: 612.85р. | M116: 0.00р. | N116: 827.35р.
C117: Гол205 | D117: Шапка-маска "Балаклава" | E117: Ткань: флис, 280 г/м2 | F117: 245.00р. | H117: 330.75р. | I117: 232.75р. | J117: 196.00р. | L117: 252.35р. | M117: 0.00р. | N117: 340.67р.
C118: Гол204 | D118: Подшлемник ватный | E118: Ткань: 100%ХЛ,, Утеплитель: ватин | F118: 129.00р. | H118: 174.15р. | I118: 122.55р. | J118: 103.20р. | L118: 132.87р. | M118: 0.00р. | N118: 179.37р.
C119: Гол103 | D119: Подшлемник трикотажный | E119: Ткань: 30% шерсть, 70% акрил | F119: 108.00р. | H119: 145.80р. | I119: 102.60р. | J119: 86.40р. | L119: 111.24р. | M119: 0.00р. | N119: 150.17р.
C120: Гол108 | D120: Подшлемник спилковый | E120: Спилок КРС | F120: 760.00р. | H120: =F120*1.35 -> 1,026.00р. | I120: =F120*0.95 -> 722.00р. | J120: =F120*0.8 -> 608.00р. | L120: 782.80р. | M120: 0.00р. | N120: 1,056.78р.
E121: вернуться в Оглавление

Sheet Одежда со спецсвойствами
B2: ПРАЙС | D2: от | E2: =Оглавление!I2 -> 2019-11-26
H3: 115% | I3: 10% | J3: 15% | N3: 115%
A4: Сегмент | B4: Статус | C4: Код | D4: Наименование | E4: Описание | F4: Цена | G4: Цена | H4: Розничная цена (менее 20 т.р) | I4: Цена оптовика | J4: Мин. Цена оптовика | L4: Цена | M4: Цена | N4: Розничная цена (менее 20 т.р)
B5: 2 | C5: ОДЕЖДА СО СПЕЦИАЛЬНЫМИ СВОЙСТВАМИ
B6: 2.1 | C6: Сигнальная одежда | E6: вернуться в Оглавление
C7: Сиг102 | D7: Костюм "Дорожник-2" | E7: Куртка\полукомбинезон. Ткань:смесовая (80% ПЭ, 20% ХЛ) 220 г/м2, МВО | F7: 890.00р. | H7: =F7*1.35 -> 1,201.50р. | I7: =F7*0.95 -> 845.50р. | J7: =F7*0.8 -> 712.00р. | L7: =F7*1.03 -> 916.70р. | M7: =G7*1.03 -> 0.00р. | N7: 1,237.55р.
C8: Сиг101 | D8: Костюм "Спектр" | E8: Куртка\полукомбинезон. Ткань: смесовая (80% ПЭ, 20% ХЛ) 210 г/м2, ВО | F8: 1,120.00р. | H8: =F8*1.35 -> 1,512.00р. | I8: =F8*0.95 -> 1,064.00р. | J8: 890.00р. | L8: =F8*1.03 -> 1,153.60р. | M8: =G8*1.03 -> 0.00р. | N8: =H8*1.03 -> 1,557.36р.
C9: Сиг203 | D9: Костюм утепленный "Дорожник" | E9: Куртка\полукомбинезон. Верх: смесовая (80% ПЭ, 20% ХЛ) 220 г/м2, МВО, Утеплитель: синтепон 300 г/м2, Подкладка: 100% ПЭ | F9: 2,100.00р. | H9: 2,835.00р. | I9: 1,995.00р. | J9: =F9*0.8 -> 1,680.00р. | L9: 2,163.00р. | M9: 0.00р. | N9: 2,920.05р.
C10: Сиг202 | D10: Костюм утепленный "Спектр 2" | E10: Куртка\полукомбинезон.Верх: Оксфорд (100% ПЭ, 150 г/м2) 130 г/м2, Утеплитель: тройной слой синтепона, Подкладка: 100% нейлон | F10: 2,350.00р. | H10: 3,172.50р. | I10: 2,232.50р. | J10: 1,880.00р. | L10: 2,420.50р. | M10: 0.00р. | N10: 3,267.68р.
C11: Сиг104 | D11: Куртка-ветровка "Сигнал" | E11: Ткань: 100% ПЭ | F11: 590.00р. | H11: 796.50р. | I11: 560.50р. | J11: 472.00р. | L11: 607.70р. | M11: 0.00р. | N11: 820.40р.
B12: NEW | C12: Жил067 | D12: Жилет сигнальный "Сигнал Лайт" | E12: Ткань: трикотажное полотно 100% ПЭ. плотность 100 гр\м2, лента 250 кд\лкм2 Цвет: Оранжевый | F12: 114.00р. | H12: 153.90р. | I12: 108.30р. | J12: 91.20р. | L12: 117.42р. | M12: 0.00р. | N12: 158.52р.
B13: NEW | C13: Жил068 | D13: Жилет сигнальный "Сигнал Лайт" | E13: Ткань: трикотажное полотно 100% ПЭ. плотность 100 гр\м2, лента 250 кд\лкм2 Цвет: Лимонный | F13: 114.00р. | H13: 153.90р. | I13: 108.30р. | J13: 91.20р. | L13: 117.42р. | M13: 0.00р. | N13: 158.52р.
B14: NEW | C14: Жил069, Жил072 | D14: Жилет сигнальный "Сигнал 1, 2" | E14: Ткань: трикотажное полотно 100% ПЭ. плотность 125 гр\м2, лента 400 кд\лкм2 Цвет: Оранжевый. ГОСТ | F14: 160.00р. | H14: =F14*1.35 -> 216.00р. | I14: =F14*0.95 -> 152.00р. | J14: =F14*0.8 -> 128.00р. | L14: 164.80р. | M14: 0.00р. | N14: 222.48р.
B15: NEW | C15: Жил070 | D15: Жилет сигнальный "Сигнал 1" | E15: Ткань: трикотажное полотно 100% ПЭ. плотность 125 гр\м2, лента 400 кд\лкм2 Цвет: Лимонный. ГОСТ | F15: 160.00р. | H15: 216.00р. | I15: 152.00р. | J15: 128.00р. | L15: 164.80р. | M15: 0.00р. | N15: 222.48р.
B16: NEW | C16: Жил074 | D16: Жилет сигнальный "Сигнал 3" | E16: Ткань: трикотажное полотно 100% ПЭ. плотность 125 гр\м2, лента 400 кд\лкм2 Цвет: Оранжевый. ГОСТ | F16: 170.00р. | G16: 183.00р. | H16: 229.50р. | I16: 161.50р. | J16: 150.00р. | L16: 175.10р. | M16: 188.49р. | N16: 236.39р.
B17: NEW | C17: Жил076 | D17: Жилет сигнальный "Сигнал 3" | E17: Ткань: трикотажное полотно 100% ПЭ. плотность 125 гр\м2, лента 400 кд\лкм2 Цвет: Лимонный. ГОСТ | F17: 170.00р. | G17: 189.00р. | H17: 229.50р. | I17: 161.50р. | J17: 150.00р. | L17: 175.10р. | M17: 194.67р. | N17: 236.39р.
C18: Жил106, 107 | D18: Жилет сигнальный "Спектр Лайт 1, 2" | E18: Ткань: трикотажное полотно 100% ПЭ. плотность 125 гр\м2 Цвет: Оранжевый. МИНПРОМТОРГ | F18: 170.00р. | H18: 229.50р. | I18: =F18*0.95 -> 161.50р. | J18: =F18*0.8 -> 136.00р. | L18: 175.10р. | M18: 0.00р. | N18: 236.39р.
C19: Жил108o | D19: Жилет сигнальный "Спектр Лайт 3" | E19: Ткань: трикотажное полотно 100% ПЭ. плотность 125 гр\м2 Цвет: Оранжевый. МИНПРОМТОРГ | F19: 198.00р. | G19: 183.00р. | H19: 267.30р. | I19: 188.10р. | J19: 158.40р. | L19: 203.94р. | M19: 188.49р. | N19: 275.32р.
C20: Жил108 | D20: Жилет сигнальный "Спектр Лайт 3" | E20: Ткань: трикотажное полотно 100% ПЭ. плотность 125 гр\м2. Цвет: Лимонный. МИНПРОМТОРГ | F20: 198.00р. | G20: 189.00р. | H20: 267.30р. | I20: 188.10р. | J20: 158.40р. | L20: 203.94р. | M20: 194.67р. | N20: 275.32р.
C21: Жил104 | D21: Жилет сигнальный "РЖД" | E21: Ткань: ПЭ 100%, 150 г/м2 | F21: 320.00р. | H21: =F21*1.35 -> 432.00р. | I21: 304.00р. | J21: 256.00р. | L21: 329.60р. | M21: 0.00р. | N21: 444.96р.
B22: 2.2 | C22: Влагозащитная одежда | E22: вернуться в Оглавление | L22: 0.00р. | M22: 0.00р. | N22: 0.00р.
B23: SPEC | C23: Вл203 | D23: Костюм влагозащитный | E23: Куртка/брюки. Ткань: нейлон 100%, ПВХ покрытие | F23: 640.00р. | H23: 864.00р. | I23: =F23*0.97 -> 620.80р. | J23: =F23*0.93 -> 595.20р. | L23: 659.20р. | M23: 0.00р. | N23: 889.92р.
B24: SPEC | C24: Вл202о | D24: Костюм влагозащитный "ГРОЗА" оранж с СОП | E24: Куртка/брюки. Ткань: нейлон 100%, ПВХ покрытие | F24: 1,030.00р. | H24: 1,390.50р. | I24: 999.10р. | J24: 957.90р. | L24: 1,060.90р. | M24: 0.00р. | N24: 1,432.22р.
B25: SPEC | C25: Вл101 | D25: Костюм влагозащитный "Poseidon WPL" | E25: Плащевая ткань с ПВХ покрытием, 225 г/м2 | F25: 960.00р. | H25: 1,296.00р. | I25: 931.20р. | J25: 892.80р. | L25: 988.80р. | M25: 0.00р. | N25: 1,334.88р.
B26: SPEC | C26: Вл202Л | D26: Костюм влагозащитный "ГРОЗА" лимон с СОП | E26: Куртка/брюки. Ткань: нейлон 100%, ПВХ покрытие | F26: 1,030.00р. | H26: 1,390.50р. | I26: 999.10р. | J26: 957.90р. | L26: 1,060.90р. | M26: 0.00р. | N26: 1,432.22р.
B27: SPEC | C27: Вл206 | D27: Костюм влагозащитный "Рыбак" (КМФ) | E27: Ткань: 100% ПЭ | F27: 963.00р. | H27: 1,300.05р. | I27: 934.11р. | J27: 895.59р. | L27: 991.89р. | M27: 0.00р. | N27: 1,339.05р.
B28: SPEC | C28: Вл103 | D28: Костюм влагозащитный "Extra-Vision WPL" с СОП | E28: Плащевая ткань с ПВХ покрытием, 225 г/м2 | F28: 1,135.00р. | H28: 1,532.25р. | I28: 1,100.95р. | J28: 1,055.55р. | L28: 1,169.05р. | M28: 0.00р. | N28: 1,578.22р.
B29: SPEC | C29: Вл102 | D29: Костюм влагозащитный "Hunter WPL" (КМФ) | E29: Плащевая ткань с ПВХ покрытием, 225 г/м2 | F29: 971.00р. | H29: 1,310.85р. | I29: 941.87р. | J29: 903.03р. | L29: 1,000.13р. | M29: 0.00р. | N29: 1,350.18р.
B30: SPEC | C30: Вл201 | D30: Костюм влагозащитный "Рокон-Букса" | E30: Ткань: прорезиненная, 550 г/м2 | F30: 1,380.00р. | H30: 1,863.00р. | I30: 1,338.60р. | J30: 1,283.40р. | L30: 1,421.40р. | M30: 0.00р. | N30: 1,918.89р.
B31: SPEC | C31: Вл105 | D31: Костюм рыбака "Fisherman's WPL" с прокл.швами | E31: Плащевая ткань с ПВХ покрытием, 500 г/м2 | F31: 1,600.00р. | H31: 2,160.00р. | I31: 1,552.00р. | J31: 1,488.00р. | L31: 1,648.00р. | M31: 0.00р. | N31: 2,224.80р.
B32: SPEC | C32: Сиг104 | D32: Куртка-ветровка "Сигнал" | E32: Ткань: 100% ПЭ | F32: 482.00р. | H32: 650.70р. | I32: 467.54р. | J32: 448.26р. | L32: 496.46р. | M32: 0.00р. | N32: 670.22р.
B33: SPEC | C33: Вл104 | D33: Куртка влагозащитная "Extra-Vision WPL" с СОП | E33: Плащевая ткань с ПВХ покрытием, 225 г/м2 | F33: 767.00р. | H33: 1,035.45р. | I33: 743.99р. | J33: 713.31р. | L33: 790.01р. | M33: 0.00р. | N33: 1,066.51р.
B34: SPEC | C34: Вл207 | D34: Куртка-ветровка "Циклон" | E34: Ткань: Оксфорд,100% ПЭ, ПУ покрытие | F34: 670.00р. | H34: 904.50р. | I34: 649.90р. | J34: 623.10р. | L34: 690.10р. | M34: 0.00р. | N34: 931.64р.
B35: SPEC | C35: Вл307 | D35: Плащ дождевик | E35: Ткань: ПВД | F35: 63.00р. | H35: 85.05р. | I35: 61.11р. | J35: 58.59р. | L35: 64.89р. | M35: 0.00р. | N35: 87.60р.
B36: SPEC | C36: Вл303 | D36: Плащ влагозащитный | E36: Ткань: нейлон 100%, ПВХ покрытие | F36: 470.00р. | H36: 634.50р. | I36: 455.90р. | J36: 437.10р. | L36: 484.10р. | M36: 0.00р. | N36: 653.54р.
B37: SPEC | C37: Вл311 | D37: Плащ влагозащитный КМФ | E37: Ткань: нейлон 100%, ПВХ покрытие | F37: 500.00р. | H37: =F37*1.35 -> 675.00р. | I37: 485.00р. | J37: 465.00р. | L37: 515.00р. | M37: 0.00р. | N37: 695.25р.
B38: NEW | C38: Вл305з | D38: Плащ влагозащитный нейлон с ПВХ "Тайфун" | E38: Ткань: нейлон 100%, ПВХ покрытие. Цвет зеленый | F38: 570.00р. | H38: 769.50р. | I38: =F38*0.97 -> 552.90р. | J38: =F38*0.93 -> 530.10р. | L38: 587.10р. | M38: 0.00р. | N38: 792.59р.
B39: NEW | C39: Вл305с | D39: Плащ влагозащитный нейлон с ПВХ "Тайфун" | E39: Ткань: нейлон 100%, ПВХ покрытие. Цвет синий | F39: 570.00р. | H39: 769.50р. | I39: 552.90р. | J39: 530.10р. | L39: 587.10р. | M39: 0.00р. | N39: 792.59р.
B40: NEW | C40: Вл304л | D40: Плащ влагозащитный сигнальный "Тайфун" с СОП | E40: Ткань: нейлон 100%, ПВХ покрытие. Цвет лимонный с СОП | F40: 870.00р. | H40: 1,174.50р. | I40: 843.90р. | J40: 809.10р. | L40: 896.10р. | M40: 0.00р. | N40: 1,209.74р.
B41: NEW | C41: Вл304о | D41: Плащ влагозащитный сигнальный "Тайфун" с СОП | E41: Ткань: нейлон 100%, ПВХ покрытие. Цвет оранжевый с СОП | F41: 870.00р. | H41: 1,174.50р. | I41: 843.90р. | J41: 809.10р. | L41: 896.10р. | M41: 0.00р. | N41: 1,209.74р.
B42: SPEC | C42: Вл106 | D42: Плащ влагозащитный "Poseidon WPL" | E42: Плащевая ткань с ПВХ покрытием, 225 г/м2 | F42: 560.00р. | H42: 756.00р. | I42: 543.20р. | J42: 520.80р. | L42: 576.80р. | M42: 0.00р. | N42: 778.68р.
B43: SPEC | C43: Вл107 | D43: Плащ влагозащитный "Hunter WPL" (КМФ) | E43: Плащевая ткань с ПВХ покрытием, 225 г/м2 | F43: 693.00р. | H43: 935.55р. | I43: 672.21р. | J43: 644.49р. | L43: 713.79р. | M43: 0.00р. | N43: 963.62р.
B44: SPEC | C44: Вл302Л | D44: Плащ влагозащитный "ГРОЗА" лимон с СОП | E44: Ткань: нейлон 100%, ПВХ покрытие | F44: 768.00р. | H44: 1,036.80р. | I44: 744.96р. | J44: 714.24р. | L44: 791.04р. | M44: 0.00р. | N44: 1,067.90р.
B45: SPEC | C45: Вл302О | D45: Плащ влагозащитный "ГРОЗА" оранж с СОП | E45: Ткань: нейлон 100%, ПВХ покрытие | F45: 768.00р. | H45: 1,036.80р. | I45: 744.96р. | J45: 714.24р. | L45: 791.04р. | M45: 0.00р. | N45: 1,067.90р.
B46: SPEC | C46: Вл108 | D46: Плащ влагозащитный "Extra-Vision WPL" с СОП | E46: Плащевая ткань с ПВХ покрытием, 225 г/м2 | F46: 830.00р. | H46: 1,120.50р. | I46: 805.10р. | J46: 771.90р. | L46: 854.90р. | M46: 0.00р. | N46: 1,154.12р.
B47: SPEC | C47: Вл308 | D47: Нарукавники | E47: Ткань: прорезиненная мед. Клеенка | F47: 117.00р. | H47: 157.95р. | I47: 113.49р. | J47: 108.81р. | L47: 120.51р. | M47: 0.00р. | N47: 162.69р.
B48: SPEC | C48: Вл110 | D48: Нарукавники рыбообработчика "Fisherman's WPL" | E48: Плащевая ткань с ПВХ покрытием, 500 г/м2 | F48: 147.00р. | H48: 198.45р. | I48: 142.59р. | J48: 136.71р. | L48: 151.41р. | M48: 0.00р. | N48: 204.40р.
B49: SPEC | C49: Вл309 | D49: Фартук влагостойкий | E49: Ткань: прорезиненная диагональ | F49: 215.00р. | H49: 290.25р. | I49: 208.55р. | J49: 199.95р. | L49: 221.45р. | M49: 0.00р. | N49: 298.96р.
B50: SPEC | C50: Вл310 | D50: Фартук влагостойкий | E50: Ткань: прорезиненная мед. Клеенка | F50: 127.00р. | H50: 171.45р. | I50: 123.19р. | J50: 118.11р. | L50: 130.81р. | M50: 0.00р. | N50: 176.59р.
B51: SPEC | C51: Вл109 | D51: Фартук рыбообработчика "Fisherman's WPL" | E51: Плащевая ткань с ПВХ покрытием, 500 г/м2 | F51: 322.00р. | H51: 434.70р. | I51: 312.34р. | J51: 299.46р. | L51: 331.66р. | M51: 0.00р. | N51: 447.74р.
B52: 2.3 | C52: Одежда для защиты от повышенных температур | E52: вернуться в Оглавление | L52: 0.00р. | M52: 0.00р. | N52: 0.00р.
C53: Теп101 | D53: Костюм сварщика утепленный "Премиум" 2 класса защиты | E53: Куртка\брюки. Ткань огнезащитная ГЕФЕСТ, 100%ХЛ, 420 г/м2, сатин 4/1, огнестойкая обработка, огнезащитная СВО лента XM-FireLine. Утеплитель: Шелтор FR огнезащитный 150 г/м2, 3 слоя | F53: 9,820.00р. | H53: 13,257.00р. | I53: =F53*0.95 -> 9,329.00р. | J53: =F53*0.8 -> 7,856.00р. | L53: 10,114.60р. | M53: 0.00р. | N53: 13,654.71р.
B54: NEW | C54: Теп122 | D54: Костюм сварщика утепленный "Прометей" 3 класса защиты | E54: Куртка\брюки. Ткань огнезащитная ГЕФЕСТ, 100%ХЛ, 500 г/м2, сатин 4/1, огнестойкая обработка, огнезащитная СВО лента XM-FireLine. Утеплитель: Шелтор FR огнезащитный 150 г/м2, 3 слоя | F54: 9,950.00р. | H54: =F54*1.35 -> 13,432.50р. | I54: 9,452.50р. | J54: 7,960.00р. | L54: 10,248.50р. | M54: 0.00р. | N54: 13,835.48р.
B55: NEW | C55: Теп123 | D55: Костюм сварщика "Прометей" 3 класса защиты | E55: Куртка\брюки. Ткань: огнезащитная ГЕФЕСТ, 100%ХЛ, 500 г/м2, сатин 4/1, огнестойкая обработка, огнезащитная СВО лента XM-FireLine | F55: 7,550.00р. | H55: 10,192.50р. | I55: 7,172.50р. | J55: 6,040.00р. | L55: 7,776.50р. | M55: 0.00р. | N55: 10,498.28р.
C56: Теп102 | D56: Костюм сварщика "Премиум" 2 класса защиты | E56: Куртка\брюки. Ткань: огнезащитная ГЕФЕСТ, 100%ХЛ, 420 г/м2, сатин 4/1, огнестойкая обработка, огнезащитная СВО лента XM-FireLine | F56: 6,110.00р. | H56: 8,248.50р. | I56: 5,804.50р. | J56: 4,888.00р. | L56: 6,293.30р. | M56: 0.00р. | N56: 8,495.96р.
C57: Теп121 | D57: Костюм огнестойкий "Титан Комфорт" 1 класса защиты | E57: Куртка\брюки. Ткань: огнезащитная МАДЕЙРА, 100%ХЛ, 320 г/м2, твилл 3/1, огнестойкая обработка, огнезащитная СВО лента XM-FireLine | F57: 4,420.00р. | H57: 5,967.00р. | I57: 4,199.00р. | J57: 3,536.00р. | L57: 4,552.60р. | M57: 0.00р. | N57: 6,146.01р.
C58: Теп105 | D58: Костюм сварщика цельноспилковый | E58: Куртка\брюки. Ткань: кожевенный спилок КРС | F58: 5,195.00р. | H58: 7,013.25р. | I58: 4,935.25р. | J58: 4,156.00р. | L58: 5,350.85р. | M58: 0.00р. | N58: 7,223.65р.
C59: Теп104 | D59: Костюм сварщика утепленный со спилком 2,3 | E59: Куртка\брюки. Ткань: Брезент (51% лен, 49% ХЛ), 480 г/м2, ОП | F59: 3,780.00р. | H59: 5,103.00р. | I59: 3,591.00р. | J59: 3,365.00р. | L59: 3,893.40р. | M59: 0.00р. | N59: 5,256.09р.
B60: SPEC | C60: Теп130 | D60: Костюм сварщика утепленный со спилком 2,6 ЛЮКС | E60: Куртка\брюки. Ткань: Брезент (51% лен, 49% ХЛ), 480 г/м2, ОП | F60: 3,780.00р. | H60: =F60*1.35 -> 5,103.00р. | I60: 3,600.00р. | J60: 3,365.00р. | L60: 3,893.40р. | M60: 0.00р. | N60: 5,256.09р.
C61: Теп112 | D61: Костюм суконный жаростойкий ТУ | E61: Куртка\брюки. Ткань: Сукно (90%шерсть, 10% ПА) 760 г/м2 | F61: 3,770.00р. | H61: 5,089.50р. | I61: 3,581.50р. | J61: 3,016.00р. | L61: 3,883.10р. | M61: 0.00р. | N61: 5,242.19р.
C62: Теп103 | D62: Костюм сварщика со спилком 2,3 | E62: Куртка\брюки. Ткань: Брезент (51% лен, 49% ХЛ), 480 г/м2, ОП, спилок КРС | F62: 2,600.00р. | H62: 3,510.00р. | I62: 2,470.00р. | J62: 2,080.00р. | L62: 2,678.00р. | M62: 0.00р. | N62: 3,615.30р.
C63: Теп107 | D63: Костюм сварщика утепленный брезентовый | E63: Куртка\брюки. Ткань: Брезент (51% лен, 49% ХЛ), 480 г/м2, ОП | F63: 2,630.00р. | H63: 3,550.50р. | I63: 2,498.50р. | J63: 2,104.00р. | L63: 2,708.90р. | M63: 0.00р. | N63: 3,657.02р.
C64: Теп110 | D64: Костюм жаростойкий молескиновый ГОСТ | E64: Куртка\брюки. Ткань: Молескин, 100%ХЛ,, ГОСТ | F64: 2,100.00р. | H64: 2,835.00р. | I64: 1,995.00р. | J64: 1,680.00р. | L64: 2,163.00р. | M64: 0.00р. | N64: 2,920.05р.
C65: Теп111 | D65: Костюм жаростойкий молескиновый ТУ | E65: Куртка\брюки. Ткань: Молескин, 100%ХЛ, | F65: 1,550.00р. | H65: 2,092.50р. | I65: 1,472.50р. | J65: 1,240.00р. | L65: 1,596.50р. | M65: 0.00р. | N65: 2,155.28р.
B66: NEW | C66: Теп120 | D66: Костюм жаростойкий молескиновый ГОСТ NEW | E66: Куртка\брюки. Ткань: Молескин, 100%ХЛ, | F66: 2,180.00р. | H66: =F66*1.35 -> 2,943.00р. | I66: =F66*0.95 -> 2,071.00р. | J66: =F66*0.8 -> 1,744.00р. | L66: 2,245.40р. | M66: 0.00р. | N66: 3,031.29р.
B67: SPEC | C67: Теп129 | D67: Костюм сварщика со спилком 2,3 ЛЮКС | E67: Куртка\брюки. Ткань: Брезент (51% лен, 49% ХЛ), 480 г/м2, ОП, спилок КРС | F67: 2,600.00р. | H67: =F67*1.35 -> 3,510.00р. | I67: =F67*0.95 -> 2,470.00р. | J67: 2,272.00р. | L67: 2,678.00р. | M67: 0.00р. | N67: 3,615.30р.
C68: Теп106 | D68: Костюм сварщика брезентовый | E68: Куртка\брюки. Ткань: Брезент (51% лен, 49% ХЛ), 480 г/м2, ОП | F68: 1,155.00р. | H68: 1,559.25р. | I68: 1,097.25р. | J68: 924.00р. | L68: 1,189.65р. | M68: 0.00р. | N68: 1,606.03р.
C69: Теп115 | D69: Фартук цельноспилковый | E69: Ткань: кожевенный спилок КРС цельнокроенный | F69: 850.00р. | H69: 1,147.50р. | I69: 807.50р. | J69: 680.00р. | L69: 875.50р. | M69: 0.00р. | N69: 1,181.93р.
C70: Теп116 | D70: Фартук брезентовый 420г/м | E70: Ткань: Ткань: Брезент (51% лен, 49% ХЛ), 420 г/м2, ОП | F70: 180.00р. | H70: 243.00р. | I70: 171.00р. | J70: 144.00р. | L70: 185.40р. | M70: 0.00р. | N70: 250.29р.
C71: Теп118 | D71: Нарукавники спилковые | E71: Ткань: кожевенный спилок КРС | F71: 620.00р. | H71: 837.00р. | I71: 589.00р. | J71: 496.00р. | L71: 638.60р. | M71: 0.00р. | N71: 862.11р.
C72: Теп119 | D72: Нарукавники брезентовые | E72: Ткань: Ткань: Брезент (51% лен, 49% ХЛ), 480 г/м2, ОП. Фиксация: резинка | F72: 125.00р. | H72: 168.75р. | I72: 118.75р. | J72: 100.00р. | L72: =F72*1.03 -> 128.75р. | M72: =G72*1.03 -> 0.00р. | N72: =H72*1.03 -> 173.81р.
C73: ПР120 | D73: Наколенники Титан-1 | F73: 182.00р. | H73: 245.70р. | I73: 172.90р. | J73: 145.60р. | L73: 187.46р. | M73: 0.00р. | N73: 253.07р.
B74: 2.4 | C74: Противоэнцефалитная одежда | E74: вернуться в Оглавление | L74: 0.00р. | M74: 0.00р. | N74: 0.00р.
C75: Био102 | D75: Костюм противоэнцефалитный КМФ | E75: Куртка\брюки. Ткань: смесовая (65%ПЭ, 35%ХЛ), 210 г/м2, КМФ, ВО. | F75: 1,110.00р. | H75: 1,498.50р. | I75: =F75*0.95 -> 1,054.50р. | J75: =F75*0.8 -> 888.00р. | L75: 1,143.30р. | M75: 0.00р. | N75: 1,543.46р.
C76: Био101 | D76: Костюм противоэнцефалитный палатка | E76: Куртка\брюки. Ткань: "Палатка" 100%ХЛ,, 270 г/м2 | F76: 1,100.00р. | H76: 1,485.00р. | I76: 1,045.00р. | J76: 880.00р. | L76: 1,133.00р. | M76: 0.00р. | N76: 1,529.55р.
B77: 2.5 | C77: Одежда для защиты от кислот, нефти и других агрессивных сред | E77: вернуться в Оглавление | L77: 0.00р. | M77: 0.00р. | N77: 0.00р.
C78: Ar204 | D78: Костюм КЩС (без берета) | E78: Куртка\брюки. Ткань Лавсан 100%, 245 г/м2 | F78: 1,135.00р. | H78: 1,532.25р. | I78: =F78*0.95 -> 1,078.25р. | J78: =F78*0.8 -> 908.00р. | L78: 1,169.05р. | M78: 0.00р. | N78: 1,578.22р.
C79: Ar201 | D79: Костюм Л-1 | F79: 3,330.00р. | H79: 4,495.50р. | I79: 3,163.50р. | J79: 2,664.00р. | L79: 3,429.90р. | M79: 0.00р. | N79: 4,630.37р.
C80: Ar203 | D80: Костюм суконный КЩС ТУ | E80: Куртка\брюки. Ткань: сукно 760 г/м2 (90%шерсть, 10%ПА) | F80: 2,300.00р. | H80: 3,105.00р. | I80: 2,185.00р. | J80: 1,840.00р. | L80: 2,369.00р. | M80: 0.00р. | N80: 3,198.15р.
C81: Ar207 | D81: Фартук КЩС "Сhemical" К80Щ50 "WATERPROF" тип В | E81: Ткань: прорезиненная | F81: 305.00р. | H81: 411.75р. | I81: 289.75р. | J81: 244.00р. | L81: 314.15р. | M81: 0.00р. | N81: 424.10р.
C82: Ar205 | D82: Халат женский КЩС | E82: Ткань: Лавсан 100%, 245 г/м2 | F82: 770.00р. | H82: =F82*1.35 -> 1,039.50р. | I82: 731.50р. | J82: 616.00р. | L82: 793.10р. | M82: 0.00р. | N82: 1,070.69р.
C83: Ar206 | D83: Халат мужской КЩС | E83: Ткань: Лавсан 100%, 245 г/м2 | F83: 770.00р. | H83: 1,039.50р. | I83: 731.50р. | J83: 616.00р. | L83: 793.10р. | M83: 0.00р. | N83: 1,070.69р.
B84: NEW | C84: Ar209 | D84: Нарукавник ПВХ КЩС | F84: 178.00р. | H84: =F84*1.35 -> 240.30р. | I84: =F84*0.95 -> 169.10р. | J84: =F84*0.8 -> 142.40р. | L84: 183.34р. | M84: 0.00р. | N84: 247.51р.
B85: 2.6 | C85: Одноразовая одежда | E85: вернуться в Оглавление | L85: 0.00р. | M85: 0.00р. | N85: 0.00р.
C86: Од205 | D86: Шапочка одноразовая «Шарлотта» | E86: Ткань: СМС 12, цвет белый | F86: 2.80р. | H86: 3.78р. | I86: =F86*0.95 -> 2.66р. | J86: =F86*0.8 -> 2.24р. | L86: 2.88р. | M86: 0.00р. | N86: 3.89р.
C87: Од204 | D87: Накидка посетителя | E87: Ткань: Спандбонд, пл.20 г\м2, цвет белый, однослойный | F87: 45.00р. | H87: 60.75р. | I87: 42.75р. | J87: 36.00р. | L87: 46.35р. | M87: 0.00р. | N87: 62.57р.
C88: Од203 | D88: Халат «Каспер» спанбонд | E88: Ткань: Спандбонд, цвет: белый, однослойный | F88: 66.00р. | H88: 89.10р. | I88: 62.70р. | J88: 52.80р. | L88: 67.98р. | M88: 0.00р. | N88: 91.77р.
C89: Од202 | D89: Комбинезон «Каспер» спанбонд | E89: Ткань: Спандбонд, пл.40 г\м2, цвет: белый, однослойный | F89: 90.00р. | H89: 121.50р. | I89: 85.50р. | J89: 72.00р. | L89: 92.70р. | M89: 0.00р. | N89: 125.15р.
C90: Од209 | D90: Комбинезон одноразовый "Tecron Pro" | E90: Ткань: Микропористый полипропилен, пл.65г/м2, цвет: белый | F90: 350.00р. | H90: =F90*1.35 -> 472.50р. | I90: =F90*0.95 -> 332.50р. | J90: =F90*0.8 -> 280.00р. | L90: 360.50р. | M90: 0.00р. | N90: 486.68р.
C91: Од101 | D91: Комбинезон Lakeland Zonegard белый/синий | E91: Ткань: Нетканный полипропилен, пл.35г/м2, цвет: белый, синий | F91: 205.00р. | H91: 276.75р. | I91: 194.75р. | J91: 164.00р. | L91: 211.15р. | M91: 0.00р. | N91: 285.05р.
C92: Од104 | D92: Комбинезон Lakeland MicroMax NS белый | E92: Ткань: Нетканный полипропилен, цвет белый | F92: 445.00р. | H92: 600.75р. | I92: 422.75р. | J92: 356.00р. | L92: 458.35р. | M92: 0.00р. | N92: 618.77р.
E93: вернуться в Оглавление

Sheet Одежда для медиков_охраны_туриз
B2: ПРАЙС | D2: от | E2: =Оглавление!I2 -> 2019-11-26
H3: 115% | I3: 10% | J3: 15% | N3: 115%
A4: Сегмент | B4: Статус | C4: Код | D4: Наименование | E4: Описание | F4: Цена | G4: Цена | H4: Розничная цена (менее 20 т.р) | I4: Цена оптовика | J4: Мин. Цена оптовика | L4: Цена | M4: Цена | N4: Розничная цена (менее 20 т.р)
B5: 3 | C5: ОДЕЖДА ДЛЯ МЕДИЦИНЫ И СФЕРЫ УСЛУГ, ОХРАНЫ, ТУРИЗМА
B6: 3.1 | C6: Униформа для медицины и сферы услуг | E6: вернуться в Оглавление
C7: 3.1.1 | D7: Халаты | E7: вернуться в Оглавление
C8: Мед113 | D8: Халат медицинский мужской "Эконом" | E8: Ткань: бязь ГОСТ, 100%ХЛ,, 142 г/м2 | F8: 430.00р. | H8: =F8*1.35 -> 580.50р. | I8: =F8*0.95 -> 408.50р. | J8: =F8*0.8 -> 344.00р. | L8: =F8*1.03 -> 442.90р. | M8: =G8*1.03 -> 0.00р. | N8: 597.92р.
C9: Мед114 | D9: Халат медицинский женский "Эконом" | E9: Ткань: бязь ГОСТ, 100%ХЛ,, 142 г/м2 | F9: 430.00р. | H9: =F9*1.35 -> 580.50р. | I9: =F9*0.95 -> 408.50р. | J9: =F9*0.8 -> 344.00р. | L9: =F9*1.03 -> 442.90р. | M9: =G9*1.03 -> 0.00р. | N9: =H9*1.03 -> 597.92р.
C10: Мед107 | D10: Халат медицинский женский "Стандарт" | E10: Ткань: "Тиси", смесовая (65% ПЭ, 35% ХЛ) 125 г/м2 | F10: 555.00р. | H10: 749.25р. | I10: 527.25р. | J10: 444.00р. | L10: 571.65р. | M10: 0.00р. | N10: 771.73р.
C11: Мед108 | D11: Халат медицинский мужской "Стандарт" | E11: Ткань: "Тиси", смесовая (65% ПЭ, 35% ХЛ) 125 г/м2 | F11: 555.00р. | H11: 749.25р. | I11: 527.25р. | J11: 444.00р. | L11: 571.65р. | M11: 0.00р. | N11: 771.73р.
C12: Мед109 | D12: Халат медицинский женский "Стандарт плюс" | E12: Ткань: "Тиси", смесовая (65% ПЭ, 35% ХЛ) 125 г/м2 | F12: 590.00р. | H12: 796.50р. | I12: 560.50р. | J12: 472.00р. | L12: 607.70р. | M12: 0.00р. | N12: 820.40р.
C13: Мед110 | D13: Халат "Хозяюшка" | E13: Ткань: ТиСи (35% ХЛ, 65% ПЭ) 125 г/м2 | F13: 710.00р. | H13: 958.50р. | I13: 674.50р. | J13: 568.00р. | L13: 731.30р. | M13: 0.00р. | N13: 987.26р.
C14: Мед121 | D14: Халат медицинский женский "Стандарт" с рельефами | E14: Цвет:морская волна | F14: 578.95р. | H14: 781.58р. | I14: 550.00р. | J14: 463.16р. | L14: 596.32р. | M14: 0.00р. | N14: 805.03р.
B15: NEW | C15: Мед119 | D15: Халат медицинский женский "Стандарт" с рельефами | E15: Цвет: бирюза | F15: 595.00р. | H15: =F15*1.35 -> 803.25р. | I15: =F15*0.95 -> 565.25р. | J15: =F15*0.8 -> 476.00р. | L15: 612.85р. | M15: 0.00р. | N15: 827.35р.
C16: Мед120 | D16: Халат медицинский женский "Стандарт" с рельефами | E16: Цвет: голубой | L16: 0.00р. | M16: 0.00р. | N16: 0.00р.
B17: NEW | C17: Мед118 | D17: Халат медицинский женский "Жасмин" | E17: Ткань: "Тиси", смесовая (65% ПЭ, 35% ХЛ) 125 г/м2 | F17: 590.00р. | H17: =F17*1.35 -> 796.50р. | I17: =F17*0.95 -> 560.50р. | J17: =F17*0.8 -> 472.00р. | L17: 607.70р. | M17: 0.00р. | N17: 820.40р.
C18: Мед111 | D18: Халат медицинский женский "Олеся" | E18: Ткань: "Тиси", смесовая (65% ПЭ, 35% ХЛ) 125 г/м2 | F18: 675.00р. | H18: 911.25р. | I18: 641.25р. | J18: 540.00р. | L18: 695.25р. | M18: 0.00р. | N18: 938.59р.
C19: Мед112 | D19: Халат медицинский женский "Лаура" | E19: Ткань: "Тиси", смесовая (65% ПЭ, 35% ХЛ) 125 г/м2 | F19: 690.00р. | H19: 931.50р. | I19: 655.50р. | J19: 552.00р. | L19: 710.70р. | M19: 0.00р. | N19: 959.45р.
C20: Мед115 | D20: Фартук-сарафан "Солнышко" (с пилоткой) | E20: Ткань: "Тиси", смесовая (65% ПЭ, 35% ХЛ) 125 г/м3 | F20: 587.00р. | H20: 792.45р. | I20: 557.65р. | J20: 469.60р. | L20: 604.61р. | M20: 0.00р. | N20: 816.22р.
C21: Пр122 | D21: Нарукавники | E21: Ткань: Диагональ,100%ХЛ,, 190 г/м2 | F21: 75.00р. | H21: 101.25р. | I21: 71.25р. | J21: 60.00р. | L21: 77.25р. | M21: 0.00р. | N21: 104.29р.
C22: Пр123 | D22: Фартук с грудкой | E22: Ткань: диагональ, 100%ХЛ,, 190 г/м2 | F22: 127.00р. | H22: 171.45р. | I22: 120.65р. | J22: 101.60р. | L22: 130.81р. | M22: 0.00р. | N22: 176.59р.
C23: Пр124 | D23: Фартук к грудкой | E23: Ткань: бязь, 100%ХЛ,, 142 г/м2 | F23: 102.00р. | H23: 137.70р. | I23: 96.90р. | J23: 81.60р. | L23: 105.06р. | M23: 0.00р. | N23: 141.83р.
C24: 3.1.2 | D24: Костюмы | E24: вернуться в Оглавление | L24: 0.00р. | M24: 0.00р. | N24: 0.00р.
C25: Мед101 | D25: Костюм медицинский "Хирург" | E25: Комплектация: блузон/брюки. Ткань: ТиСи (35% ХЛ, 65% ПЭ) 125 г/м2 | F25: 670.00р. | H25: 904.50р. | I25: =F25*0.95 -> 636.50р. | J25: =F25*0.8 -> 536.00р. | L25: 690.10р. | M25: 0.00р. | N25: 931.64р.
C26: Мед106 | D26: Костюм медицинский "Хирург" бязевый | E26: Комплектация: блузон/брюки. Ткань: бязь | F26: 475.00р. | H26: 641.25р. | I26: 451.25р. | J26: 380.00р. | L26: 489.25р. | M26: 0.00р. | N26: 660.49р.
C27: Мед103 | D27: Костюм медицинский женский "Олеся" | E27: Комплектация: блуза/брюки. Ткань: "Тиси", смесовая (65% ПЭ, 35% ХЛ) 125 г/м2 | F27: 880.00р. | H27: 1,188.00р. | I27: 836.00р. | J27: 704.00р. | L27: 906.40р. | M27: 0.00р. | N27: 1,223.64р.
C28: Мед104 | D28: Костюм медицинский женский "Лаура" | E28: Комплектация: блуза/брюки. Ткань: "Тиси", смесовая (65% ПЭ, 35% ХЛ) 125 г/м2 | F28: 890.00р. | H28: 1,201.50р. | I28: 845.50р. | J28: 712.00р. | L28: 916.70р. | M28: 0.00р. | N28: 1,237.55р.
C29: Мед116 | D29: Костюм женский рабочий "Василина" | E29: Ткань: ТиСи (35% ХЛ, 65% ПЭ) 125 г/м3 | F29: 900.00р. | H29: 1,215.00р. | I29: 855.00р. | J29: 720.00р. | L29: 927.00р. | M29: 0.00р. | N29: 1,251.45р.
C30: Мед105 | D30: Костюм женский рабочий "Лира" | E30: Комплектация: блуза/брюки. Ткань: "Тиси", смесовая (65% ПЭ, 35% ХЛ) 125 г/м3 | F30: 930.00р. | H30: 1,255.50р. | I30: 883.50р. | J30: 744.00р. | L30: 957.90р. | M30: 0.00р. | N30: 1,293.17р.
B31: 3.2 | C31: Экипировка для охранных структур | E31: вернуться в Оглавление | L31: 0.00р. | M31: 0.00р. | N31: 0.00р.
C32: 3.2.1 | D32: Летняя одежда для охраны | E32: вернуться в Оглавление | L32: 0.00р. | M32: 0.00р. | N32: 0.00р.
C33: Охр106 | D33: Рубашка охранника с коротким рукавом | E33: Ткань: сорочечная (65% ПЭ, 35% ХЛ) 125 г/м2 | F33: 625.00р. | H33: 843.75р. | I33: =F33*0.95 -> 593.75р. | J33: =F33*0.8 -> 500.00р. | L33: 643.75р. | M33: 0.00р. | N33: 869.06р.
C34: Охр107 | D34: Рубашка охранника с длинным рукавом | E34: Ткань: сорочечная (65% ПЭ, 35% ХЛ) 125 г/м2 | F34: 675.00р. | H34: 911.25р. | I34: 641.25р. | J34: 540.00р. | L34: 695.25р. | M34: 0.00р. | N34: 938.59р.
C35: Охр102 | D35: Костюм мужской "Альфа" | E35: Куртка\брюки. Ткань: смесовая (80% ПЭ, 20% ХЛ) 220 г/м2, МВО | F35: 960.00р. | H35: 1,296.00р. | I35: 912.00р. | J35: 768.00р. | L35: 988.80р. | M35: 0.00р. | N35: 1,334.88р.
C36: Охр103 | D36: Костюм мужской "Альфа" КМФ | E36: Куртка\брюки. Ткань: смесовая (80% ПЭ, 20% ХЛ) 220 г/м2, МВО | F36: 1,010.00р. | H36: 1,363.50р. | I36: 959.50р. | J36: 808.00р. | L36: 1,040.30р. | M36: 0.00р. | N36: 1,404.41р.
C37: Охр102 | D37: Костюм женский "Альфа" | E37: Куртка\брюки. Ткань: смесовая (80% ПЭ, 20% ХЛ) 220 г/м2, МВО | F37: 980.00р. | H37: 1,323.00р. | I37: 931.00р. | J37: 784.00р. | L37: 1,009.40р. | M37: 0.00р. | N37: 1,362.69р.
C38: Охр101 | D38: Костюм летний "Ясон" | E38: Куртка\брюки. Ткань: смесовая "Грета" (49% ХЛ, 51% ПЭ) 214 гм 2 | F38: 1,920.00р. | H38: 2,592.00р. | I38: 1,824.00р. | J38: 1,536.00р. | L38: 1,977.60р. | M38: 0.00р. | N38: 2,669.76р.
C39: Охр101 | D39: Костюм летний "Ясон" КМФ | E39: Куртка\брюки. Ткань: смесовая "Грета" (49% ХЛ, 51% ПЭ) 214 гм 2 | F39: 1,990.00р. | H39: =F39*1.35 -> 2,686.50р. | I39: 1,890.50р. | J39: 1,592.00р. | L39: 2,049.70р. | M39: 0.00р. | N39: 2,767.10р.
C40: Охр303 | D40: Галстук форменный (синий,черный) | F40: 110.00р. | H40: 148.50р. | I40: 104.50р. | J40: 88.00р. | L40: 113.30р. | M40: 0.00р. | N40: 152.96р.
C41: Охр304 | D41: Ремень | E41: Натуральная кожа. Пряжка — латунь | F41: 480.00р. | H41: 648.00р. | I41: 456.00р. | J41: 384.00р. | L41: 494.40р. | M41: 0.00р. | N41: 667.44р.
C42: 3.2.2 | D42: Зимняя одежда для охраны | E42: вернуться в Оглавление | L42: 0.00р. | M42: 0.00р. | N42: 0.00р.
C43: Охр202 | D43: Костюм утепленный "Охранник" | E43: Куртка\брюки. Верх: Оксфорд (100% ПЭ, 150 г/м2), Утеплитель: синтепон, в куртке 360 г/м2, в полукомбинезоне 240 г/м2 | F43: 1,890.00р. | H43: 2,551.50р. | I43: =F43*0.95 -> 1,795.50р. | J43: =F43*0.8 -> 1,512.00р. | L43: 1,946.70р. | M43: 0.00р. | N43: 2,628.05р.
C44: Охр204 | D44: Брюки утепленные "Охранник" | E44: Верх: Оксфорд (100% ПЭ, 150 г/м2), Утеплитель: Синтепон 240 г/м2, Подкладка: 100% нейлон | F44: 925.00р. | H44: 1,248.75р. | I44: 878.75р. | J44: 740.00р. | L44: 952.75р. | M44: 0.00р. | N44: 1,286.21р.
C45: Охр203 | D45: Куртка утепленная "Альфа" | E45: Верх: Оксфорд (100% ПЭ, 150 г/м2), Утеплитель: Синтепон 300 г/м2, Подкладка: 100% ПЭ | F45: 1,350.00р. | H45: 1,822.50р. | I45: 1,282.50р. | J45: 1,080.00р. | L45: 1,390.50р. | M45: 0.00р. | N45: 1,877.18р.
B46: 3.3 | C46: Охота, рыбалка, туризм | E46: вернуться в Оглавление | L46: 0.00р. | M46: 0.00р. | N46: 0.00р.
C47: Ох001л | D47: Костюм утепленный "Турист" КМФ легион | E47: Куртка\полукомбинезон. Верх: "Темп 210 Рип-стоп" смесовая (80% ПЭ, 20% ХЛ) 210 г/м2, ВО, Утеплитель: Синтепон в куртке 360 г/м2, в полукомбинезоне 240 г/м2, Подкладка: 100% ПЭ. Цвет: легион | F47: 2,270.00р. | H47: 3,064.50р. | I47: =F47*0.95 -> 2,156.50р. | J47: 1,816.00р. | L47: 2,338.10р. | M47: 0.00р. | N47: 3,156.44р.
C48: Ох003о | D48: Костюм утепленный "Универсал Алова" КМФ осенний лес | E48: Куртка\полукомбинезон. Верх: Алова, 100% ПЭ, Утеплитель: "Файбертек", 200 г/м2, съемный Утеплитель:из "Файбертека" 150 г/м2. Цвет: осенний лес | F48: 3,530.00р. | H48: 4,765.50р. | I48: 3,353.50р. | J48: 2,824.00р. | L48: 3,635.90р. | M48: 0.00р. | N48: 4,908.47р.
C49: Ох002н | D49: Костюм утепленный "Полевой Оксфорд" КМФ нато | E49: Куртка\брюки. Верх: смесовая (80% ПЭ, 20% ХЛ), 220 г/м2, МВО, Подкладка: 100% ПЭ, Утеплитель: синтепон 360 г/м2 куртка, 240 г/м2 брюки. Цвет: нато | F49: 1,640.00р. | H49: 2,214.00р. | I49: 1,558.00р. | J49: 1,312.00р. | L49: 1,689.20р. | M49: 0.00р. | N49: 2,280.42р.
C50: Ох005 | D50: Костюм "Турист1" (КМФ) | E50: Куртка/брюки. Ткань: смесовая (20% ХЛ, 80% ПЭ, пл. 220 г/м2), МВО пропитка. Цвет: зеленая сетка, серая береза, легион | F50: 1,040.00р. | H50: 1,404.00р. | I50: 988.00р. | J50: 832.00р. | L50: 1,071.20р. | M50: 0.00р. | N50: 1,446.12р.
C51: Ох015 | D51: Костюм "Турист1" (КМФ) | E51: Куртка/брюки. Ткань: ТиСи (35% ХЛ, 65% ПЭ, 125 г/м2). Цвет: ягель, зеленая цифра, облака | F51: 1,090.00р. | H51: 1,471.50р. | I51: 1,035.50р. | J51: 872.00р. | L51: 1,122.70р. | M51: 0.00р. | N51: 1,515.65р.
C52: Ох006 | D52: Костюм "Раптор" КМФ | E52: Ткань: смесовая Рип-стоп (35% ХЛ, 65% ПЭ, 210 г/м2), ВО пропитка. Цвет: КМФ | F52: 2,750.00р. | H52: 3,712.50р. | I52: 2,612.50р. | J52: 2,200.00р. | L52: 2,832.50р. | M52: 0.00р. | N52: 3,823.88р.
C53: Ох008р | D53: Костюм "Горка-3 Рип-стоп" | E53: Куртка/брюки. Ткань: смесовая (35% ХЛ, 65% ПЭ, 210 г/м2), отделка "кошачий глаз" (100% ПЭ), Цвет: хакки | F53: 2,540.00р. | H53: 3,429.00р. | I53: 2,413.00р. | J53: 2,032.00р. | L53: 2,616.20р. | M53: 0.00р. | N53: 3,531.87р.
C54: Ох007п | D54: Костюм "Горка-3 Палатка" | E54: Куртка/брюки. Ткань: палаточное полотно (100% ХЛ, 235 г/м2), отделка: смесовая (20% ХЛ, 80% ПЭ, 220 г/м2) | F54: 1,710.00р. | H54: 2,308.50р. | I54: 1,624.50р. | J54: 1,368.00р. | L54: 1,761.30р. | M54: 0.00р. | N54: 2,377.76р.
C55: Ох010 | D55: Костюм утепленный "Горка Иней" КМФ | E55: Куртка/брюки. Ткань: смесовая (20% ХЛ, 80% ПЭ, 220 г/м2), МВО пропитка. Отделка "кошачий глаз" (100% ПЭ). Цвет:бежевые облака. Подкладка флис | F55: 3,750.00р. | H55: =F55*1.35 -> 5,062.50р. | I55: =F55*0.95 -> 3,562.50р. | J55: =F55*0.8 -> 3,000.00р. | L55: 3,862.50р. | M55: 0.00р. | N55: 5,214.38р.
C56: Ох004 | D56: Костюм "Полевой" (КМФ) | E56: Куртка/брюки. Ткань: смесовая (20% ХЛ, 80% ПЭ, 220 г/м2), МВО пропитка. Цвет: ягель, нато, темный лес | F56: 750.00р. | H56: 1,012.50р. | I56: 712.50р. | J56: 600.00р. | L56: 772.50р. | M56: 0.00р. | N56: 1,042.88р.
C57: Ох009 | D57: Брюки мужские "Захват" КМФ | E57: Ткань: смесовая (20% ХЛ, 80% ПЭ, 220 г/м2), МВО пропитка. Цвет: ягель, нато | F57: 445.00р. | H57: 600.75р. | I57: 422.75р. | J57: 356.00р. | L57: 458.35р. | M57: 0.00р. | N57: 618.77р.
C58: Ох110 | D58: Куртка мужская "Tactical" КМФ | E58: Ткань: Софтшелл - 100% полиэстер + мембрана 10000 WR + флис. Цвет: КМФ питон ночь, скала, лес, мох, песок | F58: 3,390.00р. | H58: =F58*1.35 -> 4,576.50р. | I58: =F58*0.95 -> 3,220.50р. | J58: =F58*0.8 -> 2,712.00р. | L58: 3,491.70р. | M58: 0.00р. | N58: 4,713.80р.
C59: Ох111 | D59: Брюки мужские "Tactical" КМФ | E59: Ткань: смесовая Рип-стоп (35% ХЛ, 65% ПЭ, 210 г/м2), ВО пропитка. Цвет: КМФ питон ночь, скала, лес, мох, песок | F59: 1,800.00р. | H59: 2,430.00р. | I59: 1,710.00р. | J59: 1,440.00р. | L59: 1,854.00р. | M59: 0.00р. | N59: 2,502.90р.
B60: NEW | C60: Ох112 | D60: Куртка мужская "Бомбер" КМФ | E60: Ткань: смесовая курточная (100% ПЭ, 80 г/м2), Цвет: КМФ питон ночь, скала, лес, мох, песок | F60: 1,930.00р. | H60: =F60*1.35 -> 2,605.50р. | I60: =F60*0.95 -> 1,833.50р. | J60: =F60*0.8 -> 1,544.00р. | L60: 1,987.90р. | M60: 0.00р. | N60: 2,683.67р.
B61: NEW | C61: Ох112 | D61: Куртка мужская "Бомбер" | E61: Ткань: смесовая курточная (100% ПЭ, 80 г/м2), Цвет: черный, серый, светло-серый | F61: 1,600.00р. | H61: 2,160.00р. | I61: 1,520.00р. | J61: 1,280.00р. | L61: 1,648.00р. | M61: 0.00р. | N61: 2,224.80р.
C62: Ох101 | D62: Панама "Раптор" | E62: Ткань: смесовая Рип-стоп (35% ХЛ, 65% ПЭ, 210 г/м2), ВО пропитка. Цвет: КМФ | F62: 300.00р. | H62: 405.00р. | I62: 285.00р. | J62: 240.00р. | L62: 309.00р. | M62: 0.00р. | N62: 417.15р.
C63: Ох105 | D63: Бейсболка софтшелл КМФ | E63: Ткань: Софтшелл - 100% полиэстер + мембрана 10000 WR + флис. Цвет: КМФ питон ночь, скала, лес, мох, песок | F63: 365.00р. | H63: =F63*1.35 -> 492.75р. | I63: =F63*0.95 -> 346.75р. | J63: =F63*0.8 -> 292.00р. | L63: 375.95р. | M63: 0.00р. | N63: 507.53р.
C64: Ох107 | D64: Кепи рип-стоп КМФ | E64: Ткань: смесовая Рип-стоп (35% ХЛ, 65% ПЭ, 210 г/м2), ВО пропитка. Цвет: КМФ питон ночь, скала, лес, мох, песок | F64: 225.00р. | H64: 303.75р. | I64: 213.75р. | J64: 180.00р. | L64: 231.75р. | M64: 0.00р. | N64: 312.86р.
E65: вернуться в Оглавление

Sheet Обувь
B2: ПРАЙС | D2: от | E2: =Оглавление!I2 -> 2019-11-26
H3: 115% | I3: 10% | J3: 15% | N3: 115%
A4: Сегмент | B4: Статус | C4: Код | D4: Наименование | E4: Описание | F4: Цена | G4: Цена | H4: Розничная цена (менее 20 т.р) | I4: Цена оптовика | J4: Мин. Цена оптовика | L4: Цена | M4: Цена | N4: Розничная цена (менее 20 т.р)
B5: 4 | C5: РАБОЧАЯ ОБУВЬ
B6: 4.1 | C6: Обувь «PAREDES» | E6: вернуться в Оглавление | G6: =SUBTOTAL(9,G7:G26) -> 1908-10-04 | M6: =SUBTOTAL(9,M7:M26) -> 1909-01-08
A7: СТ | C7: COV101 | D7: Сандалии PAREDES S-COVER | E7: Цвет: чёрный. Материалы: верх: кожа, подкладка: Cambrelle®, подошва: ПУ, ГОСТ 12.4.137-84 | F7: 920.00р. | H7: =F7*1.35 -> 1,242.00р. | I7: =F7*0.97 -> 892.40р. | J7: =F7*0.93 -> 855.60р. | L7: =F7*1.03 -> 947.60р. | M7: =G7*1.03 -> 0.00р. | N7: 1,279.26р.
A8: СТ | C8: COV102 | D8: Сандалии PAREDES S-COVER с МП и антипрокольной стелькой | E8: Цвет: чёрный. Материалы: верх: кожа, подкладка: Cambrelle®, подошва: ПУ, ГОСТ 12.4.137-84 | F8: 1,050.00р. | H8: 1,417.50р. | I8: =F8*0.97 -> 1,018.50р. | J8: =F8*0.93 -> 976.50р. | L8: =F8*1.03 -> 1,081.50р. | M8: =G8*1.03 -> 0.00р. | N8: =H8*1.03 -> 1,460.03р.
A9: СТ | C9: COV105 | D9: Ботинки PAREDES B-COVER | E9: Цвет: чёрный. Материалы: верх: кожа, подкладка: Cambrelle®, подошва: ПУ, ГОСТ 12.4.137-84 | F9: 890.00р. | H9: 1,201.50р. | I9: 863.30р. | J9: 827.70р. | L9: 916.70р. | M9: 0.00р. | N9: 1,237.55р.
A10: СТ | C10: COV106 | D10: Ботинки PAREDES B-COVER с МП и антипрокольной стелькой | E10: Цвет: чёрный. Материалы: верх: кожа, подкладка: Cambrelle®, подошва: ПУ, ГОСТ 12.4.137-84 | F10: 990.00р. | H10: 1,336.50р. | I10: 960.30р. | J10: 920.70р. | L10: 1,019.70р. | M10: 0.00р. | N10: 1,376.60р.
A11: СТ | C11: COV201 | D11: Ботинки утепленные PAREDES B-COVER | E11: Цвет: чёрный. Материалы: верх: кожа, подкладка: Cambrelle®, подошва: ПУ, ГОСТ 12.4.137-84 | F11: 1,080.00р. | H11: 1,458.00р. | I11: 1,047.60р. | J11: 1,004.40р. | L11: 1,112.40р. | M11: 0.00р. | N11: 1,501.74р.
A12: СТ | C12: COV202 | D12: Ботинки утепленные PAREDES B-COVER с МП и антипрокольной стелькой | E12: Цвет: чёрный. Материалы: верх: кожа, подкладка: Cambrelle®, подошва: ПУ, ГОСТ 12.4.137-84 | F12: 1,170.00р. | H12: 1,579.50р. | I12: 1,134.90р. | J12: 1,088.10р. | L12: 1,205.10р. | M12: 0.00р. | N12: 1,626.89р.
A13: СТ | C13: COV103 | D13: Полуботинки PAREDES H-COVER | E13: Цвет: чёрный. Материалы: верх: кожа, подкладка: Cambrelle®, подошва: ПУ, ГОСТ 12.4.137-84 | F13: 890.00р. | H13: 1,201.50р. | I13: 863.30р. | J13: 827.70р. | L13: 916.70р. | M13: 0.00р. | N13: 1,237.55р.
A14: СТ | C14: COV104 | D14: Полуботинки PAREDES H-COVER с МП и антипрокольной стелькой | E14: Цвет: чёрный. Материалы: верх: кожа, подкладка: Cambrelle®, подошва: ПУ, ГОСТ 12.4.137-84 | F14: 990.00р. | H14: 1,336.50р. | I14: 960.30р. | J14: 920.70р. | L14: 1,019.70р. | M14: 0.00р. | N14: 1,376.60р.
C15: COV108 | D15: Сапоги PAREDES HB-COVER с МП и антипрокольной стелькой | E15: Цвет: чёрный. Материалы: верх: кожа, подкладка: Cambrelle®, подошва: ПУ, ГОСТ 12.4.137-84 | F15: 1,100.00р. | H15: 1,485.00р. | I15: 1,067.00р. | J15: 1,023.00р. | L15: 1,133.00р. | M15: 0.00р. | N15: 1,529.55р.
C16: COV204 | D16: Сапоги утепленные PAREDES HB-COVER с МП и антипрокольной стелькой | E16: Цвет: чёрный. Материалы: верх: кожа, подкладка: Cambrelle®, подошва: ПУ, ГОСТ 12.4.137-84 | F16: 1,720.00р. | H16: 2,322.00р. | I16: 1,668.40р. | J16: 1,599.60р. | L16: 1,771.60р. | M16: 0.00р. | N16: 2,391.66р.
B17: 4.2 | C17: Кожаная защитная обувь | E17: вернуться в Оглавление | L17: 0.00р. | M17: 0.00р. | N17: 0.00р.
C18: 4.2.1 | D18: Полуботинки, сандалии, сабо | E18: вернуться в Оглавление | L18: 0.00р. | M18: 0.00р. | N18: 0.00р.
A19: ЭК | B19: SALE | C19: Кож126 | D19: Полуботинки кожаные "Кросс" ПУ подошва | E19: Цвет: чёрный. Материалы: верх: кожа, подкладка: Cambrelle®, подошва: ПУ, ГОСТ 12.4.137-84 | F19: 800.00р. | G19: 800.00р. | H19: 800.00р. | I19: 800.00р. | J19: 800.00р. | L19: 824.00р. | M19: 824.00р. | N19: 824.00р.
A20: ЭК | B20: SALE | C20: Кож127 | D20: Полуботинки кожаные "Кросс" ПУ подошва с МП | E20: Цвет: чёрный. Материалы: верх: кожа, подкладка: Cambrelle®, подошва: ПУ, МП 200Дж ГОСТ 12.4.137-84 | F20: 800.00р. | G20: 800.00р. | H20: 800.00р. | I20: 800.00р. | J20: 800.00р. | L20: 824.00р. | M20: 824.00р. | N20: 824.00р.
A21: ЭК | B21: SPEC | C21: Кож147 | D21: Полуботинки кожаные "Кросс-23-0" ПУ подошва | E21: Цвет: чёрный. Материалы: верх: кожа, подкладка: Mesh, подошва: ПУ (МБС, антистатичная, износоустойчивая), ГОСТ 12.4.137-84 | F21: 800.00р. | H21: 1,080.00р. | I21: =F21*0.97 -> 776.00р. | J21: =F21*0.93 -> 744.00р. | L21: 824.00р. | M21: 0.00р. | N21: 1,112.40р.
A22: ЭК | B22: SPEC | C22: Кож148 | D22: Полуботинки кожаные "Кросс-23" ПУ подошва с МП | E22: Цвет: чёрный. Материалы: верх: кожа, подкладка: Mesh, подошва: ПУ (МБС, антистатичная, износоустойчивая), МП 200 Дж ГОСТ 12.4.137-84 | F22: 835.00р. | H22: 1,127.25р. | I22: 809.95р. | J22: 776.55р. | L22: 860.05р. | M22: 0.00р. | N22: 1,161.07р.
A23: ЭК | B23: SALE | C23: Кож137 | D23: Сандалии кожаные "Кросс" ПУ подошва | E23: Цвет: чёрный. Материалы: верх: кожа, подкладка: Cambrelle®, подошва: ПУ, ГОСТ 12.4.137-84 | F23: 800.00р. | G23: 800.00р. | H23: 800.00р. | I23: 800.00р. | J23: 800.00р. | L23: 824.00р. | M23: 824.00р. | N23: 824.00р.
A24: ЭК | B24: SALE | C24: Кож138 | D24: Сандалии кожаные "Кросс" ПУ подошва с МП | E24: Цвет: чёрный. Материалы: верх: кожа, подкладка: Cambrelle®, подошва: ПУ, МП 200Дж, ГОСТ 12.4.137-84 | F24: 800.00р. | G24: 800.00р. | H24: 800.00р. | I24: 800.00р. | J24: 800.00р. | L24: 824.00р. | M24: 824.00р. | N24: 824.00р.
A25: ЭК | B25: SPEC | C25: Кож149 | D25: Сандалии кожаные "Кросс-21-0" ПУ подошва | E25: Цвет: чёрный. Материалы: верх: кожа, подкладка: Mesh, подошва: ПУ (МБС, антистатичная, износоустойчивая), ГОСТ 12.4.137-84 | F25: 795.00р. | H25: 1,073.25р. | I25: =F25*0.97 -> 771.15р. | J25: =F25*0.93 -> 739.35р. | L25: 818.85р. | M25: 0.00р. | N25: 1,105.45р.
A26: ЭК | B26: SPEC | C26: Кож150 | D26: Сандалии кожаные "Кросс-21" ПУ подошва с МП | E26: Цвет: чёрный. Материалы: верх: кожа, подкладка: Mesh, подошва: ПУ (МБС, антистатичная, износоустойчивая), МП 200 Дж ГОСТ 12.4.137-84 | F26: 840.00р. | H26: 1,134.00р. | I26: =F26*0.97 -> 814.80р. | J26: 781.20р. | L26: 865.20р. | M26: 0.00р. | N26: 1,168.02р.
C27: 4.2.2 | D27: Ботинки рабочие | E27: вернуться в Оглавление | L27: 0.00р. | M27: 0.00р. | N27: 0.00р.
A28: ЭК | B28: SALE | C28: Кож117 | D28: Ботинки кожаные "Олимп" ПУ подошва | E28: Цвет: чёрный. Материалы: верх: кожа, подкладка: Cambrelle®, подошва: ПУ, ГОСТ 12.4.137-84 | F28: 720.00р. | G28: 720.00р. | H28: 720.00р. | I28: 720.00р. | J28: 720.00р. | L28: 741.60р. | M28: 741.60р. | N28: 741.60р.
A29: ЭК | B29: SALE | C29: Кож118 | D29: Ботинки кожаные "Олимп" ПУ подошва с МП | E29: Цвет: чёрный. Материалы: верх: кожа, подкладка: Cambrelle®, подошва: ПУ, МП 200Дж, ГОСТ 12.4.137-84 | F29: 720.00р. | G29: 720.00р. | H29: 720.00р. | I29: 720.00р. | J29: 720.00р. | L29: 741.60р. | M29: 741.60р. | N29: 741.60р.
A30: ЭК | B30: SPEC | C30: Кож151 | D30: Ботинки кожаные "Олимп-13" ПУ подошва | E30: Цвет: чёрный. Материалы: верх: кожа, подкладка: Cambrelle®, подошва: ПУ (МБС, антистатичная, износоустойчивая), ГОСТ 12.4.137-84 | F30: 745.00р. | H30: 1,005.75р. | I30: =F30*0.97 -> 722.65р. | J30: =F30*0.93 -> 692.85р. | L30: 767.35р. | M30: 0.00р. | N30: 1,035.92р.
A31: ЭК | B31: SPEC | C31: Кож152 | D31: Ботинки кожаные "Олимп-12" ПУ подошва с МП | E31: Цвет: чёрный. Материалы: верх: кожа, подкладка: Cambrelle®, подошва: ПУ (МБС, антистатичная, износоустойчивая), МП200Дж, ГОСТ 12.4.137-84 | F31: 780.00р. | G31: =SUBTOTAL(9,G32:G46) -> 0.00р. | H31: 1,053.00р. | I31: 756.60р. | J31: 725.40р. | L31: 803.40р. | M31: 0.00р. | N31: 1,084.59р.
A32: ЭК | B32: SPEC | C32: Кож153 | D32: Ботинки кожаные "Викинг-13/1" ПУ\ТПУ подошва | E32: Цвет: чёрный. Материалы: верх: кожа, подкладка: Cambrelle®, подошва: ПУ/ТПУ 2-х цветная, 2-х слойный полиуретан (МБС, антистатичная, износоустойчивая) , ГОСТ 12.4.137-84 | F32: 838.40р. | H32: 1,131.84р. | I32: 813.25р. | J32: 779.71р. | L32: 863.55р. | M32: 0.00р. | N32: 1,165.80р.
A33: ЭК | B33: SPEC | C33: Кож154 | D33: Ботинки кожаные "Викинг-12/1" ПУ\ТПУ подошва с МП | E33: Цвет: чёрный. Материалы: верх: кожа, подкладка: Cambrelle®, подошва: ПУ/ТПУ 2-х цветная, 2-слойный полиуретан (МБС, антистатичная, износоустойчивая),МП 200Дж, ГОСТ 12.4.137-84 | F33: 870.00р. | H33: 1,174.50р. | I33: 843.90р. | J33: 809.10р. | L33: 896.10р. | M33: 0.00р. | N33: 1,209.74р.
B34: SPEC | C34: Кож173 | D34: Ботинки кожаные "Викинг-12/1 К" ПУ\ТПУ подошва с КП | E34: Цвет: чёрный. Материалы: верх: кожа, подкладка: Cambrelle®, подошва: ПУ/ТПУ 2-х цветная, 2-слойный полиуретан (МБС, антистатичная, износоустойчивая),Композитный подносок 200Дж, ГОСТ 12.4.137-84 | F34: 960.00р. | H34: 1,296.00р. | I34: 931.20р. | J34: 892.80р. | L34: 988.80р. | M34: 0.00р. | N34: 1,334.88р.
B35: SPEC | C35: Кож156 | D35: Ботинки кожаные "Викинг-17" ПУ\ТПУ подошва с МП | E35: Цвет: чёрный. Материалы: верх: кожа+ Cordura, подкладка: Cambrelle®, подошва: ПУ/ТПУ 2-х цветная, 2-х слойный полиуретан (МБС, антистатичная, износоустойчивая) , ГОСТ 12.4.137-84 | F35: 1,700.00р. | H35: 2,295.00р. | I35: 1,649.00р. | J35: 1,581.00р. | L35: 1,751.00р. | M35: 0.00р. | N35: 2,363.85р.
B36: SPEC | C36: Кож167 | D36: Ботинки кожаные "Викинг 12Р" нитрильная резина с КП | E36: Цвет: чёрный Материалы: верх: натуральная кожа, подкладка: Mesh, подошва: нитрильная резина композитный подносок 200Дж, ГОСТ 12.4.137-84 | F36: 1,030.00р. | H36: 1,390.50р. | I36: 999.10р. | J36: 957.90р. | L36: 1,060.90р. | M36: 0.00р. | N36: 1,432.22р.
B37: SPEC | C37: Кож157 | D37: Ботинки кожаные "Викинг-27" ПУ\ТПУ подошва с МП | E37: Цвет: чёрный с оранжевыми вставками. Материалы: верх: кожа+ Cordura, подкладка: Mesh, подошва: ПУ/ТПУ (МБС, антистатичная, износоустойчивая), МП 200Дж, ГОСТ 12.4.137-84 | F37: 1,850.00р. | H37: 2,497.50р. | I37: 1,794.50р. | J37: 1,720.50р. | L37: 1,905.50р. | M37: 0.00р. | N37: 2,572.43р.
A38: СТ | B38: SPEC | C38: Кож158 | D38: Ботинки кожаные "ВИКИНГ НИТРО-22Р" ПУ\резина с МП | E38: Цвет: чёрный с красными вставками. Материалы: верх: кожа, подкладка: Mesh, подошва: полиуретан/резина, МП 200Дж, ГОСТ 12.4.137-84 | F38: 1,800.00р. | H38: 2,430.00р. | I38: =F38*0.97 -> 1,746.00р. | J38: =F38*0.93 -> 1,674.00р. | L38: 1,854.00р. | M38: 0.00р. | N38: 2,502.90р.
B39: SPEC | C39: Бот2 | D39: Ботинки кожаные "Барс" ПУ\ТПУ с КП | E39: Цвет: чёрный. Материалы: верх: кожа, подошва: ПУ/ТПУ, композитный подносок 200Дж, ГОСТ 12.4.187-97 | F39: 1,465.00р. | H39: 1,977.75р. | I39: =F39*0.97 -> 1,421.05р. | J39: =F39*0.93 -> 1,362.45р. | L39: 1,508.95р. | M39: 0.00р. | N39: 2,037.08р.
A40: СТ | B40: SPEC | C40: Кож161 | D40: Ботинки кожаные "Сварщик" ПУ/нитрильная резина подошва с МП | E40: Цвет: чёрный. Материалы: верх: кожа, подошва: ПУ/нитрильная резина, МП 200Дж, ГОСТ 12.4.137-84 | F40: 1,260.00р. | H40: 1,701.00р. | I40: =F40*0.97 -> 1,222.20р. | J40: =F40*0.93 -> 1,171.80р. | L40: 1,297.80р. | M40: 0.00р. | N40: 1,752.03р.
A41: СТ | B41: SPEC | C41: Кож120 | D41: Ботинки кожаные хромовые "Омон" | E41: Цвет: чёрный. Материалы: верх: кожа, подкладка: Cambrelle®, подошва: ТЭП, ГОСТ 12.4.137-84 | F41: 1,220.00р. | H41: 1,647.00р. | I41: 1,183.40р. | J41: 1,134.60р. | L41: 1,256.60р. | M41: 0.00р. | N41: 1,696.41р.
A42: ПР | C42: Кож121 | D42: Ботинки кожаные хромовые "ПИЛОТ" | E42: Цвет: чёрный. Материалы: верх: кожа, подкладка: Cambrelle®, подошва: ПУ, ГОСТ 12.4.137-84 | F42: 2,290.00р. | H42: 3,091.50р. | I42: =F42*0.95 -> 2,175.50р. | J42: =F42*0.8 -> 1,832.00р. | L42: 2,358.70р. | M42: 0.00р. | N42: 3,184.25р.
A43: ПР | B43: SPEC | C43: Кож110 | D43: Ботинки кожаные хромовые с высоким берцем "ОМОН-Люкс" | E43: Цвет: чёрный. Материалы: верх: кожа, подкладка: Cambrelle®, подошва: ТЭП, ГОСТ 12.4.137-84 | F43: 1,420.00р. | H43: 1,917.00р. | I43: =F43*0.97 -> 1,377.40р. | J43: =F43*0.93 -> 1,320.60р. | L43: 1,462.60р. | M43: 0.00р. | N43: 1,974.51р.
C44: 4.2.3 | D44: Сапоги рабочие | E44: вернуться в Оглавление | L44: 0.00р. | M44: 0.00р. | N44: 0.00р.
A45: ЭК | B45: SALE | C45: Кож143 | D45: Сапоги кожаные "Олимп" ПУ подошва | E45: Цвет: чёрный. Материалы: верх: кожа, подкладка: Cambrelle®, подошва: ПУ, ГОСТ 12.4.137-84 | F45: 800.00р. | H45: 800.00р. | I45: 800.00р. | J45: 800.00р. | L45: 824.00р. | M45: 0.00р. | N45: 824.00р.
A46: ЭК | B46: SALE | C46: Кож144 | D46: Сапоги кожаные "Олимп" ПУ подошва с МП | E46: Цвет: чёрный. Материалы: верх: кожа, подкладка: Cambrelle®, подошва: ПУ, МП 200Дж, ГОСТ 12.4.137-84 | F46: 850.00р. | H46: 850.00р. | I46: 850.00р. | J46: 850.00р. | L46: 875.50р. | M46: 0.00р. | N46: 875.50р.
A47: ЭК | B47: SPEC | C47: Кож160 | D47: Сапоги кожаные "Олимп-16" ПУ подошва с МП | E47: Цвет: чёрный. Материалы: верх: кожа, подкладка: Cambrelle®, подошва: ПУ(МБС, антистатичная, износоустойчивая),МП 200Дж ГОСТ 12.4.137-84 | F47: 1,150.00р. | G47: =SUBTOTAL(9,G48:G55) -> 0.00р. | H47: 1,552.50р. | I47: =F47*0.97 -> 1,115.50р. | J47: =F47*0.93 -> 1,069.50р. | L47: 1,184.50р. | M47: 0.00р. | N47: 1,599.08р.
A48: СТ | B48: SPEC | C48: Кож159 | D48: Сапоги юфть/кирза ПУ подошва | E48: Цвет: чёрный. Материалы:верх: юфть/кирза, подошва: ПУ. ГОСТ 12.4.137-84 | F48: 865.00р. | H48: 1,167.75р. | I48: 839.05р. | J48: 804.45р. | L48: 890.95р. | M48: 0.00р. | N48: 1,202.78р.
A49: СТ | B49: SPEC | C49: Кож164 | D49: Сапоги юфть/кирза ПУ подошва с МП | E49: Цвет: чёрный. Материалы:верх: юфть/кирза, подошва: ПУ/ТПУ, МП 200Дж, ГОСТ 12.4.137-84 | F49: 905.00р. | H49: 1,221.75р. | I49: 877.85р. | J49: 841.65р. | L49: 932.15р. | M49: 0.00р. | N49: 1,258.40р.
A50: СТ | B50: SALE | C50: Кож 165 | D50: Сапоги юфть/кирза «Викинг» ПУ/ТПУ подошва | E50: Цвет: чёрный. Материалы:верх: юфть/кирза, подошва: ПУ/ТПУ. ГОСТ 12.4.137-84 | F50: 933.00р. | H50: 1,259.55р. | I50: 905.01р. | J50: 867.69р. | L50: 960.99р. | M50: 0.00р. | N50: 1,297.34р.
A51: СТ | B51: SALE | C51: Кож166 | D51: Сапоги юфть/кирза «Викинг» ПУ/ТПУ подошва с МП | E51: Цвет: чёрный. Материалы:верх: юфть/кирза, подошва: ПУ/ТПУ, МП 200Дж, ГОСТ 12.4.137-84 | F51: 1,100.00р. | H51: 1,485.00р. | I51: 1,067.00р. | J51: 1,023.00р. | L51: 1,133.00р. | M51: 0.00р. | N51: 1,529.55р.
B52: 4.3 | C52: Сапоги резиновые и ПВХ | E52: вернуться в Оглавление | L52: 0.00р. | M52: 0.00р. | N52: 0.00р.
C53: Пвх146 | D53: Туфли ЭВА арт. 110 | E53: DU-light, ТУ 2590-001-51664612-2003 | F53: 165.00р. | H53: 222.75р. | I53: =F53*0.95 -> 156.75р. | J53: =F53*0.8 -> 132.00р. | L53: 169.95р. | M53: 0.00р. | N53: 229.43р.
C54: Пвх145 | D54: Туфли ЭВА арт.111 | E54: DU-light, ТУ 2590-001-51664612-2003 | F54: 165.00р. | H54: 222.75р. | I54: 156.75р. | J54: 132.00р. | L54: 169.95р. | M54: 0.00р. | N54: 229.43р.
C55: Пвх141 | D55: Утеплитель войлочный арт. 170 | E55: ТУ 2590-001-51664612-2003 | F55: 88.00р. | H55: 118.80р. | I55: 83.60р. | J55: 70.40р. | L55: 90.64р. | M55: 0.00р. | N55: 122.36р.
A56: СТ | C56: Пвх117 | D56: Галоши садовые из ЭВА арт. 114 | E56: DU-light, ТУ 2590-001-51664612-2003 | F56: 185.00р. | H56: 249.75р. | I56: 175.75р. | J56: 148.00р. | L56: 190.55р. | M56: 0.00р. | N56: 257.24р.
C57: Пвх140 | D57: Галоши садовые из ЭВА с надставкой утепленные арт.116 | E57: DU-light, ткань, ТУ 2590-001-51664612-2003 | F57: 320.00р. | H57: 432.00р. | I57: 304.00р. | J57: 256.00р. | L57: 329.60р. | M57: 0.00р. | N57: 444.96р.
A58: СТ | C58: Пвх118 | D58: Галоши садовые из ЭВА утепленные арт.114У | E58: DU-light, ТУ 2590-001-51664612-2003 | F58: 300.00р. | H58: 405.00р. | I58: 285.00р. | J58: 240.00р. | L58: 309.00р. | M58: 0.00р. | N58: 417.15р.
A59: СТ | C59: Пвх114 | D59: Полукомбинезон рыбацкий на укороченном сапоге арт.153 | E59: ПВХ, винитол, ТУ 2590-001-51664612-2003 | F59: 2,160.00р. | H59: 2,916.00р. | I59: 2,052.00р. | J59: 1,728.00р. | L59: 2,224.80р. | M59: 0.00р. | N59: 3,003.48р.
C60: Пвх133 | D60: Полукомбинезон рыбацкий арт. 152/2 | E60: ПВХ, винитол, ТУ 2590-001-51664612-2003 | F60: 1,830.00р. | H60: 2,470.50р. | I60: 1,738.50р. | J60: 1,464.00р. | L60: 1,884.90р. | M60: 0.00р. | N60: 2,544.62р.
C61: Пвх134 | D61: Полукомбинезон рыбацкий арт. 156 КМФ | E61: ПВХ, Таффета, ТУ 2590-001-51664612-2003 | F61: 1,800.00р. | H61: 2,430.00р. | I61: 1,710.00р. | J61: 1,440.00р. | L61: 1,854.00р. | M61: 0.00р. | N61: 2,502.90р.
C62: Пвх135 | D62: Полукомбинезон рыбацкий арт. 157 КМФ | E62: ПВХ, ткань, ТУ 2590-001-51664612-2003 | F62: 2,100.00р. | H62: 2,835.00р. | I62: 1,995.00р. | J62: 1,680.00р. | L62: 2,163.00р. | M62: 0.00р. | N62: 2,920.05р.
A63: СТ | C63: Пвх107 | D63: Сапоги женские ПВХ арт. 246 (33.см.) с надставкой | E63: ПВХ, водоотталкивающая ткань,ТУ 2590-001-51664612-2003 | F63: 346.00р. | H63: 467.10р. | I63: 328.70р. | J63: 276.80р. | L63: 356.38р. | M63: 0.00р. | N63: 481.11р.
A64: СТ | C64: Пвх106 | D64: Сапоги женские ПВХ арт. 266 (26см.) | E64: ПВХ, ТУ 2590-001-51664612-2003 | F64: 255.00р. | H64: 344.25р. | I64: 242.25р. | J64: 204.00р. | L64: 262.65р. | M64: 0.00р. | N64: 354.58р.
A65: СТ | C65: Пвх121 | D65: Сапоги женские ПВХ с НМС подошвой (белые) арт.370Нмб (34см.) | E65: ПВХ, ТУ 2590-001-51664612-2003 | F65: 435.00р. | H65: 587.25р. | I65: 413.25р. | J65: 348.00р. | L65: 448.05р. | M65: 0.00р. | N65: 604.87р.
A66: СТ | C66: Пвх101 | D66: Сапоги мужские ПВХ арт. 140 (26см.) | E66: ПВХ, ТУ 2590-001-51664612-2003 | F66: 295.00р. | H66: 398.25р. | I66: 280.25р. | J66: 236.00р. | L66: 303.85р. | M66: 0.00р. | N66: 410.20р.
C67: Пвх147 | D67: Сапоги мужские ПВХ арт. 141 (с надставкой 33см) | E67: ПВХ, водоотлалкивающая ткань, ТУ 2590-001-51664612-2003 | F67: 384.00р. | H67: 518.40р. | I67: 364.80р. | J67: 307.20р. | L67: 395.52р. | M67: 0.00р. | N67: 533.95р.
A68: СТ | C68: Пвх102 | D68: Сапоги мужские ПВХ арт. 146 (29см.) | E68: ПВХ, ТУ 2590-001-51664612-2003 | F68: 499.00р. | H68: 673.65р. | I68: 474.05р. | J68: 399.20р. | L68: 513.97р. | M68: 0.00р. | N68: 693.86р.
A69: СТ | C69: Пвх103 | D69: Сапоги мужские ПВХ арт. 146Н (36см.) с надставкой | E69: ПВХ, водоотталкивающая ткань, ТУ 2590-001-51664612-2003 | F69: 520.00р. | H69: 702.00р. | I69: 494.00р. | J69: 416.00р. | L69: 535.60р. | M69: 0.00р. | N69: 723.06р.
A70: СТ | C70: Пвх104 | D70: Сапоги мужские ПВХ арт. 170 (34см.) | E70: ПВХ, ТУ 2590-001-51664612-2003 | F70: 385.00р. | H70: =F70*1.35 -> 519.75р. | I70: 365.75р. | J70: 308.00р. | L70: 396.55р. | M70: 0.00р. | N70: 535.34р.
A71: СТ | C71: Пвх105 | D71: Сапоги мужские ПВХ арт. 172 (38см.) | E71: ПВХ, ТУ 2590-001-51664612-2003 | F71: 625.00р. | H71: 843.75р. | I71: 593.75р. | J71: 500.00р. | L71: 643.75р. | M71: 0.00р. | N71: 869.06р.
A72: СТ | C72: Пвх128 | D72: Сапоги женские ПВХ арт. 370 (34см.) | E72: ПВХ, ТУ 2590-001-51664612-2003 | F72: 388.00р. | H72: 523.80р. | I72: 368.60р. | J72: 310.40р. | L72: =F72*1.03 -> 399.64р. | M72: =G72*1.03 -> 0.00р. | N72: =H72*1.03 -> 539.51р.
C73: Пвх127 | D73: Сапоги мужские ПВХ арт. 175 МП | E73: ПВХ, ТУ 2590-001-51664612-2003 | F73: 855.00р. | H73: 1,154.25р. | I73: 812.25р. | J73: 684.00р. | L73: 880.65р. | M73: 0.00р. | N73: 1,188.88р.
A74: СТ | C74: Пвх120 | D74: Сапоги мужские ПВХ с НМС подошвой арт.173Нм с МП (38см.) | E74: ПВХ, ТУ 2590-001-51664612-2003 | F74: 760.00р. | H74: 1,026.00р. | I74: 722.00р. | J74: 608.00р. | L74: 782.80р. | M74: 0.00р. | N74: 1,056.78р.
A75: СТ | C75: Пвх119 | D75: Сапоги мужские ПВХ с НМС подошвой (белые) арт.172Нмб (38см.) | E75: ПВХ, ТУ 2590-001-51664612-2003 | F75: 668.00р. | H75: 901.80р. | I75: 634.60р. | J75: 534.40р. | L75: 688.04р. | M75: 0.00р. | N75: 928.85р.
C76: Пвх132 | D76: Сапоги рыбацкие с надставкой ПВХ арт. 162 | E76: ПВХ, цельнолитые, ТУ 2590-001-51664612-2003 | F76: 940.00р. | H76: rtiker | I76: 893.00р. | J76: 752.00р. | L76: 968.20р. | M76: 0.00р.
A77: СТ | C77: Пвх113 | D77: Сапоги рыбацкие с надставкой ПВХ арт. 162Т | E77: ПВХ, ткань, ТУ 2590-001-51664612-2003 | F77: 1,020.00р. | H77: 1,377.00р. | I77: 969.00р. | J77: 816.00р. | L77: 1,050.60р. | M77: 0.00р. | N77: 1,418.31р.
C78: Пвх137 | D78: Бахилы рыбацкие шипованные утепленные арт. 131ШУ (44см.) | E78: ТУ 2590-001-51664612-2003 | F78: 1,520.00р. | H78: 2,052.00р. | I78: 1,444.00р. | J78: 1,216.00р. | L78: 1,565.60р. | M78: 0.00р. | N78: 2,113.56р.
A79: СТ | C79: Пвх115 | D79: Бахилы рыбацкие шипованные утепленные арт. 132ТШ (44см.) Черные. | E79: ТЭП, Оксфорд, ТУ 2590-001-51664612-2003 | F79: 1,330.00р. | H79: 1,795.50р. | I79: 1,263.50р. | J79: 1,064.00р. | L79: 1,369.90р. | M79: 0.00р. | N79: 1,849.37р.
C80: Пвх138 | D80: Бахилы рыбацкие шипованные утепленные арт.137ШУ укороченные (34см.) | E80: ТУ 2590-001-51664612-2003 | F80: 1,270.00р. | H80: 1,714.50р. | I80: 1,206.50р. | J80: 1,016.00р. | L80: 1,308.10р. | M80: 0.00р. | N80: 1,765.94р.
C81: Пвх139 | D81: Бахилы охотничьи утепленные арт.133 ШУ (44 см) Лес | E81: ТЭП, Оксфорд, ТУ 2590-001-51664612-2003 | F81: 1,330.00р. | H81: 1,795.50р. | I81: 1,263.50р. | J81: 1,064.00р. | L81: 1,369.90р. | M81: 0.00р. | N81: 1,849.37р.
C82: Пвх151 | D82: Бахилы охотничьи утепленные укороченные арт.134 ШУ (34 см) Лес | E82: ТУ 2590-001-51664612-2003 | F82: 1,000.00р. | H82: 1,350.00р. | I82: 950.00р. | J82: 800.00р. | L82: 1,030.00р. | M82: 0.00р. | N82: 1,390.50р.
C83: Пвх136 | D83: Бахилы рыбацкие шипованные утепленные высокие арт.130ШУ (90см.) | E83: ПВХ, винитол, ТУ 2590-001-51664612-2003 | F83: 2,660.00р. | H83: 3,591.00р. | I83: 2,527.00р. | J83: 2,128.00р. | L83: 2,739.80р. | M83: 0.00р. | N83: 3,698.73р.
B84: NEW | C84: Пвх155, ПВХ156 | D84: Бахилы охотничьи Егерь КМФ арт 2101, арт 2101\01 | F84: 2,100.00р. | H84: 2,835.00р. | I84: 1,995.00р. | J84: 1,680.00р. | L84: 2,163.00р. | M84: 0.00р. | N84: 2,920.05р.
B85: NEW | C85: Пвх157 | D85: Вейдерсы рыбацкие КМФ арт 455 | F85: 7,810.00р. | H85: 10,543.50р. | I85: 7,419.50р. | J85: 6,248.00р. | L85: 8,044.30р. | M85: 0.00р. | N85: 10,859.81р.
C86: Пвх153 | D86: Стелька утепленная "Арктика" | E86: состоит из слоя ЭВА и войлока полиэфирного. Упаковка 10 шт. | F86: 34.00р. | H86: 45.90р. | I86: 32.30р. | J86: 27.20р. | L86: 35.02р. | M86: 0.00р. | N86: 47.28р.
B87: 4.4 | C87: Утепленная рабочая обувь | E87: вернуться в Оглавление | L87: 0.00р. | M87: 0.00р. | N87: 0.00р.
A88: СТ | C88: Кож217 | D88: Ботинки кожаные хромовые "Омон" утепленные | E88: Цвет: чёрный. Материалы: верх: кожа, подкладка: искуственный мех, подошва: ТЭП, ГОСТ 12.4.137-84 | F88: 1,260.00р. | H88: 1,701.00р. | I88: =F88*0.95 -> 1,197.00р. | J88: =F88*0.8 -> 1,008.00р. | L88: 1,297.80р. | M88: 0.00р. | N88: 1,752.03р.
A89: СТ | C89: Кож218 | D89: Ботинки кожаные хромовые "Омон" утепленные натуральным мехом | E89: Цвет: чёрный. Материалы: верх: кожа, подкладка: натуральный мех, подошва: ТЭП, ГОСТ 12.4.137-84 | F89: 1,790.00р. | H89: 2,416.50р. | I89: 1,700.50р. | J89: 1,432.00р. | L89: 1,843.70р. | M89: 0.00р. | N89: 2,489.00р.
A90: ПР | C90: Кож203 | D90: Ботинки утепленные кожаные с высоким берцем "ОМОН-Люкс" иск мех | E90: Цвет: чёрный. Материалы: верх: кожа, подкладка: искуственный мех, подошва: ТЭП, ГОСТ 12.4.137-84 | F90: 2,570.00р. | H90: 3,469.50р. | I90: 2,441.50р. | J90: 2,056.00р. | L90: 2,647.10р. | M90: 0.00р. | N90: 3,573.59р.
A91: ПР | C91: Кож204 | D91: Ботинки утепленные кожаные с высоким берцем "ОМОН-Люкс" нат мех | E91: Цвет: чёрный. Материалы: верх: кожа, подкладка: натуральный мех, подошва: ТЭП, ГОСТ 12.4.137-84 | F91: 3,270.00р. | G91: =SUBTOTAL(9,G92:G150) -> 3,500.00р. | H91: 4,414.50р. | I91: 3,106.50р. | J91: 2,616.00р. | L91: 3,368.10р. | M91: 3,605.00р. | N91: 4,546.94р.
B92: SPEC | C92: Кож226 | D92: Ботинки утепленные кожаные «Олимп-13M» ПУ подошва | E92: Цвет: чёрный. Материалы:верх: кожа, подкладка: искуственный мех, подошва: ПУ(МБС, антистатичная, износоустойчивая). ГОСТ 12.4.137-84 | F92: 820.00р. | H92: 1,107.00р. | I92: =F92*0.97 -> 795.40р. | J92: =F92*0.93 -> 762.60р. | L92: 844.60р. | M92: 0.00р. | N92: 1,140.21р.
B93: SPEC | C93: Кож227 | D93: Ботинки утепленные кожаные «Олимп-14» ПУ подошва с МП | E93: Цвет: чёрный. Материалы:верх: кожа, подкладка: искуственный мех, подошва: ПУ/ТПУ(МБС, антистатичная, износоустойчивая). МП 200Дж, ГОСТ 12.4.137-84 | F93: 860.00р. | H93: 1,161.00р. | I93: =F93*0.97 -> 834.20р. | J93: =F93*0.93 -> 799.80р. | L93: 885.80р. | M93: 0.00р. | N93: 1,195.83р.
B94: SPEC | C94: Кож225 | D94: Ботинки утепленные кожаные «Викинг-13/1» ПУ/ТПУ подошва | E94: Цвет: чёрный. Материалы:верх: кожа, подкладка: искуственный мех, подошва: 2-х слойный полиуретан (МБС, антистатичная, износоустойчивая) ПУ/ТПУ, ГОСТ 12.4.137-84 | F94: 920.00р. | H94: 1,242.00р. | I94: =F94*0.97 -> 892.40р. | J94: =F94*0.93 -> 855.60р. | L94: 947.60р. | M94: 0.00р. | N94: 1,279.26р.
B95: SPEC | C95: Кож228 | D95: Ботинки утепленные кожаные «Викинг-14/1» ПУ/ТПУ подошва с МП | E95: Цвет: чёрный. Материалы:верх: кожа, подкладка: искуственный мех, подошва: 2-х слойный полиуретан (МБС, антистатичная, износоустойчивая) ПУ/ТПУ, МП 200Дж, ГОСТ 12.4.137-84 | F95: 950.00р. | H95: 1,282.50р. | I95: 921.50р. | J95: 883.50р. | L95: 978.50р. | M95: 0.00р. | N95: 1,320.98р.
B96: SPEC | C96: Кож230 | D96: Ботинки утепленные кожаные «Викинг-17М» ПУ/ТПУ подошва с МП | E96: Цвет: чёрный. Материалы:верх: кожа+ Cordura, подкладка: искуственный мех, подошва: 2-х слойный полиуретан (МБС, антистатичная, износоустойчивая) ПУ/ТПУ, МП 200Дж, ГОСТ 12.4.137-84 | F96: 1,825.00р. | H96: 2,463.75р. | I96: 1,770.25р. | J96: 1,697.25р. | L96: 1,879.75р. | M96: 0.00р. | N96: 2,537.66р.
B97: SPEC | C97: Кож231 | D97: Ботинки утепленные кожаные «Викинг-27» ПУ/ТПУ подошва с МП | E97: Цвет: чёрный с оранжевыми вставками. Материалы:верх: кожа+ Cordura, подкладка: искуственный мех, подошва: ПУ/ТПУ(МБС, износоустойчивая, антистатичная). МП 200Дж, ГОСТ 12.4.137-84 | F97: 1,990.00р. | H97: 2,686.50р. | I97: 1,930.30р. | J97: 1,850.70р. | L97: 2,049.70р. | M97: 0.00р. | N97: 2,767.10р.
B98: SPEC | C98: Кож236 | D98: Ботинки утепленные кожаные «Викинг-14Р» нитрильная резина подошва с МП | E98: Цвет: чёрный. Материалы:верх: кожа, подкладка: искуственный мех, подошва:нитрильная резина. МП 200Дж, ГОСТ 12.4.137-84 | F98: 1,100.00р. | H98: 1,485.00р. | I98: =F98*0.97 -> 1,067.00р. | J98: =F98*0.93 -> 1,023.00р. | L98: 1,133.00р. | M98: 0.00р. | N98: 1,529.55р.
B99: SALE | C99: Кож205 | D99: Ботинки утепленные "ВИКИНГ НИТРО" ПУ/нитрил с КП 200Дж иск мех | E99: Цвет: чёрный. Материалы:верх: кожа, подкладка: полушерстяной мех, подошва: ПУ/нитрильная резина. КП 200Дж, ГОСТ 12.4.137-84 | F99: 1,100.00р. | H99: 1,100.00р. | I99: 1,100.00р. | J99: 1,100.00р. | L99: 1,133.00р. | M99: 0.00р. | N99: 1,133.00р.
B100: SPEC | C100: Кож232 | D100: Ботинки утепленные "ВИКИНГ НИТРО-22РНМ" ПУ/резина с КП 200Дж натур.мех | E100: Цвет: чёрный с красными вставками. Материалы:верх: кожа, подкладка: натуральный мех, подошва: 1-й слой - ПУ (полиуретан), 2-ой слой - износоустойчивая резина (МБС). КП 200Дж, ГОСТ 12.4.137-84 | F100: 2,910.00р. | H100: 3,928.50р. | I100: =F100*0.97 -> 2,822.70р. | J100: =F100*0.93 -> 2,706.30р. | L100: 2,997.30р. | M100: 0.00р. | N100: 4,046.36р.
B101: SPEC | C101: Кож245 | D101: Ботинки утепленные кожаные "Викинг-112" ПУ/Нитрил подошва с КП 200Дж | F101: 2,300.00р. | H101: 3,105.00р. | I101: 2,231.00р. | J101: 2,139.00р. | L101: 2,369.00р. | M101: 0.00р. | N101: 3,198.15р.
B102: SPEC | C102: Кож177 | D102: Ботинки кожаные Lider ПУ\ТПУ искуственный мех | F102: 1,010.00р. | H102: 1,363.50р. | I102: =F102*0.97 -> 979.70р. | J102: =F102*0.93 -> 939.30р. | L102: 1,040.30р. | M102: 0.00р. | N102: 1,404.41р.
B103: SPEC | C103: Кож180 | D103: Сапоги кожаные Lider ПУ\ТПУ искуственный мех | F103: 1,230.00р. | H103: 1,660.50р. | I103: 1,193.10р. | J103: 1,143.90р. | L103: 1,266.90р. | M103: 0.00р. | N103: 1,710.32р.
B104: SPEC | C104: Кож179 | D104: Ботинки "Мистраль" ПУ-ПУ с МП и МС искуственный мех | F104: 1,150.00р. | H104: 1,552.50р. | I104: =F104*0.97 -> 1,115.50р. | J104: =F104*0.93 -> 1,069.50р. | L104: 1,184.50р. | M104: 0.00р. | N104: 1,599.08р.
B105: SPEC | C105: Кож178 | D105: Сапоги "Мистраль" ПУ-ТПУ с МП и МС искуственный мех | F105: 1,530.00р. | H105: 2,065.50р. | I105: 1,484.10р. | J105: 1,422.90р. | L105: 1,575.90р. | M105: 0.00р. | N105: 2,127.47р.
B106: SPEC | C106: Бот1 | D106: Ботинки утепленные (шерстин) кожаные "Барс" ПУ\ТПУ с КП | E106: Цвет: чёрный. Материалы: верх: кожа, подошва: ПУ/ТПУ, композитный подносок 200Дж, утеплитель шерстин ГОСТ 12.4.187-97 | F106: 1,765.00р. | H106: 2,382.75р. | I106: =F106*0.97 -> 1,712.05р. | J106: =F106*0.93 -> 1,641.45р. | L106: 1,817.95р. | M106: 0.00р. | N106: 2,454.23р.
B107: SPEC | C107: Бот3 | D107: Сапоги утепленные (шерстин) кожаные "Барс" ПУ\ТПУ с КП | E107: Цвет: чёрный. Материалы: верх: кожа, подошва: ПУ/ТПУ, композитный подносок 200Дж, утеплитель шерстин ГОСТ 12.4.187-97 | F107: 1,815.00р. | H107: 2,450.25р. | I107: 1,760.55р. | J107: 1,687.95р. | L107: 1,869.45р. | M107: 0.00р. | N107: 2,523.76р.
A108: СТ | B108: SALE | C108: Кож237 | D108: Сапоги утепленные юфть/кирза «Викинг» ПУ/ТПУ подошва | E108: Цвет: чёрный. Материалы:верх: юфть/кирза, подкладка: искуственный мех, подошва: ПУ/ТПУ. ГОСТ 12.4.137-84 | F108: 1,240.00р. | H108: 1,674.00р. | I108: =F108*0.95 -> 1,178.00р. | J108: 992.00р. | L108: 1,277.20р. | M108: 0.00р. | N108: 1,724.22р.
A109: СТ | B109: SALE | C109: Кож238 | D109: Сапоги утепленные юфть/кирза «Викинг» ПУ/ТПУ подошва с МП | E109: Цвет: чёрный. Материалы:верх: юфть/кирза, подкладка: искуственный мех, подошва: ПУ/ТПУ, МП 200Дж, ГОСТ 12.4.137-84 | F109: 1,360.00р. | H109: 1,836.00р. | I109: 1,292.00р. | J109: 1,088.00р. | L109: 1,400.80р. | M109: 0.00р. | N109: 1,891.08р.
B110: SPEC | C110: Кож242 | D110: Ботинки утепленные кожаные «Викинг 29» ПУ/Нитрил подошва с МП | E110: Верх: натуральная кожа. Подкладка/утеплитель: шерстин Подошва: ПУ \ износоустойчивая резина (МБС) Подносок: металлический (максимальная ударная нагрузка 200Дж). Стелька: картон + шерстин | F110: 1,910.00р. | H110: 2,578.50р. | I110: =F110*0.97 -> 1,852.70р. | J110: =F110*0.93 -> 1,776.30р. | L110: 1,967.30р. | M110: 0.00р. | N110: 2,655.86р.
A111: ПР | C111: Кож201 | D111: Ботинки утепленные иск. мехом кожаные "ПИЛОТ" | E111: Цвет: чёрный. Материалы: верх: кожа, подкладка: искуственный мех, подошва: ПУ, ГОСТ 12.4.137-84 | F111: 2,420.00р. | H111: 3,267.00р. | I111: 2,299.00р. | J111: 1,936.00р. | L111: 2,492.60р. | M111: 0.00р. | N111: 3,365.01р.
A112: ПР | C112: Кож202 | D112: Ботинки утепленные нат. мехом кожаные "ПИЛОТ" | E112: Цвет: чёрный. Материалы: верх: кожа, подкладка: натуральный мех, подошва: ПУ, ГОСТ 12.4.137-84 | F112: 2,980.00р. | H112: 4,023.00р. | I112: 2,831.00р. | J112: 2,384.00р. | L112: 3,069.40р. | M112: 0.00р. | N112: 4,143.69р.
B113: SPEC | C113: Кож243 | D113: Сапоги утепленные юфть/винилискожа "Олимп-150КМ" ПУ подошва с МП | F113: 1,025.00р. | H113: 1,383.75р. | I113: =F113*0.97 -> 994.25р. | J113: =F113*0.93 -> 953.25р. | L113: 1,055.75р. | M113: 0.00р. | N113: 1,425.26р.
B114: SPEC | C114: Кож244 | D114: Сапоги утепленные юфть/кирза "Олимп-15ОМ" ПУ подошва | F114: 955.00р. | H114: 1,289.25р. | I114: 926.35р. | J114: 888.15р. | L114: 983.65р. | M114: 0.00р. | N114: 1,327.93р.
A115: ЭК | B115: SALE | C115: Кож219 | D115: Ботинки утепленные кожаные "Олимп" ПУ подошва | E115: Цвет: чёрный. Материалы: верх: кожа, подкладка: искуственный мех, подошва: ПУ, ГОСТ 12.4.137-84 | F115: 800.00р. | G115: 800.00р. | H115: 800.00р. | I115: 800.00р. | J115: 800.00р. | L115: 824.00р. | M115: 824.00р. | N115: 824.00р.
A116: ЭК | B116: SALE | C116: Кож220 | D116: Ботинки утепленные кожаные "Олимп" ПУ подошва с МП | E116: Цвет: чёрный. Материалы: верх: кожа, подкладка: искуственный мех, подошва: ПУ, МП 200Дж, ГОСТ 12.4.137-84 | F116: 800.00р. | G116: 800.00р. | H116: 800.00р. | I116: 800.00р. | J116: 800.00р. | L116: 824.00р. | M116: 824.00р. | N116: 824.00р.
A117: ЭК | B117: SALE | C117: Кож221 | D117: Сапоги утепленные кожаные "Олимп" ПУ подошва | E117: Цвет: чёрный. Материалы: верх: кожа, подкладка: искуственный мех, подошва: ПУ, ГОСТ 12.4.137-84 | F117: 950.00р. | G117: 950.00р. | H117: 950.00р. | I117: 950.00р. | J117: 950.00р. | L117: 978.50р. | M117: 978.50р. | N117: 978.50р.
A118: ЭК | B118: SALE | C118: Кож222 | D118: Сапоги утепленные кожаные "Олимп" ПУ подошва с МП | E118: Цвет: чёрный. Материалы: верх: кожа, подкладка: искуственный мех, подошва: ПУ, МП 200Дж, ГОСТ 12.4.137-84 | F118: 950.00р. | G118: 950.00р. | H118: 950.00р. | I118: 950.00р. | J118: 950.00р. | L118: 978.50р. | M118: 978.50р. | N118: 978.50р.
B119: SPEC | C119: Кож234 | D119: Сапоги утепленные кожаные "Олимп-16" ПУ подошва с МП | E119: Цвет: чёрный. Материалы: верх: кожа, подкладка: искуственный мех, подошва: ПУ(МБС, антистатичная, износоустойчивая), МП200 Дж, ГОСТ 12.4.137-84 | F119: 1,230.00р. | H119: =F119*1.35 -> 1,660.50р. | I119: =F119*0.97 -> 1,193.10р. | J119: =F119*0.93 -> 1,143.90р. | L119: 1,266.90р. | M119: 0.00р. | N119: 1,710.32р.
B120: SPEC | C120: Кож240 | D120: Сапоги рабочие утепленные шерстином кожаные "Викинг 18РНМ/1" подошва ПУ\резина с КП 200 Дж | E120: Верх - натуральная лицевая кожа. Утеплитель - шерстин. Подошва: ПУ \ резина (МБС) Подносок Композитный (200Дж). Стелька - шерстин. | F120: 2,270.00р. | H120: 3,064.50р. | I120: =F120*0.97 -> 2,201.90р. | J120: =F120*0.93 -> 2,111.10р. | L120: 2,338.10р. | M120: 0.00р. | N120: 3,156.44р.
B121: SPEC | C121: Кож241 | D121: Сапоги рабочие утепленные нат мехом кожаные "Викинг 18РНМ/1" подошва ПУ\резина с КП 200 Дж | E121: Верх - натуральная лицевая кожа. Утеплитель - натуральный мех. Подошва: ПУ \ резина (МБС) Подносок Композитный (200Дж). Стелька - натуральный мех. | F121: 3,280.00р. | H121: 4,428.00р. | I121: 3,181.60р. | J121: 3,050.40р. | L121: 3,378.40р. | M121: 0.00р. | N121: 4,560.84р.
B122: SPEC | C122: Кож246 | D122: Сапоги утепленные кожаные "Викинг-16/1М" ПУ/ТПУ подошва с МП | F122: 1,310.00р. | H122: 1,768.50р. | I122: =F122*0.97 -> 1,270.70р. | J122: =F122*0.93 -> 1,218.30р. | L122: 1,349.30р. | M122: 0.00р. | N122: 1,821.56р.
A123: ПР | C123: Комб114 | D123: Сапоги утепленные «Штурм» с МП До -50ºС | E123: Материалы: верх: текстильный материал Condura, подкладка: дуплекс и трикотаж, подошва: резина (МБС, КЩС) , МП 200Дж, галоша: резиновая, МБС | F123: 4,920.00р. | H123: 6,642.00р. | I123: =F123*0.95 -> 4,674.00р. | J123: 3,936.00р. | L123: 5,067.60р. | M123: 0.00р. | N123: 6,841.26р.
A124: ПР | C124: Комб115 | D124: Сапоги утепленные "Югра" с КП. До -50ºС | E124: Материалы: верх: текстильный материал Checker, дублированный EVA, подкладка:дуплекс и трикотаж, подошва: резина (МБС, КЩС) , КП 200Дж, галоша: резиновая, утеплитель ЗМ Thinsulate 400gr. МБС | F124: 4,950.00р. | H124: 6,682.50р. | I124: 4,702.50р. | J124: 3,960.00р. | L124: 5,098.50р. | M124: 0.00р. | N124: 6,882.98р.
C125: Кож235 | D125: Ботинки утепленные кожаные "Сварщик" ПУ/нитрильная резина подошва с МП | E125: Цвет: чёрный. Материалы: верх: кожа, утеплитель: искусственный мех, подошва: ПУ/нитрильная резина, МП 200Дж, ГОСТ 12.4.137-84 | F125: 1,670.00р. | H125: 2,254.50р. | I125: 1,586.50р. | J125: 1,336.00р. | L125: 1,720.10р. | M125: 0.00р. | N125: 2,322.14р.
C126: Комб121 | D126: Антискользящее устройство Х005 | E126: Материал: морозостойкая резина, 10 шипов | F126: 390.00р. | H126: 526.50р. | I126: 370.50р. | J126: 312.00р. | L126: 401.70р. | M126: 0.00р. | N126: 542.30р.
C127: Комб122 | D127: Антискользящее устройство Х017 женское | E127: Материал: морозостойкая резина, 6 шипов | F127: 340.00р. | H127: 459.00р. | I127: 323.00р. | J127: 272.00р. | L127: 350.20р. | M127: 0.00р. | N127: 472.77р.
B128: SALE | C128: Комб113 | D128: Галоши резиновые на валенки | E128: Материал: ПВХ, ТУ 2590-001-51664612-2003 | F128: 150.00р. | H128: 150.00р. | I128: 150.00р. | J128: 150.00р. | L128: 154.50р. | M128: 0.00р. | N128: 154.50р.
A129: ЭК | C129: Комб108 | D129: Полусапоги женские суконные | E129: Материал: сукно, подошва: ПВХ, ГОСТ26166-84 | F129: 565.00р. | H129: 762.75р. | I129: =F129*0.95 -> 536.75р. | J129: 452.00р. | L129: 581.95р. | M129: 0.00р. | N129: 785.63р.
A130: ЭК | C130: Комб107 | D130: Полусапоги мужские суконные | E130: Материал: сукно, подошва: ПВХ, ГОСТ26166-84 | F130: 530.00р. | H130: 715.50р. | I130: 503.50р. | J130: 424.00р. | L130: 545.90р. | M130: 0.00р. | N130: 736.97р.
A131: ЭК | C131: Комб112 | D131: Сапоги женские «Дутики» | E131: Материалы: водоотталкивающая ткань, подошва: ПВХ, ТУ 2590-002-56878648-06 | F131: 645.00р. | H131: 870.75р. | I131: 612.75р. | J131: 516.00р. | L131: 664.35р. | M131: 0.00р. | N131: 896.87р.
A132: ЭК | C132: Комб111 | D132: Сапоги мужские «Дутики» | E132: Материалы: водоотталкивающая ткань, подошва: ПВХ, ТУ 2590-002-56878648-06 | F132: 655.00р. | H132: 884.25р. | I132: 622.25р. | J132: 524.00р. | L132: 674.65р. | M132: 0.00р. | N132: 910.78р.
B133: NEW | C133: Комб128 | D133: Сапоги Bear черные арт 2105 | F133: 1,020.00р. | H133: 1,377.00р. | I133: 969.00р. | J133: 816.00р. | L133: 1,050.60р. | M133: 0.00р. | N133: 1,418.31р.
B134: NEW | C134: Комб129 | D134: Сапоги Robust арт 1005У оливковый | F134: 2,020.00р. | H134: 2,727.00р. | I134: 1,919.00р. | J134: 1,616.00р. | L134: 2,080.60р. | M134: 0.00р. | N134: 2,808.81р.
B135: NEW | C135: Комб130 | D135: Сапоги Striker арт 2000НУ оливковый | F135: 1,430.00р. | H135: 1,930.50р. | I135: 1,358.50р. | J135: 1,144.00р. | L135: 1,472.90р. | M135: 0.00р. | N135: 1,988.42р.
B136: NEW | C136: Комб131 | D136: Сапоги Striker арт 2002НУ оливковый | F136: 1,375.00р. | H136: 1,856.25р. | I136: 1,306.25р. | J136: 1,100.00р. | L136: =F136*1.03 -> 1,416.25р. | M136: =G136*1.03 -> 0.00р. | N136: =H136*1.03 -> 1,911.94р.
B137: NEW | C137: Комб132 | D137: Обувь комбинированная СТУ-010 Ямал | F137: 4,490.00р. | H137: 6,061.50р. | I137: 4,265.50р. | J137: 3,592.00р. | L137: 4,624.70р. | M137: 0.00р. | N137: 6,243.35р.
B138: NEW | C138: Комб133 | D138: Обувь комбинированная СТУ-033 С Сибирь | F138: 3,650.00р. | H138: 4,927.50р. | I138: 3,467.50р. | J138: 2,920.00р. | L138: 3,759.50р. | M138: 0.00р. | N138: 5,075.33р.
B139: NEW | C139: Комб134 | D139: Обувь комбинированная Тобол | F139: 5,920.00р. | H139: 7,992.00р. | I139: 5,624.00р. | J139: 4,736.00р. | L139: 6,097.60р. | M139: 0.00р. | N139: 8,231.76р.
B140: NEW | C140: Комб135 | D140: Обувь комбинированная ТХ-011 Надым | F140: 6,420.00р. | H140: 8,667.00р. | I140: 6,099.00р. | J140: 5,136.00р. | L140: 6,612.60р. | M140: 0.00р. | N140: 8,927.01р.
B141: NEW | C141: Комб136 | D141: Сапоги специальные ДСТ-200 Petrol -1 | F141: 3,820.00р. | H141: 5,157.00р. | I141: 3,629.00р. | J141: 3,056.00р. | L141: 3,934.60р. | M141: 0.00р. | N141: 5,311.71р.
B142: NEW | C142: Кож247 | D142: Унты Охотник черные | F142: 4,600.00р. | H142: 6,210.00р. | I142: 4,370.00р. | J142: 3,680.00р. | L142: 4,738.00р. | M142: 0.00р. | N142: 6,396.30р.
B143: NEW | C143: Комб116 | D143: Сапоги мужские ЭВА, утепленные. Арт 121 | F143: 658.00р. | H143: 888.30р. | I143: 625.10р. | J143: 526.40р. | L143: 677.74р. | M143: 0.00р. | N143: 914.95р.
B144: NEW | C144: Комб117 | D144: Сапоги женские ЭВА, утепленные. Арт 321 | F144: 590.00р. | H144: 796.50р. | I144: 560.50р. | J144: 472.00р. | L144: 607.70р. | M144: 0.00р. | N144: 820.40р.
C145: Комб110 | D145: Валенки | E145: Материал: верх обуви шерсть. ГОСТ 18724-88 | F145: 890.00р. | H145: 1,201.50р. | I145: 845.50р. | J145: 712.00р. | L145: 916.70р. | M145: 0.00р. | N145: 1,237.55р.
A146: СТ | C146: Комб106 | D146: Валенки на резиновой подошве | E146: Материал: верх обуви шерсть, подошва: ПВХ, ГОСТ 18724-88 | F146: 995.00р. | H146: 1,343.25р. | I146: 945.25р. | J146: 796.00р. | L146: 1,024.85р. | M146: 0.00р. | N146: 1,383.55р.
C147: Комб105 | D147: Сапоги войлочные «Лесник» | E147: Материалы: верх: союзка: лицевая кожа, голенище: войлок 6-7 мм подошва: резина | F147: 2,230.00р. | H147: 3,010.50р. | I147: 2,118.50р. | J147: 1,784.00р. | L147: 2,296.90р. | M147: 0.00р. | N147: 3,100.82р.
B148: 4.5 | C148: Повседневная и прочая обувь | E148: вернуться в Оглавление | L148: 0.00р. | M148: 0.00р. | N148: 0.00р.
C149: Дом102 | D149: Туфли женские кожаные закрытые подошва ПВХ | E149: Цвет: чёрный, белый. Материалы: верх: кожа, подкладка: Cambrelle®, подошва: ПВХ, ГОСТ 12.4.137-84 | F149: 1,040.00р. | H149: 1,404.00р. | I149: =F149*0.95 -> 988.00р. | J149: =F149*0.8 -> 832.00р. | L149: 1,071.20р. | M149: 0.00р. | N149: 1,446.12р.
C150: Дом101 | D150: Туфли мужские кожаные закрытые подошва ПВХ с перфорацией | E150: Цвет: чёрный, белый. Материалы: верх: кожа, подкладка: Cambrelle®, подошва: ПВХ, ГОСТ 12.4.137-84 | F150: 1,175.00р. | H150: 1,586.25р. | I150: 1,116.25р. | J150: 940.00р. | L150: 1,210.25р. | M150: 0.00р. | N150: 1,633.84р.
C151: Дом105 | D151: Туфли женские кожаные закрытые подошва ПВХ с перфорацией | E151: Цвет: чёрный, белый. Материалы: верх: кожа, подкладка: Cambrelle®, подошва: ПВХ, ГОСТ 12.4.137-84 | F151: 1,040.00р. | H151: 1,404.00р. | I151: 988.00р. | J151: 832.00р. | L151: 1,071.20р. | M151: 0.00р. | N151: 1,446.12р.
C152: Дом106 | D152: Туфли мужские кожаные закрытые подошва ПВХ | E152: Цвет: чёрный, белый. Материалы: верх: кожа, подкладка: Cambrelle®, подошва: ПВХ, ГОСТ 12.4.137-84 | F152: 1,175.00р. | H152: 1,586.25р. | I152: 1,116.25р. | J152: 940.00р. | L152: 1,210.25р. | M152: 0.00р. | N152: 1,633.84р.
B153: NEW | C153: Кож174 | D153: Туфли-короссовки черные | F153: 680.00р. | H153: 918.00р. | I153: 646.00р. | J153: 544.00р. | L153: 700.40р. | M153: 0.00р. | N153: 945.54р.
A154: ЭК | C154: Кож132 | D154: Сабо кожаные женские | E154: Цвет: чёрный, белый. Материалы: верх: кожа, подкладка: Cambrelle®, подошва: ПВХ, ГОСТ 12.4.137-84 | F154: 760.00р. | H154: 1,026.00р. | I154: 722.00р. | J154: 608.00р. | L154: 782.80р. | M154: 0.00р. | N154: 1,056.78р.
A155: ЭК | C155: Кож133 | D155: Сабо кожаные мужские | E155: Цвет: чёрный, белый. Материалы: верх: кожа, подкладка: Cambrelle®, подошва: ПВХ, ГОСТ 12.4.137-84 | F155: 720.00р. | H155: 972.00р. | I155: 684.00р. | J155: 576.00р. | L155: 741.60р. | M155: 0.00р. | N155: 1,001.16р.
A156: ЭК | C156: Кож162 | D156: Тапочки вельветовые мужские | E156: Цвет: черный. Материалы: обувная ткань "Вельвет" (100% ХЛ). Подошва: ПВХ, строчно-литьевое крепление | F156: 255.00р. | H156: 344.25р. | I156: 242.25р. | J156: 204.00р. | L156: 262.65р. | M156: 0.00р. | N156: 354.58р.
A157: ЭК | C157: Кож163 | D157: Тапочки вельветовые женские | E157: Цвет: черный. Материалы: обувная ткань "Вельвет" (100% ХЛ). Подошва: ПВХ, строчно-литьевое крепление | F157: 230.00р. | H157: 310.50р. | I157: 218.50р. | J157: 184.00р. | L157: 236.90р. | M157: 0.00р. | N157: 319.82р.
C158: Обувь для активного отдыха | E158: вернуться в Оглавление | L158: 0.00р. | M158: 0.00р. | N158: 0.00р.
C159: Кож168 | D159: Ботинки мужские арт. 162 | E159: Материал верха – натуральный велюр (т. 2,0 мм) с водоотталкивающей пропиткой + Cordura®, подкладка синтетический материал на мембране Advanta®, подошва термостойкая резина + ЭВА | F159: 3,920.00р. | H159: =F159*1.35 -> 5,292.00р. | I159: =F159*0.95 -> 3,724.00р. | J159: =F159*0.8 -> 3,136.00р. | L159: 4,037.60р. | M159: 0.00р. | N159: 5,450.76р.
C160: Кож169 | D160: Ботинки мужские арт. 163 | E160: Материал верха – натуральный велюр (т. 2,0 мм) с водоотталкивающей пропиткой + Cordura®, подкладка синтетический материал на мембране Advanta®, подошва термостойкая резина + ЭВА | F160: 4,000.00р. | H160: 5,400.00р. | I160: 3,800.00р. | J160: 3,200.00р. | L160: 4,120.00р. | M160: 0.00р. | N160: 5,562.00р.
C161: Комб124 | D161: Ботинки мужские арт. 75 | E161: Верх: нубук с ВО пропиткой, подкладка: флис, подошва: износоустойчивая резина, галоша прикреплена к берцам ниточным швом, проклеенным изнутри | F161: 3,030.00р. | H161: 4,090.50р. | I161: 2,878.50р. | J161: 2,424.00р. | L161: 3,120.90р. | M161: 0.00р. | N161: 4,213.22р.
C162: Комб125 | D162: Ботинки мужские арт. 76 | E162: Верх: нубук с ВО пропиткой, подкладка: флис, подошва: износоустойчивая резина, галоша прикреплена к берцам ниточным швом, проклеенным изнутри | F162: 3,140.00р. | H162: 4,239.00р. | I162: 2,983.00р. | J162: 2,512.00р. | L162: 3,234.20р. | M162: 0.00р. | N162: 4,366.17р.
C163: Комб126 | D163: Ботинки мужские арт. 77 | E163: Высота берец 24см, верх: натуральная хромовая кожа + Cordura, подошва ТПУ, утеплитель Thinsulate 3M 200 грамм | F163: 2,820.00р. | H163: 3,807.00р. | I163: 2,679.00р. | J163: 2,256.00р. | L163: 2,904.60р. | M163: 0.00р. | N163: 3,921.21р.
C164: Комб127 | D164: Ботинки мужские арт. 78 | E164: Высота берец 24см, верх: натуральная хромовая кожа + Cordura, подошва ТПУ, утеплитель Thinsulate 3M 200 грамм | F164: 2,740.00р. | H164: 3,699.00р. | I164: 2,603.00р. | J164: 2,192.00р. | L164: 2,822.20р. | M164: 0.00р. | N164: 3,809.97р.
C165: Кож170 | D165: Ботинки мужские арт. 168 | E165: Верх: текстиль, подкладка: мембрана, подошва: ПУ/резина Высота: 18 см | F165: 4,000.00р. | H165: 5,400.00р. | I165: 3,800.00р. | J165: 3,200.00р. | L165: 4,120.00р. | M165: 0.00р. | N165: 5,562.00р.
C166: Кож171 | D166: Ботинки мужские арт. 169 | E166: Верх: текстиль, подкладка: мембрана, подошва: ПУ/резина Высота: 18 см | F166: 4,000.00р. | H166: 5,400.00р. | I166: 3,800.00р. | J166: 3,200.00р. | L166: 4,120.00р. | M166: 0.00р. | N166: 5,562.00р.
C167: Кож172 | D167: Ботинки мужские арт. 161 | E167: Высота 24 см. Верх: натуральная кожа (велюр) с гидрофобной пропиткой и Cordura (камуфляж), подкладка текстиль, подошва: EVA / износоустойчивая резина | F167: 4,090.00р. | H167: 5,521.50р. | I167: 3,885.50р. | J167: 3,272.00р. | L167: 4,212.70р. | M167: 0.00р. | N167: 5,687.15р.

Sheet СИЗ
B2: ПРАЙС | D2: от | E2: =Оглавление!I2 -> 2019-11-26
H3: 115% | I3: 10% | J3: 15% | N3: 115%
A4: сегмент | B4: Статус | C4: Код | D4: Наименование | E4: Описание | F4: Цена | G4: Цена | H4: Розничная цена (менее 20 т.р) | I4: Цена оптовика | J4: Мин. Цена оптовика | L4: Цена | M4: Цена | N4: Розничная цена (менее 20 т.р)
B5: 5 | C5: СРЕДСТВА ЗАЩИТЫ
B6: 5.1 | C6: Защита рук | E6: вернуться в Оглавление | G6: =SUBTOTAL(9,G7:G103) -> 00:00:00 | M6: =SUBTOTAL(9,M7:M103) -> 00:00:00
C7: 5.1.1 | D7: Рукавицы | E7: вернуться в Оглавление | G7: =SUBTOTAL(9,G8:G26) -> 00:00:00 | M7: =SUBTOTAL(9,M8:M26) -> 00:00:00
C8: Рук102 | D8: Рукавицы х\б с ПВХ наладонником | E8: Двунитка 235 г/м2 | F8: 26.00р. | H8: =F8*1.35 -> 35.10р. | I8: =F8*0.95 -> 24.70р. | J8: =F8*0.8 -> 20.80р. | L8: =F8*1.03 -> 26.78р. | M8: =G8*1.03 -> 0.00р. | N8: 36.15р.
C9: Рук101 | D9: Рукавицы х\б с двойным наладонником | E9: Двунитка 235 г/м2 | F9: 26.00р. | H9: =F9*1.35 -> 35.10р. | I9: =F9*0.95 -> 24.70р. | J9: =F9*0.8 -> 20.80р. | L9: =F9*1.03 -> 26.78р. | M9: =G9*1.03 -> 0.00р. | N9: =H9*1.03 -> 36.15р.
C10: Рук103 | D10: Рукавицы х\б с брезентовым наладонником | E10: Двунитка 235 г/м2, брезент 480 г/м2 | F10: 28.00р. | H10: 37.80р. | I10: 26.60р. | J10: 22.40р. | L10: 28.84р. | M10: 0.00р. | N10: 38.93р.
C11: Рук106 | D11: Рукавицы брезентовые ОП 480 г/м | E11: Брезент ОП, 480 г/м2 | F11: 41.00р. | H11: 55.35р. | I11: 38.95р. | J11: 32.80р. | L11: 42.23р. | M11: 0.00р. | N11: 57.01р.
C12: Рук107 | D12: Рукавицы брезентовые ОП с двойным наладонником 480 г/м | E12: Брезент ОП, 480 г/м2 | F12: 50.00р. | H12: 67.50р. | I12: 47.50р. | J12: 40.00р. | L12: 51.50р. | M12: 0.00р. | N12: 69.53р.
C13: Рук108 | D13: Рукавицы брезентовые ОП с двойным наладонником 550 г/м | E13: Брезент ОП, 550 г/м2 | F13: 52.00р. | H13: 70.20р. | I13: 49.40р. | J13: 41.60р. | L13: 53.56р. | M13: 0.00р. | N13: 72.31р.
C14: Рук112 | D14: Рукавицы х\б утепленные ватином | E14: Диагональ, утеплитель ватин | F14: 59.00р. | H14: 79.65р. | I14: 56.05р. | J14: 47.20р. | L14: 60.77р. | M14: 0.00р. | N14: 82.04р.
C15: Рук111 | D15: Рукавицы антивибрационные х/б с брезентовым наладонником | E15: Двунитка 230 г/м2, брезент 480 г/м2 | F15: 57.00р. | H15: 76.95р. | I15: 54.15р. | J15: 45.60р. | L15: 58.71р. | M15: 0.00р. | N15: 79.26р.
C16: Рук113 | D16: Рукавицы х\б утепленные ватином с брезентовым наладонником | E16: Смесовая, наладонник из брезент ОП 420 г/м2, утеплитель ватин. | F16: 57.00р. | H16: 76.95р. | I16: 54.15р. | J16: 45.60р. | L16: 58.71р. | M16: 0.00р. | N16: 79.26р.
C17: Рук120 | D17: Рукавицы КР | E17: Байка с начесом, ПВХ | F17: 115.00р. | H17: 155.25р. | I17: 109.25р. | J17: 92.00р. | L17: 118.45р. | M17: 0.00р. | N17: 159.91р.
C18: Рук109 | D18: Рукавицы брезентовые со спилковым наладонником | E18: БрезентОП, 480 г/м2,спилок КРС (0,9-1,2 мм) | F18: 93.00р. | H18: 125.55р. | I18: 88.35р. | J18: 74.40р. | L18: 95.79р. | M18: 0.00р. | N18: 129.32р.
C19: Рук116 | D19: Рукавицы суконные ОП | E19: Шинельное сукно, пл. 760 г/кв.м. | F19: 95.00р. | H19: 128.25р. | I19: 90.25р. | J19: 76.00р. | L19: 97.85р. | M19: 0.00р. | N19: 132.10р.
C20: Рук117 | D20: Рукавицы суконные ОП с двойным наладонником | E20: Шинельное сукно, пов. пл. 760 г/кв.м. | F20: 103.00р. | H20: 139.05р. | I20: 97.85р. | J20: 82.40р. | L20: 106.09р. | M20: 0.00р. | N20: 143.22р.
C21: Рук119 | D21: Руквицы цельноспилковые | E21: Спилок КРС | F21: 140.00р. | H21: 189.00р. | I21: 133.00р. | J21: 112.00р. | L21: 144.20р. | M21: 0.00р. | N21: 194.67р.
C22: Рук114 | D22: Рукавицы спилковые утепленные (мутон) | E22: Спилок КРС класса А, мех-мутон 400 г/м² | F22: 425.00р. | H22: 573.75р. | I22: 403.75р. | J22: 340.00р. | L22: 437.75р. | M22: 0.00р. | N22: 590.96р.
C23: Рук 122 | D23: Рукавицы утепленные (нат. мех) диагональ | E23: Верх: диагональ. Утеплитель: натуральная овчина | F23: 330.00р. | H23: 445.50р. | I23: 313.50р. | J23: 264.00р. | L23: 339.90р. | M23: 0.00р. | N23: 458.87р.
B24: NEW | C24: Рук 124 | D24: Рукавицы виброзащитные "Вибротон" | F24: 480.00р. | H24: =F24*1.35 -> 648.00р. | I24: =F24*0.95 -> 456.00р. | J24: =F24*0.8 -> 384.00р. | L24: 494.40р. | M24: 0.00р. | N24: 667.44р.
C25: Кр111 | D25: Вачеги цельнокроенные | E25: Сукно 760г/м2, спилок КРС | F25: 350.00р. | H25: 472.50р. | I25: 332.50р. | J25: 280.00р. | L25: 360.50р. | M25: 0.00р. | N25: 486.68р.
C26: Кр112 | D26: Вачеги П - образные | E26: Сукно 760г/м2, спилок КРС | F26: 320.00р. | H26: 432.00р. | I26: 304.00р. | J26: 256.00р. | L26: 329.60р. | M26: 0.00р. | N26: 444.96р.
C27: 5.1.2 | D27: Перчатки | E27: вернуться в Оглавление | L27: 0.00р. | M27: 0.00р. | N27: 0.00р.
B28: SPEC | D28: Перчатки хлопчатобумажные 5-ти нитка (10класс) | E28: 80% ХЛ, 20% ПЭ, вес 40-42 гр | F28: 9.00р. | H28: =F28*1.35 -> 12.15р. | I28: 9.00р. | J28: 9.00р. | L28: 9.27р. | M28: 0.00р. | N28: 12.51р.
B29: SPEC | C29: Пер132 | D29: Перчатки хлопчатобумажные 5-ти нитка (10класс) | E29: 80% ХЛ, 20% ПЭ, вес 49 гр | F29: 10.00р. | H29: 13.50р. | I29: 9.85р. | J29: 9.65р. | L29: 10.30р. | M29: 0.00р. | N29: 13.91р.
B30: SPEC | C30: Пер129 | D30: Перчатки хлопчатобумажные с ПВХ 5-ти нитка (10класс) "Точка" | E30: 80% ХЛ, 20% ПЭ, вес 50 гр | F30: 11.00р. | H30: 14.85р. | I30: 10.75р. | J30: 10.30р. | L30: 11.33р. | M30: 0.00р. | N30: 15.30р.
B31: SPEC | C31: Пер181 | D31: Перчатки хлопчатобумажные (10 класс) Эконом | E31: 4-нитка 10 класс | F31: 9.00р. | H31: 12.15р. | I31: =F31*0.97 -> 8.73р. | J31: 7.80р. | L31: 9.27р. | M31: 0.00р. | N31: 12.51р.
B32: SPEC | C32: Пер180 | D32: Перчатки хлопчатобумажные с ПВХ (10 класс) "Точка" Эконом черные | E32: 4-нитка 10 класс | F32: 11.00р. | H32: 14.85р. | I32: =F32*0.97 -> 10.67р. | J32: 8.25р. | L32: 11.33р. | M32: 0.00р. | N32: 15.30р.
B33: SPEC | C33: Пер179 | D33: Перчатки хлопчатобумажные с ПВХ (10 класс) "Точка" Эконом | E33: 4-нитка 10 класс | F33: 11.00р. | H33: 14.85р. | I33: 10.67р. | J33: 8.40р. | L33: 11.33р. | M33: 0.00р. | N33: 15.30р.
C34: Пер128 | D34: Перчатки хлопчатобумажные с ПВХ 5-ти нитка (10класс) "Волна", «Протектор» | E34: 80% ХЛ, 20% ПЭ, вес 48-500-42 гр | F34: 14.00р. | H34: 18.90р. | I34: =F34*0.95 -> 13.30р. | J34: 11.20р. | L34: 14.42р. | M34: 0.00р. | N34: 19.47р.
C35: Пер134 | D35: Перчатки хлопчатобумажные 4-х нитка (7класс) | E35: 100% хлопок | F35: 13.50р. | H35: 18.23р. | I35: 12.83р. | J35: 10.80р. | L35: 13.91р. | M35: 0.00р. | N35: 18.77р.
C36: Пер131 | D36: Перчатки хлопчатобумажные с ПВХ 4-х нитка (7 класс) "Точка" | E36: 100% хлопок | F36: 13.90р. | H36: 18.77р. | I36: 13.21р. | J36: 11.12р. | L36: 14.32р. | M36: 0.00р. | N36: 19.33р.
C37: Пер130 | D37: Перчатки хлопчатобумажные с ПВХ 4-х нитка (7 класс) "Волна", «Протектор» | E37: 100% хлопок | F37: 14.50р. | H37: 19.58р. | I37: 13.78р. | J37: 11.60р. | L37: 14.94р. | M37: 0.00р. | N37: 20.16р.
C38: Пер126 | D38: Перчатки хлопчатобумажные латекс одинарный облив 10 класс | E38: 100% хлопок | F38: 20.00р. | H38: 27.00р. | I38: 19.00р. | J38: 16.00р. | L38: 20.60р. | M38: 0.00р. | N38: 27.81р.
C39: Пер127 | D39: Перчатки хлопчатобумажные латекс двойной облив 10 класс | E39: 100% хлопок | F39: 23.00р. | H39: 31.05р. | I39: 21.85р. | J39: 18.40р. | L39: 23.69р. | M39: 0.00р. | N39: 31.98р.
C40: Пер122 | D40: Перчатки хозяйственные | E40: Латекс, хлопковое напыление | F40: 44.00р. | H40: 59.40р. | I40: 41.80р. | J40: 35.20р. | L40: 45.32р. | M40: 0.00р. | N40: 61.18р.
C41: Пер123 | D41: Перчатки нейлоновые | E41: Нейлон, нитрил (искусственный каучук) | F41: 50.00р. | H41: 67.50р. | I41: 47.50р. | J41: 40.00р. | L41: 51.50р. | M41: 0.00р. | N41: 69.53р.
C42: Пер124 | D42: Перчатки двойной вязки | E42: 100% хлопок | F42: 55.00р. | H42: 74.25р. | I42: 52.25р. | J42: 44.00р. | L42: 56.65р. | M42: 0.00р. | N42: 76.48р.
C43: Пер120 | D43: Перчатки КЩС ТИП-2 | E43: Каучук | F43: 44.00р. | H43: 59.40р. | I43: 41.80р. | J43: 35.20р. | L43: 45.32р. | M43: 0.00р. | N43: 61.18р.
C44: Пер121 | D44: Перчатки КЩС ТИП-1 | E44: Каучук | F44: 82.00р. | H44: 110.70р. | I44: 77.90р. | J44: 65.60р. | L44: 84.46р. | M44: 0.00р. | N44: 114.02р.
C45: Пер125 | D45: Перчатки п/ш двойной вязки | E45: Шерсть/акрил | F45: 115.00р. | H45: 155.25р. | I45: 109.25р. | J45: 92.00р. | L45: 118.45р. | M45: 0.00р. | N45: 159.91р.
C46: Пер137 | D46: Перчатки нитриловые полный облив манжет | E46: Хлопок, джерси с начесом, нитрил | F46: 89.00р. | H46: 120.15р. | I46: 84.55р. | J46: 71.20р. | L46: 91.67р. | M46: 0.00р. | N46: 123.75р.
B47: NEW | C47: Пер157 | D47: Перчатки нитриловые, двойной облив, манжет крага | F47: 93.00р. | H47: =F47*1.35 -> 125.55р. | I47: 88.35р. | J47: 74.40р. | L47: 95.79р. | M47: 0.00р. | N47: 129.32р.
B48: NEW | C48: Пер158 | D48: Перчатки нитриловые, двойной облив, манжет резинка | F48: 91.00р. | H48: 122.85р. | I48: 86.45р. | J48: 72.80р. | L48: 93.73р. | M48: 0.00р. | N48: 126.54р.
B49: NEW | C49: Пер169 | D49: Перчатки нефтеморозостойкие ПВХ, манжет, резинка | F49: 260.00р. | H49: =F49*1.35 -> 351.00р. | I49: =F49*0.95 -> 247.00р. | J49: =F49*0.8 -> 208.00р. | L49: 267.80р. | M49: 0.00р. | N49: 361.53р.
B50: NEW | C50: Пер170 | D50: Перчатки нефтеморозостойкие ПВХ, манжет, крага | F50: 270.00р. | H50: 364.50р. | I50: 256.50р. | J50: 216.00р. | L50: 278.10р. | M50: 0.00р. | N50: 375.44р.
C51: Пер138 | D51: Перчатки нитриловые полный облив крага | E51: Хлопок, джерси с начесом, нитрил | F51: 85.00р. | H51: 114.75р. | I51: 80.75р. | J51: 68.00р. | L51: 87.55р. | M51: 0.00р. | N51: 118.19р.
C52: Пер103 | D52: Перчатки нитриловые ЛЮКС полуобливные манжет | E52: Хлопок, джерси с начесом, нитрил | F52: 105.00р. | H52: 141.75р. | I52: 99.75р. | J52: 84.00р. | L52: 108.15р. | M52: 0.00р. | N52: 146.00р.
C53: Пер101 | D53: Перчатки нитриловые ЛЮКС полный облив манжет | E53: Хлопок, джерси с начесом, нитрил | F53: 110.00р. | H53: 148.50р. | I53: 104.50р. | J53: 88.00р. | L53: 113.30р. | M53: 0.00р. | N53: 152.96р.
C54: Пер102 | D54: Перчатки нитриловые ЛЮКС полный облив крага | E54: Хлопок, джерси с начесом, нитрил | F54: 110.00р. | H54: 148.50р. | I54: 104.50р. | J54: 88.00р. | L54: 113.30р. | M54: 0.00р. | N54: 152.96р.
C55: Пер110 | D55: Перчатки комбинированные со спилком «Ангара» | E55: 100% хлопок, спилок КРС | F55: 119.00р. | H55: 160.65р. | I55: 113.05р. | J55: 95.20р. | L55: 122.57р. | M55: 0.00р. | N55: 165.47р.
C56: Пер135 | D56: Перчатки комбинированные со спилком «Yeti» | E56: 100% хлопок, спилок КРС | F56: 163.00р. | H56: 220.05р. | I56: 154.85р. | J56: 130.40р. | L56: 167.89р. | M56: 0.00р. | N56: 226.65р.
C57: Пер112 | D57: Перчатки комбинированные со спилком «ДОКЕР» усиленные | E57: Спилок КРС класса А, 100% хлопок | F57: 170.00р. | H57: 229.50р. | I57: 161.50р. | J57: 136.00р. | L57: 175.10р. | M57: 0.00р. | N57: 236.39р.
C58: Пер113 | D58: Перчатки комбинированные со спилком «Русские Львы» | E58: Смесовая ткань.спилок сорт А | F58: 170.00р. | H58: 229.50р. | I58: 161.50р. | J58: 136.00р. | L58: 175.10р. | M58: 0.00р. | N58: 236.39р.
C59: Пер119 | D59: Перчатки цельноспилковые серые | E59: Спилок КРС | F59: 158.00р. | H59: 213.30р. | I59: 150.10р. | J59: 126.40р. | L59: 162.74р. | M59: 0.00р. | N59: 219.70р.
C60: Пер115 | D60: Перчатки цельноспилковые «Драйвер» желтые | E60: спилок КРС класса А | F60: 225.00р. | H60: 303.75р. | I60: 213.75р. | J60: 180.00р. | L60: 231.75р. | M60: 0.00р. | N60: 312.86р.
C61: Пер141 | D61: Перчатки специализированные Technica Just X 5230 | E61: бесшовная нейлоновая основа с покрытием нитрилом специальной формуляции | F61: 51.60р. | H61: 69.66р. | I61: 49.02р. | J61: 41.28р. | L61: 53.15р. | M61: 0.00р. | N61: 71.75р.
C62: Пер142 | D62: Перчатки специализированные PAD BLUE X 9205 | E62: бесшовная нейлоновая основа с покрытием нитрилом. | F62: 49.50р. | H62: 66.83р. | I62: 47.03р. | J62: 39.60р. | L62: 50.99р. | M62: 0.00р. | N62: 68.83р.
C63: Пер143 | D63: Перчатки специализированные PAD ESD 9227 | E63: бесшовная нейлоновая основа с добавлением углеродных нитей + полиуретановое покрытие. Специальная технология вязки Torsion. | F63: 36.90р. | H63: 49.82р. | I63: 35.06р. | J63: 29.52р. | L63: 38.01р. | M63: 0.00р. | N63: 51.31р.
C64: Пер144 | D64: Перчатки специализированные PAD SILVER 923 | E64: бесшовная основа из нейлона со спецпокрытием из полиуретана на водной основе. | F64: 40.00р. | H64: 54.00р. | I64: 38.00р. | J64: 32.00р. | L64: 41.20р. | M64: 0.00р. | N64: 55.62р.
C65: Пер145 | D65: Перчатки специализированные PAD CENTURION 9224 | E65: бесшовная основа из нейлона специального плетения с полиуретановым покрытием. | F65: 36.90р. | H65: 49.82р. | I65: 35.06р. | J65: 29.52р. | L65: 38.01р. | M65: 0.00р. | N65: 51.31р.
C66: Пер146 | D66: Перчатки специализированные PadGlove PAD H.V. 921 | E66: бесшовная нейлоновая основа со светоотражающим эффектом + покрытие из нитрила | F66: 57.90р. | H66: 78.17р. | I66: 55.01р. | J66: 46.32р. | L66: 59.64р. | M66: 0.00р. | N66: 80.51р.
C67: Пер147 | D67: Перчатки специализированные SUMMITECH NITROLUX GD-F-09C | E67: нитриловые, с хлопковым напылением | F67: 84.70р. | H67: 114.35р. | I67: 80.47р. | J67: 67.76р. | L67: 87.24р. | M67: 0.00р. | N67: 117.78р.
C68: Пер148 | D68: Перчатки специализированные SUMMITECH NEOPROFF NP-F-07 | E68: 100% неопрен с хлопковым напылением | F68: 115.00р. | H68: 155.25р. | I68: 109.25р. | J68: 92.00р. | L68: 118.45р. | M68: 0.00р. | N68: 159.91р.
C69: Пер149 | D69: Перчатки специализированные SUMMITECH PETRO VK5 EB | E69: бесшовная тканевая основа с ПВХ- обливом | F69: 160.00р. | H69: 216.00р. | I69: 152.00р. | J69: 128.00р. | L69: 164.80р. | M69: 0.00р. | N69: 222.48р.
C70: Пер150 | D70: Перчатки специализированные SUMMITECH NITROFLEX NF4 BK | E70: натуральный каучук на тканевой основе с покрытием кисти нитрилом. | F70: 94.80р. | H70: 127.98р. | I70: 90.06р. | J70: 75.84р. | L70: 97.64р. | M70: 0.00р. | N70: 131.82р.
C71: Пер151 | D71: Перчатки специализированные SUMMITECH NEOPROFF+ AK4 BB | E71: бесшовная тканевая основа с обливом неопреном | F71: 320.00р. | H71: 432.00р. | I71: 304.00р. | J71: 256.00р. | L71: 329.60р. | M71: 0.00р. | N71: 444.96р.
C72: Пер140 | D72: Перчатки с полимерным покрытием "ГРАНАТ" | E72: Х/б интерлок, поливинилхлорид (ПВХ) | F72: 80.00р. | H72: 108.00р. | I72: 76.00р. | J72: 64.00р. | L72: 82.40р. | M72: 0.00р. | N72: 111.24р.
C73: Пер111 | D73: Перчатки комбинированные со спилком «Ангара» утепленные | E73: 100% хлопок, спилок КРС, искуственный мех | F73: 200.00р. | H73: 270.00р. | I73: 190.00р. | J73: 160.00р. | L73: =F73*1.03 -> 206.00р. | M73: =G73*1.03 -> 0.00р. | N73: =H73*1.03 -> 278.10р.
B74: NEW | C74: Пер161 | D74: Перчатки хозяйственные с хлопковым напыланием | F74: 37.00р. | H74: 49.95р. | I74: =F74*0.95 -> 35.15р. | J74: =F74*0.8 -> 29.60р. | L74: 38.11р. | M74: 0.00р. | N74: 51.45р.
B75: NEW | C75: Пер162 | D75: Перчатки шерстяные со спилковыми накладками (Тинсулейт) | F75: 585.00р. | H75: =F75*1.35 -> 789.75р. | I75: 555.75р. | J75: 468.00р. | L75: 602.55р. | M75: 0.00р. | N75: 813.44р.
B76: NEW | C76: Пер163 | D76: Перчатки-варежки шерстяные со спилковыми накладками (Тинсулейт) | F76: 645.00р. | H76: =F76*1.35 -> 870.75р. | I76: =F76*0.95 -> 612.75р. | J76: =F76*0.8 -> 516.00р. | L76: 664.35р. | M76: 0.00р. | N76: 896.87р.
B77: NEW | C77: Пер155 | D77: Перчатки противопорезные с ПУ покрытием арт. 220 | F77: 430.00р. | H77: 580.50р. | I77: 408.50р. | J77: 344.00р. | L77: 442.90р. | M77: 0.00р. | N77: 597.92р.
B78: NEW | C78: Пер154 | D78: Перчатки противопорезные с ПУ покрытием арт. 210 | F78: 350.00р. | H78: 472.50р. | I78: 332.50р. | J78: 280.00р. | L78: 360.50р. | M78: 0.00р. | N78: 486.68р.
B79: NEW | C79: Пер156 | D79: Перчатки утепленные (акрил) с нитриловым покрытием арт. 270 | F79: 140.00р. | H79: 189.00р. | I79: 133.00р. | J79: 112.00р. | L79: 144.20р. | M79: 0.00р. | N79: 194.67р.
B80: NEW | C80: Пер159 | D80: Перчатки комбинированные с кожей «Русские Львы» | F80: 190.00р. | H80: 256.50р. | I80: 180.50р. | J80: 152.00р. | L80: 195.70р. | M80: 0.00р. | N80: 264.20р.
C81: Пер114 | D81: Перчатки комбинированные со спилком «Русские Львы» утепленные (мутон) | E81: Смесовая ткань. спилок сорт А, искусственный мех (мутон) | F81: 275.00р. | H81: 371.25р. | I81: 261.25р. | J81: 220.00р. | L81: 283.25р. | M81: 0.00р. | N81: 382.39р.
C82: Пер152 | D82: Перчатки комбинированные со спилком «Русские Львы» утепленные | E82: Смесовая ткань. спилок сорт А, искусственный мех (п/э) | F82: 263.00р. | H82: 355.05р. | I82: 249.85р. | J82: =F82*0.8 -> 210.40р. | L82: 270.89р. | M82: 0.00р. | N82: 365.70р.
C83: Пер117 | D83: Перчатки кожанные «Драйвер» | E83: Свиная кожа класса А | F83: 390.00р. | H83: =F83*1.35 -> 526.50р. | I83: 370.50р. | J83: 312.00р. | L83: 401.70р. | M83: 0.00р. | N83: 542.30р.
C84: Пер116 | D84: Перчатки цельноспилковые «Драйвер» желтые утепленные | F84: 298.00р. | H84: 402.30р. | I84: 283.10р. | J84: 238.40р. | L84: 306.94р. | M84: 0.00р. | N84: 414.37р.
B85: NEW | C85: Пер171 | D85: Перчатки двойные п\ш на хлопковой основе | E85: полушерсть на хлопковой основе | F85: 64.00р. | H85: 86.40р. | I85: 60.80р. | J85: 51.20р. | L85: 65.92р. | M85: 0.00р. | N85: 88.99р.
B86: NEW | C86: Пер172 | D86: Перчатки двойные п\ш на хлопковой основе с ПВХ "Точка" | E86: полушерсть на хлопковой основе | F86: 67.00р. | H86: =F86*1.35 -> 90.45р. | I86: =F86*0.95 -> 63.65р. | J86: =F86*0.8 -> 53.60р. | L86: 69.01р. | M86: 0.00р. | N86: 93.16р.
B87: NEW | C87: Пер173 | D87: Перчатки хлопчатобумажные с ПВХ 5-ти нитка 13 класс с ПВХ "Точка" | F87: 16.00р. | H87: 21.60р. | I87: 15.20р. | J87: 12.80р. | L87: 16.48р. | M87: 0.00р. | N87: 22.25р.
B88: NEW | C88: Пер174 | D88: Перчатки "Березка" хлопчатобумажные 5-ти нитка 10 класс с ПВХ "Точка" | F88: 15.00р. | H88: 20.25р. | I88: 14.25р. | J88: 12.00р. | L88: 15.45р. | M88: 0.00р. | N88: 20.86р.
B89: NEW | C89: Пер175 | D89: Перчатки хлопчатобумажные 5-ти нитка 10 класс с ПВХ "Точка" черные | E89: черные | F89: 15.00р. | H89: 20.25р. | I89: 14.25р. | J89: 12.00р. | L89: 15.45р. | M89: 0.00р. | N89: 20.86р.
B90: NEW | C90: Пер176 | D90: Перчатки кожанные «Драйвер» утепленные | E90: Перчатки латексные универсальные | F90: 475.00р. | H90: 641.25р. | I90: 451.25р. | J90: 380.00р. | L90: 489.25р. | M90: 0.00р. | N90: 660.49р.
B91: NEW | C91: Пер182 | D91: Перчатки утепленные из вспененного латекса 1\2 | E91: Перчатки акриловые. Вспененный латекс 1\2 | F91: 49.00р. | H91: =F91*1.35 -> 66.15р. | I91: =F91*0.95 -> 46.55р. | J91: =F91*0.8 -> 39.20р. | L91: 50.47р. | M91: 0.00р. | N91: 68.13р.
B92: NEW | C92: Пер183 | D92: Перчатки утепленные из вспененного латекса 3\4 | E92: Перчатки акриловые. Вспененный латекс 3\4 | F92: 75.00р. | H92: 101.25р. | I92: 71.25р. | J92: 60.00р. | L92: 77.25р. | M92: 0.00р. | N92: 104.29р.
C93: 5.1.3 | D93: Краги | E93: вернуться в Оглавление | L93: 0.00р. | M93: 0.00р. | N93: 0.00р.
C94: Кр113 | D94: Краги спилковые пятипалые | E94: Спилок КРС | F94: 230.00р. | H94: 310.50р. | I94: =F94*0.95 -> 218.50р. | J94: =F94*0.8 -> 184.00р. | L94: 236.90р. | M94: 0.00р. | N94: 319.82р.
C95: Кр109 | D95: Краги спилковые пятипалые "ТРЕК" | E95: Спилок КРС класса А, флис, хлопок | F95: 254.00р. | H95: 342.90р. | I95: 241.30р. | J95: 203.20р. | L95: 261.62р. | M95: 0.00р. | N95: 353.19р.
C96: Кр114 | D96: Краги спилковые двупалые | E96: Спилок КРС | F96: 260.00р. | H96: 351.00р. | I96: 247.00р. | J96: 208.00р. | L96: 267.80р. | M96: 0.00р. | N96: 361.53р.
C97: Кр110 | D97: Краги спилковые пятипалые "ТРЕК" утепленные | E97: Спилок КРС класса А, полиэстер (мех) (Кevlar) | F97: 365.00р. | H97: 492.75р. | I97: 346.75р. | J97: 292.00р. | L97: 375.95р. | M97: 0.00р. | N97: 507.53р.
C98: Кр101 | D98: Краги спилковые пятипалые усиленные "Русские Львы" | E98: Спилок класса А(толщина 1,2-1,3мм) (Кevlar) | F98: 350.00р. | H98: 472.50р. | I98: 332.50р. | J98: 280.00р. | L98: 360.50р. | M98: 0.00р. | N98: 486.68р.
C99: Кр102 | D99: Краги спилковые пятипалые усиленные "Русские Львы" утепленные | E99: Спилок класса А (толщина 1,2-1,3мм), мутон (Кevlar) | F99: 430.00р. | H99: 580.50р. | I99: 408.50р. | J99: 344.00р. | L99: 442.90р. | M99: 0.00р. | N99: 597.92р.
C100: Кр115 | D100: Краги спилковые пятипалые удлиненные "СТАХАНОВЕЦ" | E100: Спилок класса Люкс, термоизолирующий нетканый материал, хлопок, нить KEVLAR® | F100: 530.00р. | H100: 715.50р. | I100: 503.50р. | J100: 424.00р. | L100: 545.90р. | M100: 0.00р. | N100: 736.97р.
C101: Кр116 | D101: Краги спилковые пятипалые "ТРЕК КЕВЛАР" | E101: Спилок КРС класса А, хлопок, нить Kevlar® | F101: 430.00р. | H101: 580.50р. | I101: 408.50р. | J101: 344.00р. | L101: 442.90р. | M101: 0.00р. | N101: 597.92р.
C102: Кр120 | D102: Краги спилковые пятипалые серые "СТАНДАРТ КЕВЛАР" | E102: размер 11 | F102: 250.00р. | H102: =F102*1.35 -> 337.50р. | I102: 237.50р. | J102: 200.00р. | L102: 257.50р. | M102: 0.00р. | N102: 347.63р.
C103: Кр117 | D103: Краги спилковые "ЭКСТРА ЛЮКС" | E103: Спилок КРС класса А | F103: 320.00р. | H103: 432.00р. | I103: 304.00р. | J103: 256.00р. | L103: 329.60р. | M103: 0.00р. | N103: 444.96р.
C104: 5.1.6 | D104: Перчатки "МАРА" (Франция) | E104: вернуться в Оглавление | L104: 0.00р. | M104: 0.00р. | N104: 0.00р.
L105: 0.00р. | M105: 0.00р. | N105: 0.00р.
C106: 5.1.6.1 | D106: Защита от жидких сред | E106: вернуться в Оглавление | L106: 0.00р. | M106: 0.00р. | N106: 0.00р.
C107: Mapa101 | D107: Перчатки DUO MIX 405 - ALTO 405 | E107: Неопрен, натуральный латекс | F107: 106.50р. | H107: =F107*1.35 -> 143.78р. | I107: =F107/1.03 -> 103.40р. | J107: 99.00р. | L107: 109.70р. | M107: 0.00р. | N107: 148.09р.
C108: Mapa102 | D108: Перчатки DUO NIT 181 - VITAL 181 | E108: Смесь нитрила и натурального латекса | F108: 103.00р. | H108: 139.05р. | I108: =F108/1.03 -> 100.00р. | J108: 95.25р. | L108: 106.09р. | M108: 0.00р. | N108: 143.22р.
C109: Mapa103 | D109: Перчатки SUPERFOOT 177 - VITAL 177 | E109: Натуральный латекс | F109: 72.00р. | H109: 97.20р. | I109: 69.90р. | J109: 67.00р. | L109: 74.16р. | M109: 0.00р. | N109: 100.12р.
C110: Mapa104 | D110: Перчатки WITAL 117 | E110: Натуральный латекс | F110: 52.00р. | H110: 70.20р. | I110: 50.49р. | J110: 49.00р. | L110: 53.56р. | M110: 0.00р. | N110: 72.31р.
C111: Mapa105 | D111: Перчатки WITAL 124 | F111: 44.00р. | H111: 59.40р. | I111: 42.72р. | J111: 41.00р. | L111: 45.32р. | M111: 0.00р. | N111: 61.18р.
C112: Mapa116 | D112: Перчатки Optinit 472 | E112: Нитрил | F112: 78.00р. | H112: 105.30р. | I112: 75.73р. | J112: 73.00р. | L112: 80.34р. | M112: 0.00р. | N112: 108.46р.
C113: 5.1.6.2 | D113: Защита химических повреждений | E113: вернуться в Оглавление | L113: 0.00р. | M113: 0.00р. | N113: 0.00р.
C114: Mapa106 | D114: Перчатки INDASTRIAL 299 ALTO 299 | E114: Натуральный латекс | F114: 130.00р. | H114: 175.50р. | I114: 126.21р. | J114: 121.80р. | L114: 133.90р. | M114: 0.00р. | N114: 180.77р.
D115: Перчатки Jersette 301 | F115: 251.00р. | H115: =F115*1.35 -> 338.85р. | I115: =F115/1.03 -> 243.69р. | J115: 234.00р. | L115: 258.53р. | M115: 0.00р. | N115: 349.02р.
C116: Mapa107 | D116: Перчатки TECHNI MIX 415 - ALTO 415 | E116: Неопрен и натуральный латекс | F116: 108.00р. | H116: 145.80р. | I116: 104.85р. | J116: 100.00р. | L116: 111.24р. | M116: 0.00р. | N116: 150.17р.
C117: Mapa108 | D117: Перчатки TECHNIC 401 - ULTRANEO 401 | E117: Неопрен и натуральный латекс | F117: 169.00р. | H117: 228.15р. | I117: 164.08р. | J117: 158.00р. | L117: 174.07р. | M117: 0.00р. | N117: 234.99р.
C118: Mapa110 | D118: Перчатки TECHNIC 450 - ULTRANEO 450 | E118: Неопрен и натуральный латекс | F118: 378.00р. | H118: 510.30р. | I118: 366.99р. | J118: 353.00р. | L118: 389.34р. | M118: 0.00р. | N118: 525.61р.
C119: Mapa111 | D119: Перчатки ULTRANITRIL 492 | E119: Нитрил | F119: 122.00р. | H119: 164.70р. | I119: 118.45р. | J119: 114.00р. | L119: 125.66р. | M119: 0.00р. | N119: 169.64р.
C120: Mapa112 | D120: Перчатки ULTRANITRIL 485 | E120: Нитрил | F120: 115.00р. | H120: 155.25р. | I120: 111.65р. | J120: 108.00р. | L120: 118.45р. | M120: 0.00р. | N120: 159.91р.
C121: Mapa113 | D121: Перчатки TELBLUE 351 - TELSOL 351 | E121: ПВХ | F121: 278.00р. | H121: 375.30р. | I121: 269.90р. | J121: 260.00р. | L121: 286.34р. | M121: 0.00р. | N121: 386.56р.
B122: NEW | C122: Mapa551 | D122: TELSOL 361 | F122: 207.00р. | H122: =F122*1.35 -> 279.45р. | I122: =F122/1.03 -> 200.97р. | J122: 192.50р. | L122: 213.21р. | M122: 0.00р. | N122: 287.83р.
C123: Mapa114 | D123: Перчатки STANSOLV 381 ULTRANITRIL 381 | E123: Нитрил | F123: 419.00р. | H123: 565.65р. | I123: 406.80р. | J123: 391.00р. | L123: 431.57р. | M123: 0.00р. | N123: 582.62р.
C124: Mapa115 | D124: Перчатки Alto Plus 260 - ALTO 260 | E124: Натуральный латекс | F124: 110.00р. | H124: 148.50р. | I124: 106.80р. | J124: 103.00р. | L124: 113.30р. | M124: 0.00р. | N124: 152.96р.
C125: 5.1.6.3 | D125: Защита от механических повреждений | E125: вернуться в Оглавление | L125: 0.00р. | M125: 0.00р. | N125: 0.00р.
D126: Перчатки ULTRANE 500 | E126: Полиуретановая пена | F126: 248.00р. | H126: =F126*1.35 -> 334.80р. | I126: =F126/1.03 -> 240.78р. | J126: 232.00р. | L126: 255.44р. | M126: 0.00р. | N126: 344.84р.
C127: Mapa211 | D127: Перчатки ULTRANE 510 | E127: Полимер на водной основе | F127: 174.00р. | H127: 234.90р. | I127: 168.93р. | J127: 163.00р. | L127: 179.22р. | M127: 0.00р. | N127: 241.95р.
C128: Mapa212 | D128: Перчатки ULTRANE 536 | E128: Полиуретановая пена | F128: 91.00р. | H128: =F128*1.35 -> 122.85р. | I128: =F128/1.03 -> 88.35р. | J128: 85.00р. | L128: 93.73р. | M128: 0.00р. | N128: 126.54р.
C129: Mapa213 | D129: Перчатки ULTRANE 546 | E129: Полиуретановая пена | F129: 99.00р. | H129: 133.65р. | I129: 96.12р. | J129: 92.00р. | L129: 101.97р. | M129: 0.00р. | N129: 137.66р.
C130: Mapa202 | D130: Перчатки ULTRANE 548 | E130: Полиуретановая пена | F130: 55.60р. | H130: 75.06р. | I130: 53.98р. | J130: 51.70р. | L130: 57.27р. | M130: 0.00р. | N130: 77.31р.
D131: Перчатки ULTRANE 549 | E131: Полиуретановая пена | F131: 58.00р. | H131: 78.30р. | I131: 56.31р. | J131: 54.00р. | L131: 59.74р. | M131: 0.00р. | N131: 80.65р.
D132: Перчатки ULTRANE 550 | E132: Полиуретановая пена | F132: 82.00р. | H132: 110.70р. | I132: 79.61р. | J132: 77.00р. | L132: 84.46р. | M132: 0.00р. | N132: 114.02р.
C133: Mapa201 | D133: Перчатки ULTRANE 551 | E133: Полиуретановая пена | F133: 91.00р. | H133: 122.85р. | I133: 88.35р. | J133: 85.00р. | L133: 93.73р. | M133: 0.00р. | N133: 126.54р.
C134: Mapa204 | D134: Перчатки ULTRANE 553 | E134: Нитрил | F134: 127.00р. | H134: =F134*1.35 -> 171.45р. | I134: 123.30р. | J134: 118.00р. | L134: 130.81р. | M134: 0.00р. | N134: 176.59р.
C135: Mapa205 | D135: Перчатки TITAN 392 | E135: Нитрил | F135: 165.00р. | H135: 222.75р. | I135: 160.19р. | J135: 154.00р. | L135: 169.95р. | M135: 0.00р. | N135: 229.43р.
C136: Mapa206 | D136: Перчатки TITAN 388 | E136: Нитрил | F136: 179.00р. | H136: 241.65р. | I136: 173.79р. | J136: 167.00р. | L136: 184.37р. | M136: 0.00р. | N136: 248.90р.
D137: Перчатки TITAN 850 | E137: Нитрил | F137: 550.00р. | H137: =F137*1.35 -> 742.50р. | I137: =F137/1.03 -> 533.98р. | J137: 514.00р. | L137: =F137*1.03 -> 566.50р. | M137: =G137*1.03 -> 0.00р. | N137: =H137*1.03 -> 764.78р.
B138: NEW | C138: Mapa510 | D138: Перчатки TITAN 385 | F138: 157.00р. | H138: =F138*1.35 -> 211.95р. | I138: 152.43р. | J138: 146.00р. | L138: 161.71р. | M138: 0.00р. | N138: 218.31р.
C139: Mapa207 | D139: Перчатки Dexilite 383 | E139: Нитрил | F139: 230.00р. | H139: 310.50р. | I139: 223.30р. | J139: 213.80р. | L139: 236.90р. | M139: 0.00р. | N139: 319.82р.
C140: Mapa208 | D140: Перчатки ENDURO 328 - TITAN 328 | E140: Натуральный латекс | F140: 113.00р. | H140: 152.55р. | I140: 109.71р. | J140: 105.00р. | L140: 116.39р. | M140: 0.00р. | N140: 157.13р.
C141: Mapa209 | D141: Перчатки ТITANSUPERLITE 833 - TITAN 833 | E141: Нитрил | F141: 113.00р. | H141: 152.55р. | I141: 109.71р. | J141: 105.00р. | L141: 116.39р. | M141: 0.00р. | N141: 157.13р.
C142: Mapa210 | D142: Перчатки Ultrane Grip & Proof 500 | E142: Нитриловое противоскользящее покрытие | F142: 202.00р. | H142: 272.70р. | I142: 196.12р. | J142: 189.00р. | L142: 208.06р. | M142: 0.00р. | N142: 280.88р.
C143: Mapa214 | D143: Перчатки Ultrane Grip & Proof 525 | E143: Нитриловое противоскользящее покрытие | F143: 234.00р. | H143: 315.90р. | I143: 227.18р. | J143: 219.00р. | L143: 241.02р. | M143: 0.00р. | N143: 325.38р.
C144: Mapa215 | D144: Перчатки Ultrane Grip & Proof 526 | E144: Нитриловое противоскользящее покрытие | F144: 260.00р. | H144: 351.00р. | I144: 252.43р. | J144: 243.00р. | L144: 267.80р. | M144: 0.00р. | N144: 361.53р.
C145: 5.1.6.4 | D145: Защита от порезов и проколов | E145: вернуться в Оглавление | L145: 0.00р. | M145: 0.00р. | N145: 0.00р.
C146: Mapa303 | D146: Перчатки Krytech 586 | E146: Полиуретан | F146: 689.00р. | H146: 930.15р. | I146: 668.93р. | J146: 644.00р. | L146: 709.67р. | M146: 0.00р. | N146: 958.05р.
D147: Перчатки Krytech 579 | E147: Полиуретан | F147: 0.00р. | H147: 0.00р. | I147: 0.00р. | J147: =F147*0.8 -> 0.00р. | L147: 0.00р. | M147: 0.00р. | N147: 0.00р.
C148: Mapa304 | D148: Перчатки Krytech 532 | E148: Полимер на водной основе | F148: 902.00р. | H148: 1,217.70р. | I148: 875.73р. | J148: 843.00р. | L148: 929.06р. | M148: 0.00р. | N148: 1,254.23р.
C149: Mapa305 | D149: Перчатки Krytech 511 | E149: Полимер на водной основе | F149: 548.00р. | H149: 739.80р. | I149: 532.04р. | J149: 512.00р. | L149: 564.44р. | M149: 0.00р. | N149: 761.99р.
D150: Перчатки Krynit Grip and Proof 599 | E150: Нитриловое противоскользящее покрытие | F150: 0.00р. | H150: 0.00р. | I150: 0.00р. | J150: =I150*0.85 -> 0.00р. | L150: 0.00р. | M150: 0.00р. | N150: 0.00р.
D151: Перчатки Krynit 582 | E151: Нитриловое противоскользящее покрытие | F151: 0.00р. | H151: 0.00р. | I151: 0.00р. | J151: 0.00р. | L151: 0.00р. | M151: 0.00р. | N151: 0.00р.
D152: Перчатки Kroflex 840 | E152: Натуральный латекс | F152: 0.00р. | H152: 0.00р. | I152: 0.00р. | J152: 0.00р. | L152: 0.00р. | M152: 0.00р. | N152: 0.00р.
C153: 5.1.6.5 | D153: Термическая защита | E153: вернуться в Оглавление | L153: 0.00р. | M153: 0.00р. | N153: 0.00р.
C154: Mapa402 | D154: Перчатки ТЕMP DEX 710 | E154: Нитриловая пена | F154: 308.00р. | H154: 415.80р. | I154: 299.03р. | J154: 288.00р. | L154: 317.24р. | M154: 0.00р. | N154: 428.27р.
C155: Mapa403 | D155: Перчатки Temp-Sea 770 | E155: ПВХ | F155: 637.00р. | H155: 859.95р. | I155: 618.45р. | J155: 596.00р. | L155: 656.11р. | M155: 0.00р. | N155: 885.75р.
C156: Mapa404 | D156: Перчатки Temp-Ice 700 | E156: Нитриловое противоскользящее покрытие | F156: 430.00р. | H156: 580.50р. | I156: 417.48р. | J156: 402.00р. | L156: 442.90р. | M156: 0.00р. | N156: 597.92р.
C157: Mapa405 | D157: Перчатки ТЕMP DEX 720 | E157: Нитрил | F157: 1,150.00р. | H157: 1,552.50р. | I157: 1,116.50р. | J157: 1,070.00р. | L157: 1,184.50р. | M157: 0.00р. | N157: 1,599.08р.
C158: 5.1.6.6 | D158: Одноразовые перчатки | E158: вернуться в Оглавление | L158: 0.00р. | M158: 0.00р. | N158: 0.00р.
C159: Mapa501 | D159: Перчатки Solo Ultra 996 - SOLO 996 | E159: (упак 100 шт) | F159: 547.00р. | H159: 738.45р. | I159: 531.07р. | J159: 511.00р. | L159: 563.41р. | M159: 0.00р. | N159: 760.60р.
D160: Перчатки Solo White 997 | F160: 0.00р. | H160: 0.00р. | I160: 0.00р. | J160: =F160*0.8 -> 0.00р. | L160: 0.00р. | M160: 0.00р. | N160: 0.00р.
D161: Перчатки Solo Blue 997 | F161: 0.00р. | H161: 0.00р. | I161: 0.00р. | J161: 0.00р. | L161: 0.00р. | M161: 0.00р. | N161: 0.00р.
D162: Перчатки Solo Box 967 | E162: (упак 100 шт) | F162: 550.00р. | H162: =F162*1.35 -> 742.50р. | I162: =F162/1.03 -> 533.98р. | J162: 514.00р. | L162: 566.50р. | M162: 0.00р. | N162: 764.78р.
C163: Mapa504 | D163: Перчатки Solo Box 997 | E163: (упак 100 шт) | F163: 842.00р. | H163: =F163*1.35 -> 1,136.70р. | I163: 817.48р. | J163: 787.00р. | L163: 867.26р. | M163: 0.00р. | N163: 1,170.80р.
C164: Mapa503 | D164: Перчатки Solo 992 | E164: (упак 100 шт) | F164: 579.00р. | H164: 781.65р. | I164: 562.14р. | J164: 541.00р. | L164: 596.37р. | M164: 0.00р. | N164: 805.10р.
B165: NEW | C165: Mapa509 | D165: Перчатки Solo 990 | E165: (упак 100 шт) | F165: 356.00р. | H165: =F165*1.35 -> 480.60р. | I165: =F165/1.03 -> 345.63р. | J165: 331.00р. | L165: 366.68р. | M165: 0.00р. | N165: 495.02р.
B166: 5.2 | C166: Защита головы и лица | E166: вернуться в Оглавление | L166: 0.00р. | M166: 0.00р. | N166: 0.00р.
C167: 5.2.1 | D167: Каски защитные | E167: вернуться в Оглавление | L167: 0.00р. | M167: 0.00р. | N167: 0.00р.
C168: Кас308 | D168: Каска защитная | E168: Корпус ПНД оголовье ПВД от −30°С до +50°С | F168: 95.00р. | H168: 128.25р. | I168: =F168*0.95 -> 90.25р. | J168: =F168*0.8 -> 76.00р. | L168: 97.85р. | M168: 0.00р. | N168: 132.10р.
C169: Кас344 | D169: Каска защитная "Эталон" с храповиком | E169: Корпус ПНД оголовье ПВД от −30°С до +50°С | F169: 150.00р. | H169: 202.50р. | I169: 142.50р. | J169: 120.00р. | L169: 154.50р. | M169: 0.00р. | N169: 208.58р.
C170: Кас303 | D170: Каска защитная "Крузор-У | E170: Корпус из ударопрочного материала, от +50° до -50°°С, Защита от тока ~2400 В, ТУ 2291-002-86781828-2013 | F170: 140.00р. | H170: 189.00р. | I170: 133.00р. | J170: 112.00р. | L170: 144.20р. | M170: 0.00р. | N170: 194.67р.
C171: Гол102 | D171: Каскетка защитная | F171: 335.00р. | H171: 452.25р. | I171: 318.25р. | J171: 268.00р. | L171: 345.05р. | M171: 0.00р. | N171: 465.82р.
C172: Кас322 | D172: Каска защитная СОМЗ-55 Favori®T | E172: Регулируемое текстильное оголовье. Может комплектоваться маской сварщика КН-С или щитком КБТ. ГОСТ 12.4.207-99 | F172: 145.00р. | H172: 195.75р. | I172: 137.75р. | J172: 116.00р. | L172: 149.35р. | M172: 0.00р. | N172: 201.62р.
B173: SPEC | C173: Кас323 | D173: Каска защитная СОМЗ-55 Favori®T Trek® | E173: Cостоит из ударопрочного корпуса, корпус с вентиляционными отверстиями, ГОСТ Р 12.4.207-99 | F173: 114.00р. | H173: 153.90р. | I173: =F173*0.97 -> 110.58р. | J173: =F173*0.93 -> 106.02р. | L173: 117.42р. | M173: 0.00р. | N173: 158.52р.
C174: Кас324 | D174: Каска защитная СОМЗ-55 ВИЗИОН® | E174: Корпус с укороченным козырьком выполнен из материала Termotrek®. | F174: 175.00р. | H174: 236.25р. | I174: 166.25р. | J174: 140.00р. | L174: 180.25р. | M174: 0.00р. | N174: 243.34р.
B175: SPEC | C175: Кас325 | D175: Каска защитная СОМЗ-55 Favori®T RAPID | E175: Состоит из ударопрочного корпуса, корпус с вентиляционными отверстиями, ГОСТ Р 12.4.207-99 | F175: 333.00р. | H175: 449.55р. | I175: =F175*0.97 -> 323.01р. | J175: =F175*0.93 -> 309.69р. | L175: 342.99р. | M175: 0.00р. | N175: 463.04р.
C176: 5.2.2 | D176: Маски сварщика | E176: вернуться в Оглавление | L176: 0.00р. | M176: 0.00р. | N176: 0.00р.
C177: Кас345 | D177: Щиток (маска) защитный лицевой для сварщиков НН10-С-6 PREMIER Favori®T РОСОМЗ арт.51363 (51364, 51365, 51366, 51367, 51368) | E177: Корпус: Favori®T из термостойкого материала TermotreK®. Универсальное наголовное крепление RAPID с плавной регулировкой размера. Светофильтр градационный шифр от 9 до 14, размером Евростандарта (110×90 мм) | F177: 410.00р. | H177: 553.50р. | I177: =F177*0.95 -> 389.50р. | J177: =F177*0.8 -> 328.00р. | L177: 422.30р. | M177: 0.00р. | N177: 570.11р.
C178: Кас346 | D178: Щиток (маска) защитный лицевой для сварщиков НН-3 SUPER PREMIER Favori®T РОСОМЗ арт.53363 (53364, 53365, 53366, 53367, 53368) | E178: Корпус: Favori®T из устойчивого к воздействию высоких и низких температур SUPER TermotreK® (изготовлено с применением материалов DuPont™ и Zytel®*). Светофильтр градационный шифр от 9 до 14, размером Евростандарта (110×90 мм) | F178: 693.00р. | H178: 935.55р. | I178: 658.35р. | J178: 554.40р. | L178: 713.79р. | M178: 0.00р. | N178: 963.62р.
C179: Кас347 | D179: Щиток (маска) защитный лицевой для сварщиков НН12 CRISTALINE STANDARТ Favori®T РОСОМЗ арт.51285 | E179: Для профессиональной сварки. Предназначен для всех сварочных процессов, даже в тяжёлых условиях. Корпус из непрогораемого, устойчивого к высоким и низким температурам, ударным воздействиям материала SUPER TermotreK®. Наголовное крепление RAPID с плавной регулировкой размера, мягким обтюратором. Ручная регулировка степени затемнения. | F179: 9,050.00р. | H179: 12,217.50р. | I179: 8,597.50р. | J179: 7,240.00р. | L179: 9,321.50р. | M179: 0.00р. | N179: 12,584.03р.
C180: Кас348 | D180: Щиток (маска) защитный лицевой для сварщиков НН12 CRYSTALINE® UNIVERSAL Favori®T РОСОМЗ арт.51275 | E180: Корпус: Favori®T из Super Termotrek® СЕ. Автоматически заменяющийся светофильтр, увеличенный размер панорамного покровного стекла; боковые каналы для отвода дыма, новое наголовное крепление RAPID с точной фиксацией по размеру и обтюратором из натуральной кожи. Сертификат СЕ. | F180: 9,790.00р. | H180: 13,216.50р. | I180: 9,300.50р. | J180: 7,832.00р. | L180: 10,083.70р. | M180: 0.00р. | N180: 13,613.00р.
C181: Кас335 | D181: Маска сварщика НН - 7 ПРЕМЬЕР с откидным экраном | E181: Корпус:Favori®T из термостойкого материала Termotrek®; визор 110x90мм | F181: 515.00р. | H181: 695.25р. | I181: 489.25р. | J181: 412.00р. | L181: 530.45р. | M181: 0.00р. | N181: 716.11р.
C182: Кас310 | D182: Маска сварщика НН-10 хамелеон | E182: Корпус:негорючая пластмасса Размер стекла - 110*90*10мм. ГОСТ 12.4.035-78 | F182: 2,500.00р. | H182: 3,375.00р. | I182: 2,375.00р. | J182: 2,000.00р. | L182: 2,575.00р. | M182: 0.00р. | N182: 3,476.25р.
C183: Кас317 | D183: Маска сварщика НН-С | E183: Корпус: электрокартон Размер стекла - 102*52 мм. ГОСТ 12.4.035-78 | F183: 120.00р. | H183: =F183*1.35 -> 162.00р. | I183: 114.00р. | J183: 96.00р. | L183: 123.60р. | M183: 0.00р. | N183: 166.86р.
C184: Кас316 | D184: Маска сварщика НН-С 702 | E184: Корпус: полипропилен Размер стекла - 102*52 мм. ГОСТ 12.4.035-78 | F184: 115.00р. | H184: 155.25р. | I184: 109.25р. | J184: 92.00р. | L184: 118.45р. | M184: 0.00р. | N184: 159.91р.
C185: Кас311 | D185: Маска сварщика НН-С 702 с откидным экраном | E185: Корпус: полипропилен Размер стекла - 102*52 мм. ГОСТ 12.4.035-78 | F185: 195.00р. | H185: 263.25р. | I185: 185.25р. | J185: 156.00р. | L185: 200.85р. | M185: 0.00р. | N185: 271.15р.
C186: Кас315 | D186: Маска сварщика НН-С 704 | E186: Корпус:негорючая пластмасса Размер стекла - 121*69 мм. ГОСТ 12.4.035-78 | F186: 140.00р. | H186: 189.00р. | I186: 133.00р. | J186: 112.00р. | L186: 144.20р. | M186: 0.00р. | N186: 194.67р.
C187: 3.4.5 | D187: Щитки защитные | E187: вернуться в Оглавление | J187: 0.00р. | L187: 0.00р. | M187: 0.00р. | N187: 0.00р.
B188: SPEC | C188: Кас338 | D188: Щиток НБТ-1 ВИЗИОН® РОСОМЗ® арт. 413130 | E188: Экран: поликарбонат 1 мм (220х315мм). | F188: 192.00р. | H188: 259.20р. | I188: =F188*0.97 -> 186.24р. | J188: =F188*0.93 -> 178.56р. | L188: 197.76р. | M188: 0.00р. | N188: 266.98р.
C189: Кас339 | D189: Щиток НБТ1 ВИЗИОН classic TITAN арт. 414291 | E189: Экран: поликарбонат 2 мм (220х315мм). | F189: 290.00р. | H189: 391.50р. | I189: =F189*0.95 -> 275.50р. | J189: 232.00р. | L189: 298.70р. | M189: 0.00р. | N189: 403.25р.
C190: Кас334 | D190: Щиток НБТ-2 ВИЗИОН® РОСОМЗ® арт. 425190 | E190: Экран: поликарбонат 2 мм (220х315мм). крепление плавное RAPID с мягким обтюратором. | F190: 290.00р. | H190: 391.50р. | I190: 275.50р. | J190: 232.00р. | L190: 298.70р. | M190: 0.00р. | N190: 403.25р.
C191: Кас333 | D191: Щиток НБТ-2 ВИЗИОН-ТИТАН РОСОМЗ® арт. 424390 | E191: Щиток из мелкоячеистой стальной сетки. ГОСТ 12.4.023-84 | F191: 468.00р. | H191: 631.80р. | I191: 444.60р. | J191: 374.40р. | L191: 482.04р. | M191: 0.00р. | N191: 650.75р.
C192: Кас340 | D192: Щиток НБТ1/C ВИЗИОН classic TERMO арт. 417290 | E192: Экран: поликарбонат 2 мм (220х315мм). | F192: 447.00р. | H192: 603.45р. | I192: 424.65р. | J192: 357.60р. | L192: 460.41р. | M192: 0.00р. | N192: 621.55р.
C193: Кас331 | D193: Щиток НБТ-2 ВИЗИОН-СТАЛЬ РОСОМЗ® арт. 425416 | E193: Экран: мелкоячеистая сетка. Наголовное крепление плавное RAPID с мягким обтюратором. | F193: 510.00р. | H193: 688.50р. | I193: 484.50р. | J193: 408.00р. | L193: 525.30р. | M193: 0.00р. | N193: 709.16р.
C194: Кас330 | D194: Щиток КБТ ВИЗИОН® TITAN РОСОМЗ®арт. 04390 | E194: Экран поликарбонат 2 мм (220х385мм) | F194: 590.00р. | H194: 796.50р. | I194: 560.50р. | J194: 472.00р. | L194: 607.70р. | M194: 0.00р. | N194: 820.40р.
C195: Кас332 | D195: Щиток защитный лицевой КБТ ВИЗИОН ® ENERGO с креплением на каске - арт.04207 | E195: Ацетат целлюлозы 1,6 мм с термостойкой окантовкой | F195: 3,650.00р. | H195: 4,927.50р. | I195: 3,467.50р. | J195: 2,920.00р. | L195: 3,759.50р. | M195: 0.00р. | N195: 5,075.33р.
B196: SPEC | C196: Кас349 | D196: Щиток защитный лицевой НБТ2 ВИЗИОН® РОСОМЗ арт.423130 | E196: Ударопрочный и термостойкий поликарбонат, ГОСТ Р 12.4.023-84, ГОСТ 12.4.230.1-2007 | F196: 218.00р. | H196: 294.30р. | I196: =F196*0.97 -> 211.46р. | J196: =F196*0.93 -> 202.74р. | L196: 224.54р. | M196: 0.00р. | N196: 303.13р.
C197: Кас350 | D197: Щиток защитный лицевой НБТ2 SUPER ВИЗИОН® РОСОМЗ арт.427107 (427397) | E197: Козырек увеличенного размера из ударопрочного и термостойкого материала SUPER Termotrek® + металлические теплоотражающие частицы ( Zytel® DuPontTM). ГОСТ Р 12.4.023-84, ГОСТ 12.4.230.1-2007 | F197: 2,855.00р. | H197: 3,854.25р. | I197: 2,712.25р. | J197: 2,284.00р. | L197: 2,940.65р. | M197: 0.00р. | N197: 3,969.88р.
C198: Кас312 | D198: Щиток НБТ-Евро | E198: полистирол ГОСТ 12.4.023-84 | F198: 135.00р. | H198: 182.25р. | I198: 128.25р. | J198: 108.00р. | L198: 139.05р. | M198: 0.00р. | N198: 187.72р.
C199: Кас314 | D199: Щиток НБТ-Евро Сталь | F199: 175.00р. | H199: 236.25р. | I199: 166.25р. | J199: 140.00р. | L199: 180.25р. | M199: 0.00р. | N199: 243.34р.
C200: Кас309 | D200: Щиток НБТ-Евро Люкс Термо | E200: поликарбонат ГОСТ 12.4.023-84 | F200: 245.00р. | H200: 330.75р. | I200: 232.75р. | J200: 196.00р. | L200: 252.35р. | M200: 0.00р. | N200: 340.67р.
C201: Кас342 | D201: Щиток сварщика НН10-С-6 PREMIER FavoriT РОСОМЗ | F201: 400.00р. | H201: 540.00р. | I201: 380.00р. | J201: 320.00р. | L201: =F201*1.03 -> 412.00р. | M201: =G201*1.03 -> 0.00р. | N201: =H201*1.03 -> 556.20р.
... 126 more rows

Sheet Сопутствующие
B2: ПРАЙС | D2: от | E2: =Оглавление!I2 -> 2019-11-26
H3: 115% | I3: 10% | J3: 15% | N3: 115%
A4: сегмент | B4: Статус | C4: Код | D4: Наименование | E4: Описание | F4: Цена | G4: Цена | H4: Розничная цена (менее 20 т.р) | I4: Цена оптовика | J4: Мин. Цена оптовика | L4: Цена | M4: Цена | N4: Розничная цена (менее 20 т.р)
B5: 6 | C5: СОПУТСТВУЮЩИЕ ТОВАРЫ
B6: 6.1 | C6: Безопасность рабочего места | E6: вернуться в Оглавление | G6: =SUBTOTAL(9,G7:G10) -> 00:00:00 | M6: =SUBTOTAL(9,M7:M10) -> 00:00:00
C7: Огр101 | D7: Лента оградительная "Стандарт" 100 п.м. 75 мм | E7: Цвет: красно-белая, Плотность: 50мкм | F7: 120.00р. | H7: =F7*1.35 -> 162.00р. | I7: =F7*0.95 -> 114.00р. | J7: =F7*0.8 -> 96.00р. | L7: =F7*1.03 -> 123.60р. | M7: =G7*1.03 -> 0.00р. | N7: 166.86р.
C8: Огр105 | D8: Лента оградительная "Эконом" 200 п.м. 50 мм | E8: Цвет: красно-белая, Плотность: 35мкм | F8: 105.00р. | H8: 141.75р. | I8: 99.75р. | J8: 84.00р. | L8: =F8*1.03 -> 108.15р. | M8: =G8*1.03 -> 0.00р. | N8: =H8*1.03 -> 146.00р.
C9: Огр110 | D9: Лента оградительная "Эконом" 250 п.м.75 мм | E9: Цвет: красно-белая, Плотность: 35мкм | F9: 170.00р. | H9: =F9*1.35 -> 229.50р. | I9: =F9*0.95 -> 161.50р. | J9: =F9*0.8 -> 136.00р. | L9: 175.10р. | M9: 0.00р. | N9: 236.39р.
C10: Огр111 | D10: Лента оградительная "Эконом" 250 п.м. 50 мм | E10: Цвет: красно-белая, Плотность: 35мкм | F10: 135.00р. | H10: 182.25р. | I10: 128.25р. | J10: 108.00р. | L10: 139.05р. | M10: 0.00р. | N10: 187.72р.
B11: 6.2 | C11: Противопожарное оборудование | E11: вернуться в Оглавление | L11: 0.00р. | M11: 0.00р. | N11: 0.00р.
C12: Пож108 | D12: Огнетушитель ОУ-5 ВСЕ | E12: Вещество: СО2; Вместимость корпуса: 8 л; Масса заряда: до 5 л; Длина струи огнетуш. в-ва: 3 м; Время подачи огнетуш. в-ва: 10 сек; Габаритные размеры: 640х180х320 мм Масса: 18 кг; Срок годности: перезарядка 1 раз в 5 лет | F12: 2,600.00р. | H12: 3,510.00р. | I12: =F12*0.95 -> 2,470.00р. | J12: =F12*0.8 -> 2,080.00р. | L12: 2,678.00р. | M12: 0.00р. | N12: 3,615.30р.
B13: 6.3 | C13: Вспомогательный и хозинвентарь | E13: вернуться в Оглавление | L13: 0.00р. | M13: 0.00р. | N13: 0.00р.
C14: Инв105 | D14: Мыло хозяйственное | E14: 72% вес 200г.(Растительные жиры) ГОСТ 30266-95 | F14: 15.00р. | H14: 20.25р. | I14: =F14*0.95 -> 14.25р. | J14: =F14*0.8 -> 12.00р. | L14: 15.45р. | M14: 0.00р. | N14: 20.86р.
C15: Инв103 | D15: Мыло туалетное в пленке | E15: вес: 100 гр | F15: 13.00р. | H15: 17.55р. | I15: 12.35р. | J15: 10.40р. | L15: 13.39р. | M15: 0.00р. | N15: 18.08р.
C16: Пос111 | D16: Полотенце вафельное | E16: (45Х80) ГОСТ | F16: 58.00р. | H16: 78.30р. | I16: 55.10р. | J16: 46.40р. | L16: 59.74р. | M16: 0.00р. | N16: 80.65р.
C17: Инв110 | D17: Мешки полипропиленовые 50кг. Зеленые | E17: ГОСТ Р 50962-96 | F17: 12.00р. | H17: 16.20р. | I17: 11.40р. | J17: 9.60р. | L17: 12.36р. | M17: 0.00р. | N17: 16.69р.
C18: Вет101 | D18: Ветошь х/б трикотаж | E18: (упаковка 10кг) | F18: 62.00р. | H18: 83.70р. | I18: 58.90р. | J18: 49.60р. | L18: 63.86р. | M18: 0.00р. | N18: 86.21р.
B19: 6.4 | C19: Постельные принадлежности | E19: вернуться в Оглавление | L19: 0.00р. | M19: 0.00р. | N19: 0.00р.
C20: Пос102 | D20: Матрас ватный РВ 70Х190 вес 4,2 кг верх полиэстер | E20: Наполнитель: вата РВ, чехол: ПЭ 100% | F20: 460.00р. | H20: 621.00р. | I20: =F20*0.95 -> 437.00р. | J20: =F20*0.8 -> 368.00р. | L20: 473.80р. | M20: 0.00р. | N20: 639.63р.
C21: Пос101 | D21: Матрас ватный РВ 70Х190 вес 5,5 кг верх тик | E21: Наполнитель: вата РВ, чехол: тик матрацный (100% ХЛ) | F21: 550.00р. | H21: 742.50р. | I21: 522.50р. | J21: 440.00р. | L21: 566.50р. | M21: 0.00р. | N21: 764.78р.
C22: Пос107 | D22: Подушка ватная РВ 60Х60 верх полиэстер | E22: Наполнитель: вата (регенерированное волокно), верх: 100% ПЭ | F22: 150.00р. | H22: 202.50р. | I22: 142.50р. | J22: 120.00р. | L22: 154.50р. | M22: 0.00р. | N22: 208.58р.
C23: Пос105 | D23: Подушка синтепон 60Х60 верх полиэстер | E23: Наполнитель: силиконизированное волокно (100% ПЭ) верх: 100% ПЭ | F23: 220.00р. | H23: 297.00р. | I23: 209.00р. | J23: 176.00р. | L23: 226.60р. | M23: 0.00р. | N23: 305.91р.
C24: Пос104 | D24: Одеяло синтепон 142Х205 верх полиэстер прошитое | E24: Наполнитель: силиконизированное волокно (100% ПЭ) верх: 100% ПЭ | F24: 550.00р. | H24: 742.50р. | I24: 522.50р. | J24: 440.00р. | L24: 566.50р. | M24: 0.00р. | N24: 764.78р.
C25: Пос109 | D25: КПБ 1,5 спальный (наволочка 60Х60) полиэстер | E25: Материал: 100% ПЭ 95г/м2 | F25: 510.00р. | H25: 688.50р. | I25: 484.50р. | J25: 408.00р. | L25: 525.30р. | M25: 0.00р. | N25: 709.16р.
C26: Пос108 | D26: КПБ 1,5 спальный (наволочка 60Х60) бязь | E26: Материал: бязь набивная, 100% | F26: 840.00р. | H26: 1,134.00р. | I26: 798.00р. | J26: 672.00р. | L26: 865.20р. | M26: 0.00р. | N26: 1,168.02р.
B27: 6.5 | C27: Текстильные материалы | E27: вернуться в Оглавление | G27: =SUBTOTAL(9,G28:G34) -> 00:00:00 | M27: =SUBTOTAL(9,M28:M34) -> 00:00:00
E28: вернуться в Оглавление

Sheet Скидки
B1: ПРАЙС | D1: 26 ноября 2019 г.
B2: Система скидок
B3: компании "ПРАБО"
C5: Сумма счета, руб. | D5: Размер скидки
C6: Разовые скидки от суммы счета
C7: от 50 000 | D7: 2%
C8: от 100 000 | D8: 5%
C9: от 150 000 | D9: 8%
C10: от 300 000 | D10: 11%
C11: от 500 000 | D11: 15%
C12: от 1 000 000 | D12: 20%
C14: Скидки постоянным покупателям*
C15: от 150 000 | D15: 10%
C16: от 300 000 | D16: 14%
C17: от 500 000 | D17: 18%
B19: *Постоянные покупатели - покупатели, совершающие покупку на сумму от 500 000 руб. ежемесячно, в течение 3-х месяцев подряд.
B21: При покупке менее 25 000 р. применяется наценка 35%
B23: Во всех остальных случаях при оформлении заказа, применяются цены по действующему прайсу на день отгрузки
B25: ВНИМАНИЕ!
B26: Скидки не суммируются!
B27: Скидки НЕ распространяются на уцененные товары, а также на товары, участвующие в акциях, спецпредложениях и распродажах.
B28: Если у вас остались вопросы или вам необходимо сделать заказ
B29: ЗВОНИТЕ нашим менеджерам
B30: Москва +7 (495) 133 16 33
B31: Санкт-Петербург +7 (812) 409 90 01
B32: Уфа +7 (347) 246 94 13
B33: Екатеринбург +7 (343) 302 15 84
B34: Новосибирск +7(383) 3 777 549
B35: Казань +7 (843) 207 03 63
B36: Минск +375 (17) 507 51 33, +375 (29) 190 97 70
D37: вернуться в Оглавление

Sheet списки
A1: Сегмент | C1: Статус
A2: ПР | C2: NEW | D2: новинка
A3: СТ | C3: SPEC | D3: акция
A4: БД | C4: SALE | D4: распродажа
C5: ZAKAZ | D5: нет в наличии под заказ

Sheet Лист3 (hidden)
